Workbook

Sheet Données
A1: Sujet | B1: Produit | C1: Appréciation
A2: 43 | B2: 106 | C2: 4
A3: 43 | B3: 992 | C3: 9
A4: 43 | B4: 366 | C4: 5
A5: 43 | B5: 257 | C5: 8
A6: 43 | B6: 548 | C6: 5
A7: 41 | B7: 106 | C7: 5
A8: 41 | B8: 992 | C8: 9
A9: 41 | B9: 366 | C9: 4
A10: 41 | B10: 257 | C10: 7
A11: 41 | B11: 548 | C11: 7
A12: 44 | B12: 106 | C12: 4
A13: 44 | B13: 992 | C13: 9
A14: 44 | B14: 366 | C14: 6
A15: 44 | B15: 257 | C15: 7
A16: 44 | B16: 548 | C16: 8
A17: 31 | B17: 106 | C17: 9
A18: 31 | B18: 992 | C18: 9
A19: 31 | B19: 366 | C19: 5
A20: 31 | B20: 257 | C20: 7
A21: 31 | B21: 548 | C21: 8
A22: 26 | B22: 106 | C22: 5
A23: 26 | B23: 992 | C23: 4
A24: 26 | B24: 366 | C24: 6
A25: 26 | B25: 257 | C25: 7
A26: 26 | B26: 548 | C26: 9
A27: 37 | B27: 106 | C27: 6
A28: 37 | B28: 992 | C28: 6
A29: 37 | B29: 366 | C29: 4
A30: 37 | B30: 257 | C30: 8
A31: 37 | B31: 548 | C31: 9
A32: 45 | B32: 106 | C32: 2
A33: 45 | B33: 992 | C33: 2
A34: 45 | B34: 366 | C34: 3
A35: 45 | B35: 257 | C35: 8
A36: 45 | B36: 548 | C36: 7
A37: 35 | B37: 106 | C37: 9
A38: 35 | B38: 992 | C38: 4
A39: 35 | B39: 366 | C39: 1
A40: 35 | B40: 257 | C40: 9
A41: 35 | B41: 548 | C41: 7
A42: 46 | B42: 106 | C42: 8
A43: 46 | B43: 992 | C43: 7
A44: 46 | B44: 366 | C44: 8
A45: 46 | B45: 257 | C45: 9
A46: 46 | B46: 548 | C46: 1
A47: 50 | B47: 106 | C47: 6
A48: 50 | B48: 992 | C48: 3
A49: 50 | B49: 366 | C49: 5
A50: 50 | B50: 257 | C50: 9
A51: 50 | B51: 548 | C51: 9
A52: 29 | B52: 106 | C52: 3
A53: 29 | B53: 992 | C53: 2
A54: 29 | B54: 366 | C54: 5
A55: 29 | B55: 257 | C55: 8
A56: 29 | B56: 548 | C56: 8
A57: 48 | B57: 106 | C57: 6
A58: 48 | B58: 992 | C58: 5
A59: 48 | B59: 366 | C59: 5
A60: 48 | B60: 257 | C60: 8
A61: 48 | B61: 548 | C61: 9
A62: 51 | B62: 106 | C62: 1
A63: 51 | B63: 992 | C63: 1
A64: 51 | B64: 366 | C64: 2
A65: 51 | B65: 257 | C65: 9
A66: 51 | B66: 548 | C66: 9
A67: 47 | B67: 106 | C67: 5
A68: 47 | B68: 992 | C68: 6
A69: 47 | B69: 366 | C69: 5
A70: 47 | B70: 257 | C70: 7
A71: 47 | B71: 548 | C71: 7
A72: 55 | B72: 106 | C72: 5
A73: 55 | B73: 992 | C73: 2
A74: 55 | B74: 366 | C74: 2
A75: 55 | B75: 257 | C75: 6
A76: 55 | B76: 548 | C76: 9
A77: 54 | B77: 106 | C77: 7
A78: 54 | B78: 992 | C78: 6
A79: 54 | B79: 366 | C79: 8
A80: 54 | B80: 257 | C80: 5
A81: 54 | B81: 548 | C81: 8
A82: 78 | B82: 106 | C82: 2
A83: 78 | B83: 992 | C83: 7
A84: 78 | B84: 366 | C84: 8
A85: 78 | B85: 257 | C85: 4
A86: 78 | B86: 548 | C86: 3
A87: 80 | B87: 106 | C87: 9
A88: 80 | B88: 992 | C88: 4
A89: 80 | B89: 366 | C89: 5
A90: 80 | B90: 257 | C90: 5
A91: 80 | B91: 548 | C91: 1
A92: 76 | B92: 106 | C92: 7
A93: 76 | B93: 992 | C93: 9
A94: 76 | B94: 366 | C94: 5
A95: 76 | B95: 257 | C95: 1
A96: 76 | B96: 548 | C96: 9
A97: 81 | B97: 106 | C97: 9
A98: 81 | B98: 992 | C98: 2
A99: 81 | B99: 366 | C99: 6
A100: 81 | B100: 257 | C100: 9
A101: 81 | B101: 548 | C101: 9
A102: 83 | B102: 106 | C102: 4
A103: 83 | B103: 992 | C103: 8
A104: 83 | B104: 366 | C104: 7
A105: 83 | B105: 257 | C105: 6
A106: 83 | B106: 548 | C106: 7
A107: 77 | B107: 106 | C107: 8
A108: 77 | B108: 992 | C108: 5
A109: 77 | B109: 366 | C109: 5
A110: 77 | B110: 257 | C110: 5
A111: 77 | B111: 548 | C111: 9
A112: 82 | B112: 106 | C112: 6
A113: 82 | B113: 992 | C113: 8
A114: 82 | B114: 366 | C114: 7
A115: 82 | B115: 257 | C115: 3
A116: 82 | B116: 548 | C116: 7
A117: 73 | B117: 106 | C117: 1
A118: 73 | B118: 992 | C118: 9
A119: 73 | B119: 366 | C119: 5
A120: 73 | B120: 257 | C120: 9
A121: 73 | B121: 548 | C121: 6
A122: 86 | B122: 106 | C122: 7
A123: 86 | B123: 992 | C123: 9
A124: 86 | B124: 366 | C124: 4
A125: 86 | B125: 257 | C125: 9
A126: 86 | B126: 548 | C126: 6
A127: 89 | B127: 106 | C127: 6
A128: 89 | B128: 992 | C128: 9
A129: 89 | B129: 366 | C129: 8
A130: 89 | B130: 257 | C130: 6
A131: 89 | B131: 548 | C131: 8
A132: 85 | B132: 106 | C132: 6
A133: 85 | B133: 992 | C133: 7
A134: 85 | B134: 366 | C134: 9
A135: 85 | B135: 257 | C135: 6
A136: 85 | B136: 548 | C136: 7
A137: 88 | B137: 106 | C137: 6
A138: 88 | B138: 992 | C138: 5
A139: 88 | B139: 366 | C139: 7
A140: 88 | B140: 257 | C140: 7
A141: 88 | B141: 548 | C141: 7
A142: 90 | B142: 106 | C142: 5
A143: 90 | B143: 992 | C143: 5
A144: 90 | B144: 366 | C144: 1
A145: 90 | B145: 257 | C145: 9
A146: 90 | B146: 548 | C146: 9
A147: 93 | B147: 106 | C147: 7
A148: 93 | B148: 992 | C148: 9
A149: 93 | B149: 366 | C149: 8
A150: 93 | B150: 257 | C150: 7
A151: 93 | B151: 548 | C151: 9
A152: 92 | B152: 106 | C152: 6
A153: 92 | B153: 992 | C153: 9
A154: 92 | B154: 366 | C154: 1
A155: 92 | B155: 257 | C155: 9
A156: 92 | B156: 548 | C156: 9
A157: 94 | B157: 106 | C157: 5
A158: 94 | B158: 992 | C158: 8
A159: 94 | B159: 366 | C159: 7
A160: 94 | B160: 257 | C160: 6
A161: 94 | B161: 548 | C161: 7
A162: 96 | B162: 106 | C162: 9
A163: 96 | B163: 992 | C163: 1
A164: 96 | B164: 366 | C164: 5
A165: 96 | B165: 257 | C165: 9
A166: 96 | B166: 548 | C166: 9
A167: 99 | B167: 106 | C167: 7
A168: 99 | B168: 992 | C168: 9
A169: 99 | B169: 366 | C169: 2
A170: 99 | B170: 257 | C170: 6
A171: 99 | B171: 548 | C171: 7
A172: 100 | B172: 106 | C172: 5
A173: 100 | B173: 992 | C173: 4
A174: 100 | B174: 366 | C174: 5
A175: 100 | B175: 257 | C175: 8
A176: 100 | B176: 548 | C176: 5
A177: 87 | B177: 106 | C177: 4
A178: 87 | B178: 992 | C178: 9
A179: 87 | B179: 366 | C179: 7
A180: 87 | B180: 257 | C180: 7
A181: 87 | B181: 548 | C181: 6
A182: 84 | B182: 106 | C182: 5
A183: 84 | B183: 992 | C183: 9
A184: 84 | B184: 366 | C184: 5
A185: 84 | B185: 257 | C185: 9
A186: 84 | B186: 548 | C186: 1
A187: 101 | B187: 106 | C187: 6
A188: 101 | B188: 992 | C188: 9
A189: 101 | B189: 366 | C189: 7
A190: 101 | B190: 257 | C190: 7
A191: 101 | B191: 548 | C191: 5
A192: 95 | B192: 106 | C192: 9
A193: 95 | B193: 992 | C193: 9
A194: 95 | B194: 366 | C194: 4
A195: 95 | B195: 257 | C195: 7
A196: 95 | B196: 548 | C196: 6
A197: 103 | B197: 106 | C197: 7
A198: 103 | B198: 992 | C198: 8
A199: 103 | B199: 366 | C199: 4
A200: 103 | B200: 257 | C200: 8
... 396 more rows

Sheet Liking
B1: XLSTAT 2022.1.2.12345 - Analyse de données de préférences - Début : 31/03/2022 à 10:10:11 / Fin : 31/03/2022 à 10:10:19 / Microsoft Excel 16.014931
B2: Données de préférences : Classeur = LIK_tuto_FR.xlsm / Feuille = Data / Plage = 'Data'!$C:$C / 595 lignes et 1 colonne
B3: Produits : Classeur = LIK_tuto_FR.xlsm / Feuille = Data / Plage = 'Data'!$B:$B / 595 lignes et 1 colonne
B4: Sujets : Classeur = LIK_tuto_FR.xlsm / Feuille = Data / Plage = 'Data'!$A:$A / 595 lignes et 1 colonne
B5: Centrer les sujets : Oui
B6: Réduire les sujets : Non
B7: Nombre de produits : 5
B8: Nombre de sujets : 119
B9: Troncature : Automatique
B10: Intervalle de confiance (%) : 95
B11: Nombre de valeurs manquantes au format horizontal : 0
B16: Données au format horizontal :
B18: Produit/Sujet | C18: 43 | D18: 41 | E18: 44 | F18: 31 | G18: 26 | H18: 37 | I18: 45 | J18: 35 | K18: 46 | L18: 50 | M18: 29 | N18: 48 | O18: 51 | P18: 47 | Q18: 55 | R18: 54 | S18: 78 | T18: 80 | U18: 76 | V18: 81 | W18: 83 | X18: 77 | Y18: 82 | Z18: 73 | AA18: 86 | AB18: 89 | AC18: 85 | AD18: 88 | AE18: 90 | AF18: 93 | AG18: 92 | AH18: 94 | AI18: 96 | AJ18: 99 | AK18: 100 | AL18: 87 | AM18: 84 | AN18: 101 | AO18: 95 | AP18: 103 | AQ18: 91 | AR18: 104 | AS18: 98 | AT18: 106 | AU18: 109 | AV18: 108 | AW18: 107 | AX18: 105 | AY18: 97 | AZ18: 112 | BA18: 115 | BB18: 113 | BC18: 114 | BD18: 110 | BE18: 102 | BF18: 119 | BG18: 117 | BH18: 118 | BI18: 121 | BJ18: 116 | BK18: 60 | BL18: 52 | BM18: 53 | BN18: 57 | BO18: 59 | BP18: 49 | BQ18: 58 | BR18: 61 | BS18: 64 | BT18: 66 | BU18: 56 | BV18: 68 | BW18: 65 | BX18: 69 | BY18: 63 | BZ18: 70 | CA18: 67 | CB18: 74 | CC18: 62 | CD18: 71 | CE18: 75 | CF18: 810 | CG18: 79 | CH18: 42 | CI18: 39 | CJ18: 40 | CK18: 38 | CL18: 36 | CM18: 28 | CN18: 33 | CO18: 27 | CP18: 34 | CQ18: 23 | CR18: 24 | CS18: 32 | CT18: 30 | CU18: 21 | CV18: 25 | CW18: 17 | CX18: 20 | CY18: 22 | CZ18: 15 | DA18: 6 | DB18: 11 | DC18: 9 | DD18: 3 | DE18: 19 | DF18: 16 | DG18: 18 | DH18: 13 | DI18: 12 | DJ18: 14 | DK18: 10 | DL18: 8 | DM18: 5 | DN18: 4 | DO18: 1 | DP18: 7 | DQ18: 2
B19: 106 | C19: 4 | D19: 5 | E19: 4 | F19: 9 | G19: 5 | H19: 6 | I19: 2 | J19: 9 | K19: 8 | L19: 6 | M19: 3 | N19: 6 | O19: 1 | P19: 5 | Q19: 5 | R19: 7 | S19: 2 | T19: 9 | U19: 7 | V19: 9 | W19: 4 | X19: 8 | Y19: 6 | Z19: 1 | AA19: 7 | AB19: 6 | AC19: 6 | AD19: 6 | AE19: 5 | AF19: 7 | AG19: 6 | AH19: 5 | AI19: 9 | AJ19: 7 | AK19: 5 | AL19: 4 | AM19: 5 | AN19: 6 | AO19: 9 | AP19: 7 | AQ19: 8 | AR19: 6 | AS19: 3 | AT19: 4 | AU19: 8 | AV19: 8 | AW19: 7 | AX19: 1 | AY19: 5 | AZ19: 6 | BA19: 8 | BB19: 8 | BC19: 5 | BD19: 6 | BE19: 6 | BF19: 1 | BG19: 9 | BH19: 7 | BI19: 6 | BJ19: 3 | BK19: 1 | BL19: 6 | BM19: 4 | BN19: 5 | BO19: 6 | BP19: 9 | BQ19: 8 | BR19: 3 | BS19: 7 | BT19: 6 | BU19: 5 | BV19: 9 | BW19: 6 | BX19: 9 | BY19: 9 | BZ19: 7 | CA19: 8 | CB19: 1 | CC19: 9 | CD19: 9 | CE19: 1 | CF19: 8 | CG19: 6 | CH19: 9 | CI19: 3 | CJ19: 6 | CK19: 8 | CL19: 4 | CM19: 9 | CN19: 2 | CO19: 9 | CP19: 4 | CQ19: 9 | CR19: 9 | CS19: 5 | CT19: 5 | CU19: 1 | CV19: 1 | CW19: 1 | CX19: 8 | CY19: 2 | CZ19: 6 | DA19: 1 | DB19: 5 | DC19: 2 | DD19: 3 | DE19: 1 | DF19: 5 | DG19: 5 | DH19: 9 | DI19: 8 | DJ19: 2 | DK19: 4 | DL19: 6 | DM19: 5 | DN19: 7 | DO19: 8 | DP19: 5 | DQ19: 9
B20: 992 | C20: 9 | D20: 9 | E20: 9 | F20: 9 | G20: 4 | H20: 6 | I20: 2 | J20: 4 | K20: 7 | L20: 3 | M20: 2 | N20: 5 | O20: 1 | P20: 6 | Q20: 2 | R20: 6 | S20: 7 | T20: 4 | U20: 9 | V20: 2 | W20: 8 | X20: 5 | Y20: 8 | Z20: 9 | AA20: 9 | AB20: 9 | AC20: 7 | AD20: 5 | AE20: 5 | AF20: 9 | AG20: 9 | AH20: 8 | AI20: 1 | AJ20: 9 | AK20: 4 | AL20: 9 | AM20: 9 | AN20: 9 | AO20: 9 | AP20: 8 | AQ20: 2 | AR20: 7 | AS20: 4 | AT20: 8 | AU20: 6 | AV20: 7 | AW20: 5 | AX20: 6 | AY20: 4 | AZ20: 7 | BA20: 8 | BB20: 9 | BC20: 9 | BD20: 9 | BE20: 9 | BF20: 8 | BG20: 9 | BH20: 7 | BI20: 2 | BJ20: 8 | BK20: 7 | BL20: 7 | BM20: 7 | BN20: 7 | BO20: 8 | BP20: 4 | BQ20: 4 | BR20: 9 | BS20: 3 | BT20: 4 | BU20: 5 | BV20: 1 | BW20: 6 | BX20: 9 | BY20: 5 | BZ20: 9 | CA20: 7 | CB20: 9 | CC20: 9 | CD20: 7 | CE20: 9 | CF20: 2 | CG20: 9 | CH20: 8 | CI20: 7 | CJ20: 7 | CK20: 7 | CL20: 9 | CM20: 7 | CN20: 5 | CO20: 9 | CP20: 3 | CQ20: 7 | CR20: 4 | CS20: 3 | CT20: 9 | CU20: 7 | CV20: 8 | CW20: 1 | CX20: 9 | CY20: 5 | CZ20: 3 | DA20: 9 | DB20: 2 | DC20: 9 | DD20: 1 | DE20: 1 | DF20: 7 | DG20: 6 | DH20: 9 | DI20: 7 | DJ20: 5 | DK20: 6 | DL20: 3 | DM20: 4 | DN20: 2 | DO20: 3 | DP20: 2 | DQ20: 3
B21: 366 | C21: 5 | D21: 4 | E21: 6 | F21: 5 | G21: 6 | H21: 4 | I21: 3 | J21: 1 | K21: 8 | L21: 5 | M21: 5 | N21: 5 | O21: 2 | P21: 5 | Q21: 2 | R21: 8 | S21: 8 | T21: 5 | U21: 5 | V21: 6 | W21: 7 | X21: 5 | Y21: 7 | Z21: 5 | AA21: 4 | AB21: 8 | AC21: 9 | AD21: 7 | AE21: 1 | AF21: 8 | AG21: 1 | AH21: 7 | AI21: 5 | AJ21: 2 | AK21: 5 | AL21: 7 | AM21: 5 | AN21: 7 | AO21: 4 | AP21: 4 | AQ21: 2 | AR21: 7 | AS21: 2 | AT21: 8 | AU21: 9 | AV21: 9 | AW21: 5 | AX21: 1 | AY21: 5 | AZ21: 5 | BA21: 7 | BB21: 8 | BC21: 4 | BD21: 3 | BE21: 5 | BF21: 7 | BG21: 7 | BH21: 5 | BI21: 2 | BJ21: 2 | BK21: 3 | BL21: 6 | BM21: 3 | BN21: 7 | BO21: 5 | BP21: 3 | BQ21: 5 | BR21: 8 | BS21: 5 | BT21: 6 | BU21: 5 | BV21: 1 | BW21: 5 | BX21: 9 | BY21: 5 | BZ21: 9 | CA21: 7 | CB21: 5 | CC21: 9 | CD21: 9 | CE21: 9 | CF21: 6 | CG21: 4 | CH21: 7 | CI21: 6 | CJ21: 7 | CK21: 9 | CL21: 9 | CM21: 6 | CN21: 4 | CO21: 9 | CP21: 7 | CQ21: 7 | CR21: 9 | CS21: 3 | CT21: 6 | CU21: 1 | CV21: 7 | CW21: 5 | CX21: 9 | CY21: 9 | CZ21: 7 | DA21: 9 | DB21: 7 | DC21: 7 | DD21: 5 | DE21: 9 | DF21: 2 | DG21: 6 | DH21: 8 | DI21: 8 | DJ21: 7 | DK21: 9 | DL21: 6 | DM21: 4 | DN21: 6 | DO21: 7 | DP21: 6 | DQ21: 4
B22: 257 | C22: 8 | D22: 7 | E22: 7 | F22: 7 | G22: 7 | H22: 8 | I22: 8 | J22: 9 | K22: 9 | L22: 9 | M22: 8 | N22: 8 | O22: 9 | P22: 7 | Q22: 6 | R22: 5 | S22: 4 | T22: 5 | U22: 1 | V22: 9 | W22: 6 | X22: 5 | Y22: 3 | Z22: 9 | AA22: 9 | AB22: 6 | AC22: 6 | AD22: 7 | AE22: 9 | AF22: 7 | AG22: 9 | AH22: 6 | AI22: 9 | AJ22: 6 | AK22: 8 | AL22: 7 | AM22: 9 | AN22: 7 | AO22: 7 | AP22: 8 | AQ22: 9 | AR22: 8 | AS22: 9 | AT22: 9 | AU22: 9 | AV22: 5 | AW22: 8 | AX22: 8 | AY22: 9 | AZ22: 7 | BA22: 9 | BB22: 8 | BC22: 6 | BD22: 8 | BE22: 4 | BF22: 6 | BG22: 9 | BH22: 9 | BI22: 6 | BJ22: 9 | BK22: 9 | BL22: 9 | BM22: 6 | BN22: 6 | BO22: 5 | BP22: 9 | BQ22: 9 | BR22: 3 | BS22: 8 | BT22: 9 | BU22: 9 | BV22: 9 | BW22: 9 | BX22: 5 | BY22: 9 | BZ22: 7 | CA22: 9 | CB22: 9 | CC22: 6 | CD22: 9 | CE22: 3 | CF22: 5 | CG22: 9 | CH22: 9 | CI22: 8 | CJ22: 8 | CK22: 7 | CL22: 4 | CM22: 9 | CN22: 8 | CO22: 9 | CP22: 9 | CQ22: 9 | CR22: 9 | CS22: 6 | CT22: 8 | CU22: 5 | CV22: 4 | CW22: 1 | CX22: 9 | CY22: 2 | CZ22: 8 | DA22: 1 | DB22: 2 | DC22: 8 | DD22: 8 | DE22: 5 | DF22: 8 | DG22: 9 | DH22: 9 | DI22: 7 | DJ22: 8 | DK22: 7 | DL22: 8 | DM22: 7 | DN22: 9 | DO22: 3 | DP22: 9 | DQ22: 5
B23: 548 | C23: 5 | D23: 7 | E23: 8 | F23: 8 | G23: 9 | H23: 9 | I23: 7 | J23: 7 | K23: 1 | L23: 9 | M23: 8 | N23: 9 | O23: 9 | P23: 7 | Q23: 9 | R23: 8 | S23: 3 | T23: 1 | U23: 9 | V23: 9 | W23: 7 | X23: 9 | Y23: 7 | Z23: 6 | AA23: 6 | AB23: 8 | AC23: 7 | AD23: 7 | AE23: 9 | AF23: 9 | AG23: 9 | AH23: 7 | AI23: 9 | AJ23: 7 | AK23: 5 | AL23: 6 | AM23: 1 | AN23: 5 | AO23: 6 | AP23: 6 | AQ23: 1 | AR23: 7 | AS23: 7 | AT23: 7 | AU23: 8 | AV23: 6 | AW23: 7 | AX23: 8 | AY23: 9 | AZ23: 8 | BA23: 7 | BB23: 8 | BC23: 5 | BD23: 7 | BE23: 6 | BF23: 1 | BG23: 7 | BH23: 9 | BI23: 8 | BJ23: 9 | BK23: 7 | BL23: 9 | BM23: 8 | BN23: 8 | BO23: 7 | BP23: 8 | BQ23: 9 | BR23: 2 | BS23: 7 | BT23: 1 | BU23: 9 | BV23: 9 | BW23: 6 | BX23: 9 | BY23: 9 | BZ23: 7 | CA23: 9 | CB23: 8 | CC23: 7 | CD23: 9 | CE23: 3 | CF23: 8 | CG23: 7 | CH23: 9 | CI23: 7 | CJ23: 8 | CK23: 7 | CL23: 6 | CM23: 9 | CN23: 6 | CO23: 8 | CP23: 8 | CQ23: 9 | CR23: 9 | CS23: 9 | CT23: 7 | CU23: 5 | CV23: 4 | CW23: 9 | CX23: 9 | CY23: 9 | CZ23: 9 | DA23: 5 | DB23: 8 | DC23: 6 | DD23: 8 | DE23: 9 | DF23: 6 | DG23: 9 | DH23: 9 | DI23: 7 | DJ23: 3 | DK23: 6 | DL23: 4 | DM23: 6 | DN23: 9 | DO23: 6 | DP23: 6 | DQ23: 7
B26: Ces données au format horizontal et sans valeurs manquantes peuvent vous être utiles pour réaliser des analyses complémentaires en personnalisant vos options (exemple: Cartographie interne des préférences, Classification ascendante hiérarchique, k-means...)
B29: Résultats avant de centrer les sujets :
B31: Moyennes des produits avant de centrer :
B33: Produit | C33: Valeur
B34: 106 | C34: 5.663865546
B35: 992 | C35: 6.159663866
B36: 366 | C36: 5.714285714
B37: 257 | C37: 7.18487395
B38: 548 | C38: 7.058823529
B61: Box plots des données de préférences par produit avant de centrer :
B109: Moyennes des sujets avant de centrer :
B111: Sujet | C111: Valeur
B112: 43 | C112: 6.2
B113: 41 | C113: 6.4
B114: 44 | C114: 6.8
B115: 31 | C115: 7.6
B116: 26 | C116: 6.2
B117: 37 | C117: 6.6
B118: 45 | C118: 4.4
B119: 35 | C119: 6
B120: 46 | C120: 6.6
B121: 50 | C121: 6.4
B122: 29 | C122: 5.2
B123: 48 | C123: 6.6
B124: 51 | C124: 4.4
B125: 47 | C125: 6
B126: 55 | C126: 4.8
B127: 54 | C127: 6.8
B128: 78 | C128: 4.8
B129: 80 | C129: 4.8
B130: 76 | C130: 6.2
B131: 81 | C131: 7
B132: 83 | C132: 6.4
B133: 77 | C133: 6.4
B134: 82 | C134: 6.2
B135: 73 | C135: 6
B136: 86 | C136: 7
B137: 89 | C137: 7.4
B138: 85 | C138: 7
B139: 88 | C139: 6.4
B140: 90 | C140: 5.8
B141: 93 | C141: 8
B142: 92 | C142: 6.8
B143: 94 | C143: 6.6
B144: 96 | C144: 6.6
B145: 99 | C145: 6.2
B146: 100 | C146: 5.4
B147: 87 | C147: 6.6
B148: 84 | C148: 5.8
B149: 101 | C149: 6.8
B150: 95 | C150: 7
B151: 103 | C151: 6.6
B152: 91 | C152: 4.4
B153: 104 | C153: 7
B154: 98 | C154: 5
B155: 106 | C155: 7.2
B156: 109 | C156: 8
B157: 108 | C157: 7
B158: 107 | C158: 6.4
B159: 105 | C159: 4.8
B160: 97 | C160: 6.4
B161: 112 | C161: 6.6
B162: 115 | C162: 7.8
B163: 113 | C163: 8.2
B164: 114 | C164: 5.8
B165: 110 | C165: 6.6
B166: 102 | C166: 6
B167: 119 | C167: 4.6
B168: 117 | C168: 8.2
B169: 118 | C169: 7.4
B170: 121 | C170: 4.8
B171: 116 | C171: 6.2
B172: 60 | C172: 5.4
B173: 52 | C173: 7.4
B174: 53 | C174: 5.6
B175: 57 | C175: 6.6
B176: 59 | C176: 6.2
B177: 49 | C177: 6.6
B178: 58 | C178: 7
B179: 61 | C179: 5
B180: 64 | C180: 6
B181: 66 | C181: 5.2
B182: 56 | C182: 6.6
B183: 68 | C183: 5.8
B184: 65 | C184: 6.4
B185: 69 | C185: 8.2
B186: 63 | C186: 7.4
B187: 70 | C187: 7.8
B188: 67 | C188: 8
B189: 74 | C189: 6.4
B190: 62 | C190: 8
B191: 71 | C191: 8.6
B192: 75 | C192: 5
B193: 810 | C193: 5.8
B194: 79 | C194: 7
B195: 42 | C195: 8.4
B196: 39 | C196: 6.2
B197: 40 | C197: 7.2
B198: 38 | C198: 7.6
B199: 36 | C199: 6.4
B200: 28 | C200: 8
B201: 33 | C201: 5
B202: 27 | C202: 8.8
B203: 34 | C203: 6.2
B204: 23 | C204: 8.2
B205: 24 | C205: 8
B206: 32 | C206: 5.2
B207: 30 | C207: 7
B208: 21 | C208: 3.8
B209: 25 | C209: 4.8
B210: 17 | C210: 3.4
B211: 20 | C211: 8.8
B212: 22 | C212: 5.4
B213: 15 | C213: 6.6
B214: 6 | C214: 5
B215: 11 | C215: 4.8
B216: 9 | C216: 6.4
B217: 3 | C217: 5
B218: 19 | C218: 5
B219: 16 | C219: 5.6
B220: 18 | C220: 7
B221: 13 | C221: 8.8
B222: 12 | C222: 7.4
B223: 14 | C223: 5
B224: 10 | C224: 6.4
B225: 8 | C225: 5.4
B226: 5 | C226: 5.2
B227: 4 | C227: 6.6
B228: 1 | C228: 5.4
B229: 7 | C229: 5.6
B230: 2 | C230: 5.6
B253: Résultats après centrage des sujets :
B255: Moyennes des produits :
B257: Produit | C257: Valeur
B258: 106 | C258: -0.6924369748
B259: 992 | C259: -0.1966386555
B260: 366 | C260: -0.6420168067
B261: 257 | C261: 0.8285714286
B262: 548 | C262: 0.7025210084
B285: Box plots des données de préférences par produit :
B333: ANOVA :
B335: Analyse de la variance Produit :
B337: Source | C337: DDL | D337: Somme des carrés | E337: Moyenne des carrés | F337: F | G337: Pr > F
B338: Modèle | C338: 4 | D338: 251.1361345 | E338: 62.78403361 | F338: 15.41857939 | G338: 5.290467352e-12
B339: Erreur | C339: 590 | D339: 2402.463866 | E339: 4.071972653
B340: Total corrigé | C340: 594 | D340: 2653.6
B341: Calculé contre le modèle Y=Moyenne(Y)
B344: Interprétation (Produit) :
B346: Etant donnée la p-value associée à la statistique F calculée dans le tableau d'analyse de la variance, et étant donné le niveau de signification de 5% choisi, l'information apportée par les variables explicatives est significativement meilleure comparée à ce qu'expliquerait la seule moyenne de la variable dépendante.
B353: Graphiques des moyennes :
B375: Produit / Tukey (HSD) / Analyse des différences entre les modalités avec un intervalle de confiance à 95% (Produit) :
B377: Contraste | C377: Différence | D377: Différence standardisée | E377: Valeur critique | F377: Pr > Diff | G377: Significatif | H377: Borne inférieure (95%) | I377: Borne supérieure (95%) | J377: Borne inférieure (95%) | K377: Borne supérieure (95%)
B378: 257 vs 106 | C378: 1.521008403 | D378: 5.814169251 | E378: 2.736232465 | F378: 1.001008048e-07 | G378: Oui | H378: 0.8051997653 | I378: 2.236817041 | K378: |||||||||||||||||||||||||||||||||||||||||||||
B379: 257 vs 366 | C379: 1.470588235 | D379: 5.621434359 | E379: 2.736232465 | F379: 2.918243259e-07 | G379: Oui | H379: 0.7547795972 | I379: 2.186396873 | K379: ||||||||||||||||||||||||||||||||||||||||||||
B380: 257 vs 992 | C380: 1.025210084 | D380: 3.91894281 | E380: 2.736232465 | F380: 0.0009403180879 | G380: Oui | H380: 0.3094014459 | I380: 1.741018722 | K380: |||||||||||||||||||||||||||||||||||
B381: 257 vs 548 | C381: 0.1260504202 | D381: 0.4818372308 | E381: 2.736232465 | F381: 0.9890023548 | G381: Non | H381: -0.5897582179 | I381: 0.8418590583 | J381: |||||||||||| | K381: |||||||||||||||||
B382: 548 vs 106 | C382: 1.394957983 | D382: 5.33233202 | E382: 2.736232465 | F382: 1.375187995e-06 | G382: Oui | H382: 0.6791493451 | I382: 2.110766621 | K382: ||||||||||||||||||||||||||||||||||||||||||
B383: 548 vs 366 | C383: 1.344537815 | D383: 5.139597128 | E383: 2.736232465 | F383: 3.71818288e-06 | G383: Oui | H383: 0.628729177 | I383: 2.060346453 | K383: |||||||||||||||||||||||||||||||||||||||||
B384: 548 vs 992 | C384: 0.8991596639 | D384: 3.437105579 | E384: 2.736232465 | F384: 0.005663755826 | G384: Oui | H384: 0.1833510258 | I384: 1.614968302 | K384: ||||||||||||||||||||||||||||||||
B385: 992 vs 106 | C385: 0.4957983193 | D385: 1.895226441 | E385: 2.736232465 | F385: 0.3209812017 | G385: Non | H385: -0.2200103188 | I385: 1.211606957 | J385: |||| | K385: ||||||||||||||||||||||||
B386: 992 vs 366 | C386: 0.4453781513 | D386: 1.702491549 | E386: 2.736232465 | F386: 0.4331571576 | G386: Non | H386: -0.2704304868 | I386: 1.161186789 | J386: ||||| | K386: |||||||||||||||||||||||
B387: 366 vs 106 | C387: 0.05042016807 | D387: 0.1927348923 | E387: 2.736232465 | F387: 0.9996917328 | G387: Non | H387: -0.66538847 | I387: 0.7662288062 | J387: ||||||||||||| | K387: |||||||||||||||
B388: Valeur critique du d de Tukey : | E388: 3.869617062
B391: Modalité | C391: Moyennes estimées | D391: Erreur standard | E391: Borne inférieure (95%) | F391: Borne supérieure (95%) | G391: Groupes
B392: 257 | C392: 0.8285714286 | D392: 0.1849817764 | E392: 0.4652685324 | F392: 1.191874325 | G392: A
B393: 548 | C393: 0.7025210084 | D393: 0.1849817764 | E393: 0.3392181122 | F393: 1.065823905 | G393: A
B394: 992 | C394: -0.1966386555 | D394: 0.1849817764 | E394: -0.5599415516 | F394: 0.1666642407 | H394: B
B395: 366 | C395: -0.6420168067 | D395: 0.1849817764 | E395: -1.005319703 | F395: -0.2787139105 | H395: B
B396: 106 | C396: -0.6924369748 | D396: 0.1849817764 | E396: -1.055739871 | F396: -0.3291340786 | H396: B
B399: Cartographie interne des préférences :
B401: Valeurs propres et pourcentages d'inertie :
C403: F1 | D403: F2 | E403: F3 | F403: F4
B404: Valeur propre | C404: 46.4726345 | D404: 33.11207002 | E404: 22.20467535 | F404: 17.21062013
B405: Inertie % | C405: 39.05263403 | D405: 27.82526893 | E405: 18.65939105 | F405: 14.46270599
B406: % cumulé | C406: 39.05263403 | D406: 66.87790296 | E406: 85.53729401 | F406: 100
B429: Corrélations entre les sujets et les facteurs :
B431: Sujet | C431: F1 | D431: F2 | E431: F3 | F431: F4
B432: 43 | C432: -0.1061759184 | D432: 0.9237819638 | E432: -0.1690108025 | F432: 0.3267857194
B433: 41 | C433: 0.09714469048 | D433: 0.9234306923 | E433: -0.2688912905 | F433: -0.2560002724
B434: 44 | C434: -0.06237305297 | D434: 0.92278403 | E434: 0.2974199782 | F434: -0.2368978531
B435: 31 | C435: 0.1418422508 | D435: 0.2510868681 | E435: -0.7770655395 | F435: -0.5594687728
B436: 26 | C436: 0.7305097188 | D436: -0.05502116715 | E436: 0.6407630295 | F436: -0.2296757756
... 245 more rows

Sheet XLSTAT_20220331_101010_1_HID6 (hidden)
A1: 48.92041016 | B1: 499.4075626 | C1: 1.75 | D1: 499.4075626
A2: 12.26855469 | B2: 499.4075626 | C2: 1 | D2: 499.4075626
A3: 12.26855469 | B3: 156.9307737 | C3: 1 | D3: 0
A4: 1.875 | B4: 156.9307737 | C4: 1 | D4: 499.4075626
A5: 1.875 | B5: 17.43333333 | C5: 2.5 | D5: 499.4075626
A6: 1 | B6: 17.43333333 | C6: 2.5 | D6: 356.7086371
A7: 1 | B7: 0 | C7: 2 | D7: 356.7086371
A8: 1 | B8: 17.43333333 | C8: 2 | D8: 0
A9: 2.75 | B9: 17.43333333 | C9: 2 | D9: 356.7086371
A10: 2.75 | B10: 13.46666667 | C10: 3 | D10: 356.7086371
A11: 2 | B11: 13.46666667 | C11: 3 | D11: 0
A12: 2 | B12: 0 | C12: 3 | D12: 356.7086371
A13: 2 | B13: 13.46666667 | C13: 2.5 | D13: 356.7086371
A14: 3.5 | B14: 13.46666667 | C14: 2.5 | D14: 499.4075626
A15: 3.5 | B15: 3.6 | C15: 1.75 | D15: 499.4075626
A16: 3 | B16: 3.6 | C16: 0 | D16: 0
A17: 3 | B17: 0 | C17: 0 | D17: 0
A18: 3 | B18: 3.6 | C18: 0 | D18: 0
A19: 4 | B19: 3.6 | C19: 0 | D19: 0
A20: 4 | B20: 0 | C20: 0 | D20: 0
A21: 4 | B21: 3.6 | C21: 0 | D21: 0
A22: 3.5 | B22: 3.6 | C22: 0 | D22: 0
A23: 3.5 | B23: 13.46666667 | C23: 0 | D23: 0
A24: 2.75 | B24: 13.46666667 | C24: 0 | D24: 0
A25: 2.75 | B25: 17.43333333 | C25: 0 | D25: 0
A26: 1.875 | B26: 17.43333333 | C26: 0 | D26: 0
A27: 1.875 | B27: 156.9307737 | C27: 0 | D27: 0
A28: 22.66210938 | B28: 156.9307737 | C28: 0 | D28: 0
A29: 22.66210938 | B29: 135.1398481 | C29: 0 | D29: 0
A30: 9.921875 | B30: 135.1398481 | C30: 0 | D30: 0
A31: 9.921875 | B31: 54.69863636 | C31: 0 | D31: 0
A32: 6.625 | B32: 54.69863636 | C32: 0 | D32: 0
A33: 6.625 | B33: 10.57333333 | C33: 0 | D33: 0
A34: 5.5 | B34: 10.57333333 | C34: 0 | D34: 0
A35: 5.5 | B35: 3.4 | C35: 0 | D35: 0
A36: 5 | B36: 3.4 | C36: 0 | D36: 0
A37: 5 | B37: 0 | C37: 0 | D37: 0
A38: 5 | B38: 3.4 | C38: 0 | D38: 0
A39: 6 | B39: 3.4 | C39: 0 | D39: 0
A40: 6 | B40: 0 | C40: 0 | D40: 0
A41: 6 | B41: 3.4 | C41: 0 | D41: 0
A42: 5.5 | B42: 3.4 | C42: 0 | D42: 0
A43: 5.5 | B43: 10.57333333 | C43: 0 | D43: 0
A44: 7.75 | B44: 10.57333333 | C44: 0 | D44: 0
A45: 7.75 | B45: 7.666666667 | C45: 0 | D45: 0
A46: 7 | B46: 7.666666667 | C46: 0 | D46: 0
A47: 7 | B47: 0 | C47: 0 | D47: 0
A48: 7 | B48: 7.666666667 | C48: 0 | D48: 0
A49: 8.5 | B49: 7.666666667 | C49: 0 | D49: 0
A50: 8.5 | B50: 3.4 | C50: 0 | D50: 0
A51: 8 | B51: 3.4 | C51: 0 | D51: 0
A52: 8 | B52: 0 | C52: 0 | D52: 0
A53: 8 | B53: 3.4 | C53: 0 | D53: 0
A54: 9 | B54: 3.4 | C54: 0 | D54: 0
A55: 9 | B55: 0 | C55: 0 | D55: 0
A56: 9 | B56: 3.4 | C56: 0 | D56: 0
A57: 8.5 | B57: 3.4 | C57: 0 | D57: 0
A58: 8.5 | B58: 7.666666667 | C58: 0 | D58: 0
A59: 7.75 | B59: 7.666666667 | C59: 0 | D59: 0
A60: 7.75 | B60: 10.57333333 | C60: 0 | D60: 0
A61: 6.625 | B61: 10.57333333 | C61: 0 | D61: 0
A62: 6.625 | B62: 54.69863636 | C62: 0 | D62: 0
A63: 13.21875 | B63: 54.69863636 | C63: 0 | D63: 0
A64: 13.21875 | B64: 24.2530303 | C64: 0 | D64: 0
A65: 10.75 | B65: 24.2530303 | C65: 0 | D65: 0
A66: 10.75 | B66: 7.333333333 | C66: 0 | D66: 0
A67: 10 | B67: 7.333333333 | C67: 0 | D67: 0
A68: 10 | B68: 0 | C68: 0 | D68: 0
A69: 10 | B69: 7.333333333 | C69: 0 | D69: 0
A70: 11.5 | B70: 7.333333333 | C70: 0 | D70: 0
A71: 11.5 | B71: 1.6 | C71: 0 | D71: 0
A72: 11 | B72: 1.6 | C72: 0 | D72: 0
A73: 11 | B73: 0 | C73: 0 | D73: 0
A74: 11 | B74: 1.6 | C74: 0 | D74: 0
A75: 12 | B75: 1.6 | C75: 0 | D75: 0
A76: 12 | B76: 0 | C76: 0 | D76: 0
A77: 12 | B77: 1.6 | C77: 0 | D77: 0
A78: 11.5 | B78: 1.6 | C78: 0 | D78: 0
A79: 11.5 | B79: 7.333333333 | C79: 0 | D79: 0
A80: 10.75 | B80: 7.333333333 | C80: 0 | D80: 0
A81: 10.75 | B81: 24.2530303 | C81: 0 | D81: 0
A82: 15.6875 | B82: 24.2530303 | C82: 0 | D82: 0
A83: 15.6875 | B83: 15.91666667 | C83: 0 | D83: 0
A84: 13.75 | B84: 15.91666667 | C84: 0 | D84: 0
A85: 13.75 | B85: 1.533333333 | C85: 0 | D85: 0
A86: 13 | B86: 1.533333333 | C86: 0 | D86: 0
A87: 13 | B87: 0 | C87: 0 | D87: 0
A88: 13 | B88: 1.533333333 | C88: 0 | D88: 0
A89: 14.5 | B89: 1.533333333 | C89: 0 | D89: 0
A90: 14.5 | B90: 0.6 | C90: 0 | D90: 0
A91: 14 | B91: 0.6 | C91: 0 | D91: 0
A92: 14 | B92: 0 | C92: 0 | D92: 0
A93: 14 | B93: 0.6 | C93: 0 | D93: 0
A94: 15 | B94: 0.6 | C94: 0 | D94: 0
A95: 15 | B95: 0 | C95: 0 | D95: 0
A96: 15 | B96: 0.6 | C96: 0 | D96: 0
A97: 14.5 | B97: 0.6 | C97: 0 | D97: 0
A98: 14.5 | B98: 1.533333333 | C98: 0 | D98: 0
A99: 13.75 | B99: 1.533333333 | C99: 0 | D99: 0
A100: 13.75 | B100: 15.91666667 | C100: 0 | D100: 0
A101: 17.625 | B101: 15.91666667 | C101: 0 | D101: 0
A102: 17.625 | B102: 9.666666667 | C102: 0 | D102: 0
A103: 16.5 | B103: 9.666666667 | C103: 0 | D103: 0
A104: 16.5 | B104: 0.6 | C104: 0 | D104: 0
A105: 16 | B105: 0.6 | C105: 0 | D105: 0
A106: 16 | B106: 0 | C106: 0 | D106: 0
A107: 16 | B107: 0.6 | C107: 0 | D107: 0
A108: 17 | B108: 0.6 | C108: 0 | D108: 0
A109: 17 | B109: 0 | C109: 0 | D109: 0
A110: 17 | B110: 0.6 | C110: 0 | D110: 0
A111: 16.5 | B111: 0.6 | C111: 0 | D111: 0
A112: 16.5 | B112: 9.666666667 | C112: 0 | D112: 0
A113: 18.75 | B113: 9.666666667 | C113: 0 | D113: 0
A114: 18.75 | B114: 1.533333333 | C114: 0 | D114: 0
A115: 18 | B115: 1.533333333 | C115: 0 | D115: 0
A116: 18 | B116: 0 | C116: 0 | D116: 0
A117: 18 | B117: 1.533333333 | C117: 0 | D117: 0
A118: 19.5 | B118: 1.533333333 | C118: 0 | D118: 0
A119: 19.5 | B119: 0.6 | C119: 0 | D119: 0
A120: 19 | B120: 0.6 | C120: 0 | D120: 0
A121: 19 | B121: 0 | C121: 0 | D121: 0
A122: 19 | B122: 0.6 | C122: 0 | D122: 0
A123: 20 | B123: 0.6 | C123: 0 | D123: 0
A124: 20 | B124: 0 | C124: 0 | D124: 0
A125: 20 | B125: 0.6 | C125: 0 | D125: 0
A126: 19.5 | B126: 0.6 | C126: 0 | D126: 0
A127: 19.5 | B127: 1.533333333 | C127: 0 | D127: 0
A128: 18.75 | B128: 1.533333333 | C128: 0 | D128: 0
A129: 18.75 | B129: 9.666666667 | C129: 0 | D129: 0
A130: 17.625 | B130: 9.666666667 | C130: 0 | D130: 0
A131: 17.625 | B131: 15.91666667 | C131: 0 | D131: 0
A132: 15.6875 | B132: 15.91666667 | C132: 0 | D132: 0
A133: 15.6875 | B133: 24.2530303 | C133: 0 | D133: 0
A134: 13.21875 | B134: 24.2530303 | C134: 0 | D134: 0
A135: 13.21875 | B135: 54.69863636 | C135: 0 | D135: 0
A136: 9.921875 | B136: 54.69863636 | C136: 0 | D136: 0
A137: 9.921875 | B137: 135.1398481 | C137: 0 | D137: 0
A138: 35.40234375 | B138: 135.1398481 | C138: 0 | D138: 0
A139: 35.40234375 | B139: 107.7235256 | C139: 0 | D139: 0
A140: 26.625 | B140: 107.7235256 | C140: 0 | D140: 0
A141: 26.625 | B141: 22.57142857 | C141: 0 | D141: 0
A142: 23.625 | B142: 22.57142857 | C142: 0 | D142: 0
A143: 23.625 | B143: 7.533333333 | C143: 0 | D143: 0
A144: 21.75 | B144: 7.533333333 | C144: 0 | D144: 0
A145: 21.75 | B145: 1.466666667 | C145: 0 | D145: 0
A146: 21 | B146: 1.466666667 | C146: 0 | D146: 0
A147: 21 | B147: 0 | C147: 0 | D147: 0
A148: 21 | B148: 1.466666667 | C148: 0 | D148: 0
A149: 22.5 | B149: 1.466666667 | C149: 0 | D149: 0
A150: 22.5 | B150: 0.4 | C150: 0 | D150: 0
A151: 22 | B151: 0.4 | C151: 0 | D151: 0
A152: 22 | B152: 0 | C152: 0 | D152: 0
A153: 22 | B153: 0.4 | C153: 0 | D153: 0
A154: 23 | B154: 0.4 | C154: 0 | D154: 0
A155: 23 | B155: 0 | C155: 0 | D155: 0
A156: 23 | B156: 0.4 | C156: 0 | D156: 0
A157: 22.5 | B157: 0.4 | C157: 0 | D157: 0
A158: 22.5 | B158: 1.466666667 | C158: 0 | D158: 0
A159: 21.75 | B159: 1.466666667 | C159: 0 | D159: 0
A160: 21.75 | B160: 7.533333333 | C160: 0 | D160: 0
A161: 25.5 | B161: 7.533333333 | C161: 0 | D161: 0
A162: 25.5 | B162: 5.2 | C162: 0 | D162: 0
A163: 24.5 | B163: 5.2 | C163: 0 | D163: 0
A164: 24.5 | B164: 1.4 | C164: 0 | D164: 0
A165: 24 | B165: 1.4 | C165: 0 | D165: 0
A166: 24 | B166: 0 | C166: 0 | D166: 0
A167: 24 | B167: 1.4 | C167: 0 | D167: 0
A168: 25 | B168: 1.4 | C168: 0 | D168: 0
A169: 25 | B169: 0 | C169: 0 | D169: 0
A170: 25 | B170: 1.4 | C170: 0 | D170: 0
A171: 24.5 | B171: 1.4 | C171: 0 | D171: 0
A172: 24.5 | B172: 5.2 | C172: 0 | D172: 0
A173: 26.5 | B173: 5.2 | C173: 0 | D173: 0
A174: 26.5 | B174: 1.6 | C174: 0 | D174: 0
A175: 26 | B175: 1.6 | C175: 0 | D175: 0
A176: 26 | B176: 0 | C176: 0 | D176: 0
A177: 26 | B177: 1.6 | C177: 0 | D177: 0
A178: 27 | B178: 1.6 | C178: 0 | D178: 0
A179: 27 | B179: 0 | C179: 0 | D179: 0
A180: 27 | B180: 1.6 | C180: 0 | D180: 0
A181: 26.5 | B181: 1.6 | C181: 0 | D181: 0
A182: 26.5 | B182: 5.2 | C182: 0 | D182: 0
A183: 25.5 | B183: 5.2 | C183: 0 | D183: 0
A184: 25.5 | B184: 7.533333333 | C184: 0 | D184: 0
A185: 23.625 | B185: 7.533333333 | C185: 0 | D185: 0
A186: 23.625 | B186: 22.57142857 | C186: 0 | D186: 0
A187: 29.625 | B187: 22.57142857 | C187: 0 | D187: 0
A188: 29.625 | B188: 15.88571429 | C188: 0 | D188: 0
A189: 28 | B189: 15.88571429 | C189: 0 | D189: 0
A190: 28 | B190: 0 | C190: 0 | D190: 0
A191: 28 | B191: 15.88571429 | C191: 0 | D191: 0
A192: 31.25 | B192: 15.88571429 | C192: 0 | D192: 0
A193: 31.25 | B193: 6.666666667 | C193: 0 | D193: 0
A194: 29.75 | B194: 6.666666667 | C194: 0 | D194: 0
A195: 29.75 | B195: 1.466666667 | C195: 0 | D195: 0
A196: 29 | B196: 1.466666667 | C196: 0 | D196: 0
A197: 29 | B197: 0 | C197: 0 | D197: 0
A198: 29 | B198: 1.466666667 | C198: 0 | D198: 0
A199: 30.5 | B199: 1.466666667 | C199: 0 | D199: 0
A200: 30.5 | B200: 0.4 | C200: 0 | D200: 0
... 752 more rows

Sheet XLSTAT_20220331_101010_1_HID5 (hidden)
A1: -0.2313799607 | B1: 2.013117831 | C1: 0.09623242061 | D1: -1.374023776
A2: 0.2120038726 | B2: 2.015250467 | C2: -1.155585787 | D2: 1.434628437
A3: -0.1366551818 | B3: 2.021758009 | C3: -1.116841397 | D3: -0.8109925712
A4: 2.020647769 | B4: -0.1521929083 | C4: 1.229720615 | D4: 0.6146203048
A5: 1.859810068 | B5: 0.8045412348 | C5: 0.9464741482 | D5: 0.1357676055
A6: 1.928044827 | B6: 0.6235569178
A7: 2.02075153 | B7: -0.1508089597
A8: 2.013836872 | B8: -0.2250358594
A9: 2.021292798 | B9: 0.1433719313
A10: 2.008477206 | B10: 0.2686994576
A11: 1.930705009 | B11: 0.6152708805
A12: 1.492584317 | B12: 1.370537173
A13: 2.022700296 | B13: -0.1219163624
A14: -1.878355201 | B14: 0.7602380066
A15: 1.687198704 | B15: -1.122292573
A16: -0.9643021424 | B16: 1.782218131
A17: -2.023116297 | B17: 0.1148065157
A18: 0.1254954327 | B18: 2.022481392
A19: 0.7510623456 | B19: 1.88204289
A20: -1.601138786 | B20: 1.241988194
A21: 1.830980929 | B21: 0.8681525936
A22: 1.280078507 | B22: 1.570852985
A23: -1.186675942 | B23: 1.642552981
A24: 1.737273199 | B24: -1.043102065
A25: 2.019180475 | B25: 0.1705587765
A26: -0.9310366138 | B26: 1.799819688
A27: -1.48860671 | B27: 1.37485641
A28: 1.003439155 | B28: 1.760480034
A29: 1.751257242 | B29: 1.01944993
A30: 1.256848225 | B30: -1.589500747
A31: -1.592602705 | B31: -1.252915285
A32: 2.014318315 | B32: -0.2206848744
A33: 1.227092328 | B33: 1.612583178
A34: 2.001260001 | B34: 0.3180227897
A35: 1.42178768 | B35: 1.443848981
A36: -1.271144365 | B36: 1.57809128
A37: -0.6134939935 | B37: 1.931270361
A38: 0.7623408432 | B38: 1.877502736
A39: -1.576212289 | B39: 1.273473559
A40: -1.465719306 | B40: 1.399230861
A41: 1.830980929 | B41: 0.8681525936
A42: 1.986094291 | B42: -0.4020069081
A43: 1.130711302 | B43: 1.681568327
A44: 0.9051639935 | B44: 1.812969451
A45: 1.670996359 | B45: 1.146277128
A46: 0.997607439 | B46: 1.763791225
A47: 1.982381684 | B47: -0.4199320746
A48: 1.9650514 | B48: -0.4947252608
A49: -1.925409769 | B49: 0.6316465062
A50: 1.859468905 | B50: -0.805329421
A51: 1.915683079 | B51: 0.6605591773
A52: 1.9541195 | B52: -0.5362807725
A53: 1.77373537 | B53: 0.9798178012
A54: 1.9541195 | B54: -0.5362807725
A55: -1.9541195 | B55: 0.5362807725
A56: 2.02554914 | B56: 0.05771281496
A57: 0.3880351847 | B57: 1.988871233
A58: -1.894872109 | B58: -0.7180806209
A59: 1.271144365 | B59: -1.57809128
A60: -1.834365167 | B60: 0.8609788164
A61: 1.068290149 | B61: -1.721899022
A62: 0.8011080217 | B62: 1.861291494
A63: 2.023282136 | B63: 0.1118458059
A64: 0.5525195944 | B64: 1.949590261
A65: 1.417633124 | B65: 1.447928317
A66: -1.176872251 | B66: -1.649591402
A67: -1.907816425 | B67: 0.6829469781
A68: 2.020381587 | B68: -0.1556866384
A69: 1.256534607 | B69: 1.589748681
A70: 1.9541195 | B70: -0.5362807725
A71: 1.271144365 | B71: -1.57809128
A72: 2.026282215 | B72: -0.01898613413
A73: -0.04518183241 | B73: 2.025867392
A74: 0.3056318462 | B74: 2.003189772
A75: -1.506897113 | B75: 1.354784551
A76: 1.844593497 | B76: -0.8388414129
A77: -1.891472421 | B77: 0.7269884232
A78: -0.4832210186 | B78: 1.967911973
A79: 2.021775431 | B79: -0.1363971949
A80: 1.245618737 | B80: 1.598316004
A81: 1.765315268 | B81: 0.9949080812
A82: -0.8575677772 | B82: -1.835962307
A83: 2.009317833 | B83: 0.2623393475
A84: 1.86005534 | B84: -0.8039740162
A85: -0.2377465029 | B85: -2.012375881
A86: 1.93723613 | B86: -0.5943872997
A87: 1.249723402 | B87: -1.595108618

Sheet XLSTAT_20220331_101010_1_HID4 (hidden)
A1: 0.6560244965 | B1: -7.906557135
A2: -7.877725396 | B2: 8.25529507
A3: -7.613601639 | B3: -4.666701707
A4: 8.383108751 | B4: 3.536715042
A5: 6.452193788 | B5: 0.78124873

Sheet XLSTAT_20220331_101010_1_HID3 (hidden)
A1: -0.1061759184 | B1: 0.9237819638
A2: 0.09714469048 | B2: 0.9234306923
A3: -0.06237305297 | B3: 0.92278403
A4: 0.7305097188 | B4: -0.05502116715
A5: 0.8640423381 | B5: 0.3737788614
A6: 0.8532884812 | B6: 0.2759655417
A7: 0.8275088394 | B7: -0.06175709648
A8: 0.9528618352 | B8: -0.106477384
A9: 0.7899383246 | B9: 0.05603096359
A10: 0.9319614804 | B10: 0.1246803018
A11: 0.8635122585 | B11: 0.2751813173
A12: 0.7148270473 | B12: 0.6563763461
A13: 0.8970497399 | B13: -0.05406883136
A14: -0.7837931732 | B14: 0.3172293288
A15: 0.8299176029 | B15: -0.5520454462
A16: -0.3942603309 | B16: 0.7286698629
A17: -0.717329382 | B17: 0.04070655113
A18: 0.05785199663 | B18: 0.9323413942
A19: 0.269038119 | B19: 0.6741667745
A20: -0.6345819763 | B20: 0.4922392298
A21: 0.8801009339 | B21: 0.4172964866
A22: 0.5535056032 | B22: 0.6792364097
A23: -0.5055425334 | B23: 0.6997532906
A24: 0.8570032426 | B24: -0.5145660755
A25: 0.7143190679 | B25: 0.06033803703
A26: -0.4365246453 | B26: 0.8438611752
A27: -0.6483025006 | B27: 0.5987631537
A28: 0.3584404395 | B28: 0.628864475
A29: 0.8532850495 | B29: 0.4967182223
A30: 0.4425690996 | B30: -0.5597047443
A31: -0.7839503028 | B31: -0.6167409576
A32: 0.9624291638 | B32: -0.1054419044
A33: 0.5932867211 | B33: 0.7796676457
A34: 0.9155118917 | B34: 0.1454851672
A35: 0.6048073583 | B35: 0.6141919079
A36: -0.5777928933 | B36: 0.7173142183
A37: -0.2645541831 | B37: 0.8328128036
A38: 0.3195221823 | B38: 0.7869232993
A39: -0.5748281309 | B39: 0.4644224833
A40: -0.574827077 | B40: 0.5487515809
A41: 0.8801009339 | B41: 0.4172964866
A42: 0.9152214193 | B42: -0.1852506876
A43: 0.5488689882 | B43: 0.8162655705
A44: 0.4320227859 | B44: 0.8653063076
A45: 0.7922054097 | B45: 0.5434404072
A46: 0.420054142 | B46: 0.74266468
A47: 0.8950958397 | B47: -0.1896100312
A48: 0.967675103 | B48: -0.2436238145
A49: -0.9291177843 | B49: 0.3048047288
A50: 0.9040139474 | B50: -0.3915252504
A51: 0.8884277918 | B51: 0.3063445816
A52: 0.927714513 | B52: -0.254598276
A53: 0.7086065194 | B53: 0.3914367912
A54: 0.927714513 | B54: -0.254598276
A55: -0.927714513 | B55: 0.254598276
A56: 0.994742108 | B56: 0.02834261884
A57: 0.179076935 | B57: 0.9178573971
A58: -0.8826091099 | B58: -0.3344734955
A59: 0.5777928933 | B59: -0.7173142183
A60: -0.8263229691 | B60: 0.3878434811
A61: 0.4919421254 | B61: -0.7929256535
A62: 0.3586614664 | B62: 0.8333127598
A63: 0.8473171453 | B63: 0.04683917643
A64: 0.2280351264 | B64: 0.8046322086
A65: 0.5558933188 | B65: 0.5677729055
A66: -0.5343625935 | B66: -0.7490022295
A67: -0.8435822813 | B67: 0.3019797724
A68: 0.8951927018 | B68: -0.06898179203
A69: 0.5463780129 | B69: 0.6912692418
A70: 0.927714513 | B70: -0.254598276
A71: 0.5777928933 | B71: -0.7173142183
A72: 0.8585556924 | B72: -0.008044611664
A73: -0.02221367497 | B73: 0.9960189166
A74: 0.1476053611 | B74: 0.9674435218
A75: -0.6657358474 | B75: 0.5985336579
A76: 0.7429151526 | B76: -0.3378457081
A77: -0.804622278 | B77: 0.3092569972
A78: -0.2076535349 | B78: 0.8456666038
A79: 0.795010435 | B79: -0.05363463796
A80: 0.5512036208 | B80: 0.7072770687
A81: 0.7688130979 | B81: 0.4332927822
A82: -0.41666187 | B82: -0.8920291883
A83: 0.9738277154 | B83: 0.127144309
A84: 0.8729489036 | B84: -0.3773157824
A85: -0.1113852213 | B85: -0.9428064348
A86: 0.73187465 | B86: -0.224555484
A87: 0.5297786747 | B87: -0.6761932508

Sheet XLSTAT_20220331_101010_1_HID2 (hidden)
B2: Modalité | C2: Moyenne estimées | D2: Erreur standard | E2: Borne inférieure (95%) | F2: Borne supérieure (95%)
B3: 106 | C3: -0.6924369748 | D3: 0.1849817764 | E3: -1.055739871 | F3: -0.3291340786
B4: 257 | C4: 0.8285714286 | D4: 0.1849817764 | E4: 0.4652685324 | F4: 1.191874325
B5: 366 | C5: -0.6420168067 | D5: 0.1849817764 | E5: -1.005319703 | F5: -0.2787139105
B6: 548 | C6: 0.7025210084 | D6: 0.1849817764 | E6: 0.3392181122 | F6: 1.065823905
B7: 992 | C7: -0.1966386555 | D7: 0.1849817764 | E7: -0.5599415516 | F7: 0.1666642407
B10: 1 | C10: =-3.1415926536+(B10-1)*0.0125915537 -> -3.141592654 | D10: =1*COS(C10)+0 -> -1 | E10: =1*SIN(C10)+0+0*COS(C10) -> 1.020682388e-11
B11: 2 | C11: -3.1290011 | D11: -0.9999207274 | E11: -0.01259122097
B12: 3 | C12: -3.116409546 | D12: -0.9996829223 | E12: -0.02518044567
B13: 4 | C13: -3.103817993 | D13: -0.9992866223 | E13: -0.03776567813
B14: 5 | C14: -3.091226439 | D14: -0.9987318903 | E14: -0.05034492303
B15: 6 | C15: -3.078634885 | D15: -0.9980188142 | E15: -0.06291618598
B16: 7 | C16: -3.066043331 | D16: -0.9971475071 | E16: -0.07547747389
B17: 8 | C17: -3.053451778 | D17: -0.9961181071 | E17: -0.0880267952
B18: 9 | C18: -3.040860224 | D18: -0.9949307774 | E18: -0.1005621603
B19: 10 | C19: -3.02826867 | D19: -0.9935857064 | E19: -0.1130815818
B20: 11 | C20: -3.015677117 | D20: -0.9920831071 | E20: -0.1255830747
B21: 12 | C21: -3.003085563 | D21: -0.9904232179 | E21: -0.138064657
B22: 13 | C22: -2.990494009 | D22: -0.9886063019 | E22: -0.1505243499
B23: 14 | C23: -2.977902456 | D23: -0.9866326472 | E23: -0.1629601778
B24: 15 | C24: -2.965310902 | D24: -0.9845025667 | E24: -0.1753701692
B25: 16 | C25: -2.952719348 | D25: -0.9822163981 | E25: -0.1877523566
B26: 17 | C26: -2.940127794 | D26: -0.9797745038 | E26: -0.2001047767
B27: 18 | C27: -2.927536241 | D27: -0.9771772711 | E27: -0.2124254711
B28: 19 | C28: -2.914944687 | D28: -0.9744251117 | E28: -0.2247124866
B29: 20 | C29: -2.902353133 | D29: -0.971518462 | E29: -0.2369638749
B30: 21 | C30: -2.88976158 | D30: -0.9684577827 | E30: -0.2491776938
B31: 22 | C31: -2.877170026 | D31: -0.9652435592 | E31: -0.2613520068
B32: 23 | C32: -2.864578472 | D32: -0.961876301 | E32: -0.2734848837
B33: 24 | C33: -2.851986919 | D33: -0.958356542 | E33: -0.285574401
B34: 25 | C34: -2.839395365 | D34: -0.9546848402 | E34: -0.2976186417
B35: 26 | C35: -2.826803811 | D35: -0.9508617778 | E35: -0.3096156965
B36: 27 | C36: -2.814212257 | D36: -0.9468879609 | E36: -0.3215636633
B37: 28 | C37: -2.801620704 | D37: -0.9427640195 | E37: -0.3334606476
B38: 29 | C38: -2.78902915 | D38: -0.9384906075 | E38: -0.3453047635
B39: 30 | C39: -2.776437596 | D39: -0.9340684023 | E39: -0.3570941329
B40: 31 | C40: -2.763846043 | D40: -0.9294981052 | E40: -0.3688268868
B41: 32 | C41: -2.751254489 | D41: -0.9247804407 | E41: -0.380501165
B42: 33 | C42: -2.738662935 | D42: -0.9199161567 | E42: -0.3921151165
B43: 34 | C43: -2.726071382 | D43: -0.9149060245 | E43: -0.4036669002
B44: 35 | C44: -2.713479828 | D44: -0.9097508384 | E44: -0.4151546844
B45: 36 | C45: -2.700888274 | D45: -0.9044514158 | E45: -0.4265766479
B46: 37 | C46: -2.68829672 | D46: -0.8990085968 | E46: -0.4379309797
B47: 38 | C47: -2.675705167 | D47: -0.8934232443 | E47: -0.4492158797
B48: 39 | C48: -2.663113613 | D48: -0.8876962439 | E48: -0.4604295587
B49: 40 | C49: -2.650522059 | D49: -0.8818285037 | E49: -0.4715702388
B50: 41 | C50: -2.637930506 | D50: -0.8758209538 | E50: -0.4826361538
B51: 42 | C51: -2.625338952 | D51: -0.8696745467 | E51: -0.4936255491
B52: 43 | C52: -2.612747398 | D52: -0.863390257 | E52: -0.5045366826
B53: 44 | C53: -2.600155845 | D53: -0.856969081 | E53: -0.5153678242
B54: 45 | C54: -2.587564291 | D54: -0.8504120367 | E54: -0.5261172567
B55: 46 | C55: -2.574972737 | D55: -0.8437201637 | E55: -0.5367832759
B56: 47 | C56: -2.562381183 | D56: -0.836894523 | E56: -0.5473641908
B57: 48 | C57: -2.54978963 | D57: -0.8299361968 | E57: -0.5578583237
B58: 49 | C58: -2.537198076 | D58: -0.8228462882 | E58: -0.5682640109
B59: 50 | C59: -2.524606522 | D59: -0.8156259213 | E59: -0.5785796025
B60: 51 | C60: -2.512014969 | D60: -0.8082762409 | E60: -0.5888034633
B61: 52 | C61: -2.499423415 | D61: -0.8007984123 | E61: -0.5989339721
B62: 53 | C62: -2.486831861 | D62: -0.7931936209 | E62: -0.6089695228
B63: 54 | C63: -2.474240308 | D63: -0.7854630726 | E63: -0.6189085244
B64: 55 | C64: -2.461648754 | D64: -0.7776079929 | E64: -0.628749401
B65: 56 | C65: -2.4490572 | D65: -0.7696296273 | E65: -0.6384905925
B66: 57 | C66: -2.436465646 | D66: -0.7615292407 | E66: -0.6481305545
B67: 58 | C67: -2.423874093 | D67: -0.7533081173 | E67: -0.6576677584
B68: 59 | C68: -2.411282539 | D68: -0.7449675605 | E68: -0.6671006924
B69: 60 | C69: -2.398690985 | D69: -0.7365088928 | E69: -0.6764278608
B70: 61 | C70: -2.386099432 | D70: -0.7279334552 | E70: -0.6856477848
B71: 62 | C71: -2.373507878 | D71: -0.7192426073 | E71: -0.6947590028
B72: 63 | C72: -2.360916324 | D72: -0.7104377269 | E72: -0.70376007
B73: 64 | C73: -2.348324771 | D73: -0.7015202101 | E73: -0.7126495596
B74: 65 | C74: =-3.1415926536+(B74-1)*0.0125915537 -> -2.335733217 | D74: =1*COS(C74)+0 -> -0.6924914707 | E74: =1*SIN(C74)+0+0*COS(C74) -> -0.721426062
B75: 66 | C75: -2.323141663 | D75: -0.6833529402 | E75: -0.7300881858
B76: 67 | C76: -2.310550109 | D76: -0.6741060674 | E76: -0.7386345578
B77: 68 | C77: -2.297958556 | D77: -0.6647523183 | E77: -0.7470638228
B78: 69 | C78: -2.285367002 | D78: -0.655293176 | E78: -0.7553746444
B79: 70 | C79: -2.272775448 | D79: -0.6457301402 | E79: -0.7635657051
B80: 71 | C80: -2.260183895 | D80: -0.636064727 | E80: -0.7716357062
B81: 72 | C81: -2.247592341 | D81: -0.6262984688 | E81: -0.7795833682
B82: 73 | C82: -2.235000787 | D82: -0.6164329141 | E82: -0.787407431
B83: 74 | C83: -2.222409234 | D83: -0.6064696269 | E83: -0.7951066543
B84: 75 | C84: -2.20981768 | D84: -0.5964101869 | E84: -0.8026798172
B85: 76 | C85: -2.197226126 | D85: -0.586256189 | E85: -0.8101257192
B86: 77 | C86: -2.184634572 | D86: -0.576009243 | E86: -0.8174431797
B87: 78 | C87: -2.172043019 | D87: -0.5656709736 | E87: -0.8246310385
B88: 79 | C88: -2.159451465 | D88: -0.5552430197 | E88: -0.8316881561
B89: 80 | C89: -2.146859911 | D89: -0.5447270348 | E89: -0.8386134136
B90: 81 | C90: -2.134268358 | D90: -0.5341246861 | E90: -0.8454057131
B91: 82 | C91: -2.121676804 | D91: -0.5234376546 | E91: -0.8520639775
B92: 83 | C92: -2.10908525 | D92: -0.5126676345 | E92: -0.8585871514
B93: 84 | C93: -2.096493697 | D93: -0.5018163335 | E93: -0.8649742005
B94: 85 | C94: -2.083902143 | D94: -0.4908854719 | E94: -0.8712241121
B95: 86 | C95: -2.071310589 | D95: -0.4798767828 | E95: -0.8773358954
B96: 87 | C96: -2.058719035 | D96: -0.4687920116 | E96: -0.8833085813
B97: 88 | C97: -2.046127482 | D97: -0.4576329157 | E97: -0.889141223
B98: 89 | C98: -2.033535928 | D98: -0.4464012644 | E98: -0.8948328957
B99: 90 | C99: -2.020944374 | D99: -0.4350988383 | E99: -0.9003826969
B100: 91 | C100: -2.008352821 | D100: -0.4237274294 | E100: -0.9057897469
B101: 92 | C101: -1.995761267 | D101: -0.4122888406 | E101: -0.9110531883
B102: 93 | C102: -1.983169713 | D102: -0.4007848854 | E102: -0.9161721867
B103: 94 | C103: -1.97057816 | D103: -0.3892173877 | E103: -0.9211459304
B104: 95 | C104: -1.957986606 | D104: -0.3775881814 | E104: -0.925973631
B105: 96 | C105: -1.945395052 | D105: -0.3658991104 | E105: -0.9306545229
B106: 97 | C106: -1.932803498 | D106: -0.3541520279 | E106: -0.9351878641
B107: 98 | C107: -1.920211945 | D107: -0.3423487963 | E107: -0.9395729358
B108: 99 | C108: -1.907620391 | D108: -0.330491287 | E108: -0.9438090428
B109: 100 | C109: -1.895028837 | D109: -0.3185813799 | E109: -0.9478955134
B110: 101 | C110: -1.882437284 | D110: -0.3066209633 | E110: -0.9518316999
B111: 102 | C111: -1.86984573 | D111: -0.2946119334 | E111: -0.955616978
B112: 103 | C112: -1.857254176 | D112: -0.2825561942 | E112: -0.9592507478
B113: 104 | C113: -1.844662623 | D113: -0.2704556571 | E113: -0.962732433
B114: 105 | C114: -1.832071069 | D114: -0.2583122406 | E114: -0.9660614817
B115: 106 | C115: -1.819479515 | D115: -0.2461278699 | E115: -0.969237366
B116: 107 | C116: -1.806887961 | D116: -0.2339044769 | E116: -0.9722595825
B117: 108 | C117: -1.794296408 | D117: -0.2216439994 | E117: -0.9751276519
B118: 109 | C118: -1.781704854 | D118: -0.2093483814 | E118: -0.9778411196
B119: 110 | C119: -1.7691133 | D119: -0.1970195722 | E119: -0.9803995554
B120: 111 | C120: -1.756521747 | D120: -0.1846595265 | E120: -0.9828025536
B121: 112 | C121: -1.743930193 | D121: -0.1722702039 | E121: -0.9850497332
B122: 113 | C122: -1.731338639 | D122: -0.1598535688 | E122: -0.987140738
B123: 114 | C123: -1.718747085 | D123: -0.1474115896 | E123: -0.9890752364
B124: 115 | C124: -1.706155532 | D124: -0.134946239 | E124: -0.9908529218
B125: 116 | C125: -1.693563978 | D125: -0.1224594934 | E125: -0.9924735122
B126: 117 | C126: -1.680972424 | D126: -0.1099533324 | E126: -0.9939367508
B127: 118 | C127: -1.668380871 | D127: -0.09742973887 | E127: -0.9952424056
B128: 119 | C128: -1.655789317 | D128: -0.08489069831 | E128: -0.9963902696
B129: 120 | C129: -1.643197763 | D129: -0.07233819875 | E129: -0.9973801607
B130: 121 | C130: -1.63060621 | D130: -0.05977423031 | E130: -0.9982119221
B131: 122 | C131: -1.618014656 | D131: -0.04720078496 | E131: -0.9988854218
B132: 123 | C132: -1.605423102 | D132: -0.03461985616 | E132: -0.9994005531
B133: 124 | C133: -1.592831548 | D133: -0.02203343854 | E133: -0.9997572343
B134: 125 | C134: -1.580239995 | D134: -0.009443527637 | E134: -0.9999554089
B135: 126 | C135: -1.567648441 | D135: 0.003147880496 | E135: -0.9999950454
B136: 127 | C136: -1.555056887 | D136: 0.01573878955 | E136: -0.9998761376
B137: 128 | C137: -1.542465334 | D137: 0.02832720329 | E137: -0.9995987043
B138: 129 | C138: =-3.1415926536+(B138-1)*0.0125915537 -> -1.52987378 | D138: =1*COS(C138)+0 -> 0.04091112589 | E138: =1*SIN(C138)+0+0*COS(C138) -> -0.9991627894
B139: 130 | C139: -1.517282226 | D139: 0.05348856224 | E139: -0.9985684622
B140: 131 | C140: -1.504690673 | D140: 0.06605751823 | E140: -0.9978158168
B141: 132 | C141: -1.492099119 | D141: 0.07861600112 | E141: -0.9969049726
B142: 133 | C142: -1.479507565 | D142: 0.09116201984 | E142: -0.9958360739
B143: 134 | C143: -1.466916011 | D143: 0.1036935853 | E143: -0.9946092903
B144: 135 | C144: -1.454324458 | D144: 0.1162087106 | E144: -0.9932248162
B145: 136 | C145: -1.441732904 | D145: 0.1287054115 | E145: -0.9916828712
B146: 137 | C146: -1.42914135 | D146: 0.1411817069 | E146: -0.9899836997
B147: 138 | C147: -1.416549797 | D147: 0.1536356186 | E147: -0.9881275711
B148: 139 | C148: -1.403958243 | D148: 0.1660651721 | E148: -0.9861147796
B149: 140 | C149: -1.391366689 | D149: 0.1784683968 | E149: -0.9839456445
B150: 141 | C150: -1.378775136 | D150: 0.1908433262 | E150: -0.9816205096
B151: 142 | C151: -1.366183582 | D151: 0.2031879983 | E151: -0.9791397435
B152: 143 | C152: -1.353592028 | D152: 0.2155004559 | E152: -0.9765037396
B153: 144 | C153: -1.341000474 | D153: 0.227778747 | E153: -0.9737129158
B154: 145 | C154: -1.328408921 | D154: 0.2400209249 | E154: -0.9707677145
B155: 146 | C155: -1.315817367 | D155: 0.2522250486 | E155: -0.9676686028
B156: 147 | C156: -1.303225813 | D156: 0.2643891833 | E156: -0.9644160719
B157: 148 | C157: -1.29063426 | D157: 0.2765114004 | E157: -0.9610106375
B158: 149 | C158: -1.278042706 | D158: 0.2885897779 | E158: -0.9574528396
B159: 150 | C159: -1.265451152 | D159: 0.300622401 | E159: -0.9537432422
B160: 151 | C160: -1.252859599 | D160: 0.3126073618 | E160: -0.9498824334
B161: 152 | C161: -1.240268045 | D161: 0.3245427602 | E161: -0.9458710255
B162: 153 | C162: -1.227676491 | D162: 0.336426704 | E162: -0.9417096542
B163: 154 | C163: -1.215084937 | D163: 0.3482573089 | E163: -0.9373989795
B164: 155 | C164: -1.202493384 | D164: 0.3600326993 | E164: -0.9329396848
B165: 156 | C165: -1.18990183 | D165: 0.3717510084 | E165: -0.928332477
B166: 157 | C166: -1.177310276 | D166: 0.3834103781 | E166: -0.9235780866
B167: 158 | C167: -1.164718723 | D167: 0.3950089599 | E167: -0.9186772674
B168: 159 | C168: -1.152127169 | D168: 0.406544915 | E168: -0.9136307964
B169: 160 | C169: -1.139535615 | D169: 0.4180164144 | E169: -0.9084394736
B170: 161 | C170: -1.126944062 | D170: 0.4294216393 | E170: -0.9031041223
B171: 162 | C171: -1.114352508 | D171: 0.4407587815 | E171: -0.8976255881
B172: 163 | C172: -1.101760954 | D172: 0.4520260436 | E172: -0.8920047398
B173: 164 | C173: -1.0891694 | D173: 0.4632216391 | E173: -0.8862424685
B174: 165 | C174: -1.076577847 | D174: 0.4743437931 | E174: -0.8803396878
B175: 166 | C175: -1.063986293 | D175: 0.4853907422 | E175: -0.8742973335
B176: 167 | C176: -1.051394739 | D176: 0.496360735 | E176: -0.8681163636
B177: 168 | C177: -1.038803186 | D177: 0.5072520322 | E177: -0.8617977581
B178: 169 | C178: -1.026211632 | D178: 0.518062907 | E178: -0.8553425188
B179: 170 | C179: -1.013620078 | D179: 0.5287916455 | E179: -0.848751669
B180: 171 | C180: -1.001028525 | D180: 0.5394365466 | E180: -0.8420262538
B181: 172 | C181: -0.9884369709 | D181: 0.5499959227 | E181: -0.8351673395
B182: 173 | C182: -0.9758454172 | D182: 0.5604680997 | E182: -0.8281760134
B183: 174 | C183: -0.9632538635 | D183: 0.5708514171 | E183: -0.8210533841
B184: 175 | C184: -0.9506623098 | D184: 0.5811442289 | E184: -0.8138005808
B185: 176 | C185: -0.9380707561 | D185: 0.591344903 | E185: -0.8064187533
B186: 177 | C186: -0.9254792024 | D186: 0.6014518223 | E186: -0.7989090721
B187: 178 | C187: -0.9128876487 | D187: 0.6114633843 | E187: -0.7912727277
B188: 179 | C188: -0.900296095 | D188: 0.6213780018 | E188: -0.7835109309
B189: 180 | C189: -0.8877045413 | D189: 0.6311941029 | E189: -0.7756249122
B190: 181 | C190: -0.8751129876 | D190: 0.6409101312 | E190: -0.767615922
B191: 182 | C191: -0.8625214339 | D191: 0.6505245463 | E191: -0.7594852301
B192: 183 | C192: -0.8499298802 | D192: 0.6600358239 | E192: -0.7512341254
B193: 184 | C193: -0.8373383265 | D193: 0.669442456 | E193: -0.7428639162
B194: 185 | C194: -0.8247467728 | D194: 0.6787429513 | E194: -0.7343759296
B195: 186 | C195: -0.8121552191 | D195: 0.6879358353 | E195: -0.7257715113
B196: 187 | C196: -0.7995636654 | D196: 0.6970196503 | E196: -0.7170520254
B197: 188 | C197: -0.7869721117 | D197: 0.7059929563 | E197: -0.7082188544
B198: 189 | C198: -0.774380558 | D198: 0.7148543305 | E198: -0.6992733987
B199: 190 | C199: -0.7617890043 | D199: 0.723602368 | E199: -0.6902170767
B200: 191 | C200: -0.7491974506 | D200: 0.732235682 | E200: -0.6810513241
B201: 192 | C201: -0.7366058969 | D201: 0.7407529035 | E201: -0.6717775941
B202: 193 | C202: =-3.1415926536+(B202-1)*0.0125915537 -> -0.7240143432 | D202: =1*COS(C202)+0 -> 0.7491526822 | E202: =1*SIN(C202)+0+0*COS(C202) -> -0.6623973571
B203: 194 | C203: -0.7114227895 | D203: 0.7574336865 | E203: -0.6529121002
... 306 more rows

Sheet XLSTAT_20220331_101010_1_HID1 (hidden)
B1: 106 | C1: 992 | D1: 366 | E1: 257 | F1: 548
A2: 43 | B2: -2.2 | C2: 2.8 | D2: -1.2 | E2: 1.8 | F2: -1.2
A3: 41 | B3: -1.4 | C3: 2.6 | D3: -2.4 | E3: 0.6 | F3: 0.6
A4: 44 | B4: -2.8 | C4: 2.2 | D4: -0.8 | E4: 0.2 | F4: 1.2
A5: 31 | B5: 1.4 | C5: 1.4 | D5: -2.6 | E5: -0.6 | F5: 0.4
A6: 26 | B6: -1.2 | C6: -2.2 | D6: -0.2 | E6: 0.8 | F6: 2.8
A7: 37 | B7: -0.6 | C7: -0.6 | D7: -2.6 | E7: 1.4 | F7: 2.4
A8: 45 | B8: -2.4 | C8: -2.4 | D8: -1.4 | E8: 3.6 | F8: 2.6
A9: 35 | B9: 3 | C9: -2 | D9: -5 | E9: 3 | F9: 1
A10: 46 | B10: 1.4 | C10: 0.4 | D10: 1.4 | E10: 2.4 | F10: -5.6
A11: 50 | B11: -0.4 | C11: -3.4 | D11: -1.4 | E11: 2.6 | F11: 2.6
A12: 29 | B12: -2.2 | C12: -3.2 | D12: -0.2 | E12: 2.8 | F12: 2.8
A13: 48 | B13: -0.6 | C13: -1.6 | D13: -1.6 | E13: 1.4 | F13: 2.4
A14: 51 | B14: -3.4 | C14: -3.4 | D14: -2.4 | E14: 4.6 | F14: 4.6
A15: 47 | B15: -1 | C15: 0 | D15: -1 | E15: 1 | F15: 1
A16: 55 | B16: 0.2 | C16: -2.8 | D16: -2.8 | E16: 1.2 | F16: 4.2
A17: 54 | B17: 0.2 | C17: -0.8 | D17: 1.2 | E17: -1.8 | F17: 1.2
A18: 78 | B18: -2.8 | C18: 2.2 | D18: 3.2 | E18: -0.8 | F18: -1.8
A19: 80 | B19: 4.2 | C19: -0.8 | D19: 0.2 | E19: 0.2 | F19: -3.8
A20: 76 | B20: 0.8 | C20: 2.8 | D20: -1.2 | E20: -5.2 | F20: 2.8
A21: 81 | B21: 2 | C21: -5 | D21: -1 | E21: 2 | F21: 2
A22: 83 | B22: -2.4 | C22: 1.6 | D22: 0.6 | E22: -0.4 | F22: 0.6
A23: 77 | B23: 1.6 | C23: -1.4 | D23: -1.4 | E23: -1.4 | F23: 2.6
A24: 82 | B24: -0.2 | C24: 1.8 | D24: 0.8 | E24: -3.2 | F24: 0.8
A25: 73 | B25: -5 | C25: 3 | D25: -1 | E25: 3 | F25: 0
A26: 86 | B26: 0 | C26: 2 | D26: -3 | E26: 2 | F26: -1
A27: 89 | B27: -1.4 | C27: 1.6 | D27: 0.6 | E27: -1.4 | F27: 0.6
A28: 85 | B28: -1 | C28: 0 | D28: 2 | E28: -1 | F28: 0
A29: 88 | B29: -0.4 | C29: -1.4 | D29: 0.6 | E29: 0.6 | F29: 0.6
A30: 90 | B30: -0.8 | C30: -0.8 | D30: -4.8 | E30: 3.2 | F30: 3.2
A31: 93 | B31: -1 | C31: 1 | D31: 0 | E31: -1 | F31: 1
A32: 92 | B32: -0.8 | C32: 2.2 | D32: -5.8 | E32: 2.2 | F32: 2.2
A33: 94 | B33: -1.6 | C33: 1.4 | D33: 0.4 | E33: -0.6 | F33: 0.4
A34: 96 | B34: 2.4 | C34: -5.6 | D34: -1.6 | E34: 2.4 | F34: 2.4
A35: 99 | B35: 0.8 | C35: 2.8 | D35: -4.2 | E35: -0.2 | F35: 0.8
A36: 100 | B36: -0.4 | C36: -1.4 | D36: -0.4 | E36: 2.6 | F36: -0.4
A37: 87 | B37: -2.6 | C37: 2.4 | D37: 0.4 | E37: 0.4 | F37: -0.6
A38: 84 | B38: -0.8 | C38: 3.2 | D38: -0.8 | E38: 3.2 | F38: -4.8
A39: 101 | B39: -0.8 | C39: 2.2 | D39: 0.2 | E39: 0.2 | F39: -1.8
A40: 95 | B40: 2 | C40: 2 | D40: -3 | E40: 0 | F40: -1
A41: 103 | B41: 0.4 | C41: 1.4 | D41: -2.6 | E41: 1.4 | F41: -0.6
A42: 91 | B42: 3.6 | C42: -2.4 | D42: -2.4 | E42: 4.6 | F42: -3.4
A43: 104 | B43: -1 | C43: 0 | D43: 0 | E43: 1 | F43: 0
A44: 98 | B44: -2 | C44: -1 | D44: -3 | E44: 4 | F44: 2
A45: 106 | B45: -3.2 | C45: 0.8 | D45: 0.8 | E45: 1.8 | F45: -0.2
A46: 109 | B46: 0 | C46: -2 | D46: 1 | E46: 1 | F46: 0
A47: 108 | B47: 1 | C47: 0 | D47: 2 | E47: -2 | F47: -1
A48: 107 | B48: 0.6 | C48: -1.4 | D48: -1.4 | E48: 1.6 | F48: 0.6
A49: 105 | B49: -3.8 | C49: 1.2 | D49: -3.8 | E49: 3.2 | F49: 3.2
A50: 97 | B50: -1.4 | C50: -2.4 | D50: -1.4 | E50: 2.6 | F50: 2.6
A51: 112 | B51: -0.6 | C51: 0.4 | D51: -1.6 | E51: 0.4 | F51: 1.4
A52: 115 | B52: 0.2 | C52: 0.2 | D52: -0.8 | E52: 1.2 | F52: -0.8
A53: 113 | B53: -0.2 | C53: 0.8 | D53: -0.2 | E53: -0.2 | F53: -0.2
A54: 114 | B54: -0.8 | C54: 3.2 | D54: -1.8 | E54: 0.2 | F54: -0.8
A55: 110 | B55: -0.6 | C55: 2.4 | D55: -3.6 | E55: 1.4 | F55: 0.4
A56: 102 | B56: 0 | C56: 3 | D56: -1 | E56: -2 | F56: 0
A57: 119 | B57: -3.6 | C57: 3.4 | D57: 2.4 | E57: 1.4 | F57: -3.6
A58: 117 | B58: 0.8 | C58: 0.8 | D58: -1.2 | E58: 0.8 | F58: -1.2
A59: 118 | B59: -0.4 | C59: -0.4 | D59: -2.4 | E59: 1.6 | F59: 1.6
A60: 121 | B60: 1.2 | C60: -2.8 | D60: -2.8 | E60: 1.2 | F60: 3.2
A61: 116 | B61: -3.2 | C61: 1.8 | D61: -4.2 | E61: 2.8 | F61: 2.8
A62: 60 | B62: -4.4 | C62: 1.6 | D62: -2.4 | E62: 3.6 | F62: 1.6
A63: 52 | B63: -1.4 | C63: -0.4 | D63: -1.4 | E63: 1.6 | F63: 1.6
A64: 53 | B64: -1.6 | C64: 1.4 | D64: -2.6 | E64: 0.4 | F64: 2.4
A65: 57 | B65: -1.6 | C65: 0.4 | D65: 0.4 | E65: -0.6 | F65: 1.4
A66: 59 | B66: -0.2 | C66: 1.8 | D66: -1.2 | E66: -1.2 | F66: 0.8
A67: 49 | B67: 2.4 | C67: -2.6 | D67: -3.6 | E67: 2.4 | F67: 1.4
A68: 58 | B68: 1 | C68: -3 | D68: -2 | E68: 2 | F68: 2
A69: 61 | B69: -2 | C69: 4 | D69: 3 | E69: -2 | F69: -3
A70: 64 | B70: 1 | C70: -3 | D70: -1 | E70: 2 | F70: 1
A71: 66 | B71: 0.8 | C71: -1.2 | D71: 0.8 | E71: 3.8 | F71: -4.2
A72: 56 | B72: -1.6 | C72: -1.6 | D72: -1.6 | E72: 2.4 | F72: 2.4
A73: 68 | B73: 3.2 | C73: -4.8 | D73: -4.8 | E73: 3.2 | F73: 3.2
A74: 65 | B74: -0.4 | C74: -0.4 | D74: -1.4 | E74: 2.6 | F74: -0.4
A75: 69 | B75: 0.8 | C75: 0.8 | D75: 0.8 | E75: -3.2 | F75: 0.8
A76: 63 | B76: 1.6 | C76: -2.4 | D76: -2.4 | E76: 1.6 | F76: 1.6
A77: 70 | B77: -0.8 | C77: 1.2 | D77: 1.2 | E77: -0.8 | F77: -0.8
A78: 67 | B78: 0 | C78: -1 | D78: -1 | E78: 1 | F78: 1
A79: 74 | B79: -5.4 | C79: 2.6 | D79: -1.4 | E79: 2.6 | F79: 1.6
A80: 62 | B80: 1 | C80: 1 | D80: 1 | E80: -2 | F80: -1
A81: 71 | B81: 0.4 | C81: -1.6 | D81: 0.4 | E81: 0.4 | F81: 0.4
A82: 75 | B82: -4 | C82: 4 | D82: 4 | E82: -2 | F82: -2
A83: 810 | B83: 2.2 | C83: -3.8 | D83: 0.2 | E83: -0.8 | F83: 2.2
A84: 79 | B84: -1 | C84: 2 | D84: -3 | E84: 2 | F84: 0
A85: 42 | B85: 0.6 | C85: -0.4 | D85: -1.4 | E85: 0.6 | F85: 0.6
A86: 39 | B86: -3.2 | C86: 0.8 | D86: -0.2 | E86: 1.8 | F86: 0.8
A87: 40 | B87: -1.2 | C87: -0.2 | D87: -0.2 | E87: 0.8 | F87: 0.8
A88: 38 | B88: 0.4 | C88: -0.6 | D88: 1.4 | E88: -0.6 | F88: -0.6
A89: 36 | B89: -2.4 | C89: 2.6 | D89: 2.6 | E89: -2.4 | F89: -0.4
A90: 28 | B90: 1 | C90: -1 | D90: -2 | E90: 1 | F90: 1
A91: 33 | B91: -3 | C91: 0 | D91: -1 | E91: 3 | F91: 1
A92: 27 | B92: 0.2 | C92: 0.2 | D92: 0.2 | E92: 0.2 | F92: -0.8
A93: 34 | B93: -2.2 | C93: -3.2 | D93: 0.8 | E93: 2.8 | F93: 1.8
A94: 23 | B94: 0.8 | C94: -1.2 | D94: -1.2 | E94: 0.8 | F94: 0.8
A95: 24 | B95: 1 | C95: -4 | D95: 1 | E95: 1 | F95: 1
A96: 32 | B96: -0.2 | C96: -2.2 | D96: -2.2 | E96: 0.8 | F96: 3.8
A97: 30 | B97: -2 | C97: 2 | D97: -1 | E97: 1 | F97: 0
A98: 21 | B98: -2.8 | C98: 3.2 | D98: -2.8 | E98: 1.2 | F98: 1.2
A99: 25 | B99: -3.8 | C99: 3.2 | D99: 2.2 | E99: -0.8 | F99: -0.8
A100: 17 | B100: -2.4 | C100: -2.4 | D100: 1.6 | E100: -2.4 | F100: 5.6
A101: 20 | B101: -0.8 | C101: 0.2 | D101: 0.2 | E101: 0.2 | F101: 0.2
A102: 22 | B102: -3.4 | C102: -0.4 | D102: 3.6 | E102: -3.4 | F102: 3.6
A103: 15 | B103: -0.6 | C103: -3.6 | D103: 0.4 | E103: 1.4 | F103: 2.4
A104: 6 | B104: -4 | C104: 4 | D104: 4 | E104: -4 | F104: 0
A105: 11 | B105: 0.2 | C105: -2.8 | D105: 2.2 | E105: -2.8 | F105: 3.2
A106: 9 | B106: -4.4 | C106: 2.6 | D106: 0.6 | E106: 1.6 | F106: -0.4
A107: 3 | B107: -2 | C107: -4 | D107: 0 | E107: 3 | F107: 3
A108: 19 | B108: -4 | C108: -4 | D108: 4 | E108: 0 | F108: 4
A109: 16 | B109: -0.6 | C109: 1.4 | D109: -3.6 | E109: 2.4 | F109: 0.4
A110: 18 | B110: -2 | C110: -1 | D110: -1 | E110: 2 | F110: 2
A111: 13 | B111: 0.2 | C111: 0.2 | D111: -0.8 | E111: 0.2 | F111: 0.2
A112: 12 | B112: 0.6 | C112: -0.4 | D112: 0.6 | E112: -0.4 | F112: -0.4
A113: 14 | B113: -3 | C113: 0 | D113: 2 | E113: 3 | F113: -2
A114: 10 | B114: -2.4 | C114: -0.4 | D114: 2.6 | E114: 0.6 | F114: -0.4
A115: 8 | B115: 0.6 | C115: -2.4 | D115: 0.6 | E115: 2.6 | F115: -1.4
A116: 5 | B116: -0.2 | C116: -1.2 | D116: -1.2 | E116: 1.8 | F116: 0.8
A117: 4 | B117: 0.4 | C117: -4.6 | D117: -0.6 | E117: 2.4 | F117: 2.4
A118: 1 | B118: 2.6 | C118: -2.4 | D118: 1.6 | E118: -2.4 | F118: 0.6
A119: 7 | B119: -0.6 | C119: -3.6 | D119: 0.4 | E119: 3.4 | F119: 0.4
A120: 2 | B120: 3.4 | C120: -2.6 | D120: -1.6 | E120: -0.6 | F120: 1.4

Sheet XLSTAT_20220331_101010_1_HID (hidden)
B1: 106 | C1: 992 | D1: 366 | E1: 257 | F1: 548
A2: 43 | B2: 4 | C2: 9 | D2: 5 | E2: 8 | F2: 5
A3: 41 | B3: 5 | C3: 9 | D3: 4 | E3: 7 | F3: 7
A4: 44 | B4: 4 | C4: 9 | D4: 6 | E4: 7 | F4: 8
A5: 31 | B5: 9 | C5: 9 | D5: 5 | E5: 7 | F5: 8
A6: 26 | B6: 5 | C6: 4 | D6: 6 | E6: 7 | F6: 9
A7: 37 | B7: 6 | C7: 6 | D7: 4 | E7: 8 | F7: 9
A8: 45 | B8: 2 | C8: 2 | D8: 3 | E8: 8 | F8: 7
A9: 35 | B9: 9 | C9: 4 | D9: 1 | E9: 9 | F9: 7
A10: 46 | B10: 8 | C10: 7 | D10: 8 | E10: 9 | F10: 1
A11: 50 | B11: 6 | C11: 3 | D11: 5 | E11: 9 | F11: 9
A12: 29 | B12: 3 | C12: 2 | D12: 5 | E12: 8 | F12: 8
A13: 48 | B13: 6 | C13: 5 | D13: 5 | E13: 8 | F13: 9
A14: 51 | B14: 1 | C14: 1 | D14: 2 | E14: 9 | F14: 9
A15: 47 | B15: 5 | C15: 6 | D15: 5 | E15: 7 | F15: 7
A16: 55 | B16: 5 | C16: 2 | D16: 2 | E16: 6 | F16: 9
A17: 54 | B17: 7 | C17: 6 | D17: 8 | E17: 5 | F17: 8
A18: 78 | B18: 2 | C18: 7 | D18: 8 | E18: 4 | F18: 3
A19: 80 | B19: 9 | C19: 4 | D19: 5 | E19: 5 | F19: 1
A20: 76 | B20: 7 | C20: 9 | D20: 5 | E20: 1 | F20: 9
A21: 81 | B21: 9 | C21: 2 | D21: 6 | E21: 9 | F21: 9
A22: 83 | B22: 4 | C22: 8 | D22: 7 | E22: 6 | F22: 7
A23: 77 | B23: 8 | C23: 5 | D23: 5 | E23: 5 | F23: 9
A24: 82 | B24: 6 | C24: 8 | D24: 7 | E24: 3 | F24: 7
A25: 73 | B25: 1 | C25: 9 | D25: 5 | E25: 9 | F25: 6
A26: 86 | B26: 7 | C26: 9 | D26: 4 | E26: 9 | F26: 6
A27: 89 | B27: 6 | C27: 9 | D27: 8 | E27: 6 | F27: 8
A28: 85 | B28: 6 | C28: 7 | D28: 9 | E28: 6 | F28: 7
A29: 88 | B29: 6 | C29: 5 | D29: 7 | E29: 7 | F29: 7
A30: 90 | B30: 5 | C30: 5 | D30: 1 | E30: 9 | F30: 9
A31: 93 | B31: 7 | C31: 9 | D31: 8 | E31: 7 | F31: 9
A32: 92 | B32: 6 | C32: 9 | D32: 1 | E32: 9 | F32: 9
A33: 94 | B33: 5 | C33: 8 | D33: 7 | E33: 6 | F33: 7
A34: 96 | B34: 9 | C34: 1 | D34: 5 | E34: 9 | F34: 9
A35: 99 | B35: 7 | C35: 9 | D35: 2 | E35: 6 | F35: 7
A36: 100 | B36: 5 | C36: 4 | D36: 5 | E36: 8 | F36: 5
A37: 87 | B37: 4 | C37: 9 | D37: 7 | E37: 7 | F37: 6
A38: 84 | B38: 5 | C38: 9 | D38: 5 | E38: 9 | F38: 1
A39: 101 | B39: 6 | C39: 9 | D39: 7 | E39: 7 | F39: 5
A40: 95 | B40: 9 | C40: 9 | D40: 4 | E40: 7 | F40: 6
A41: 103 | B41: 7 | C41: 8 | D41: 4 | E41: 8 | F41: 6
A42: 91 | B42: 8 | C42: 2 | D42: 2 | E42: 9 | F42: 1
A43: 104 | B43: 6 | C43: 7 | D43: 7 | E43: 8 | F43: 7
A44: 98 | B44: 3 | C44: 4 | D44: 2 | E44: 9 | F44: 7
A45: 106 | B45: 4 | C45: 8 | D45: 8 | E45: 9 | F45: 7
A46: 109 | B46: 8 | C46: 6 | D46: 9 | E46: 9 | F46: 8
A47: 108 | B47: 8 | C47: 7 | D47: 9 | E47: 5 | F47: 6
A48: 107 | B48: 7 | C48: 5 | D48: 5 | E48: 8 | F48: 7
A49: 105 | B49: 1 | C49: 6 | D49: 1 | E49: 8 | F49: 8
A50: 97 | B50: 5 | C50: 4 | D50: 5 | E50: 9 | F50: 9
A51: 112 | B51: 6 | C51: 7 | D51: 5 | E51: 7 | F51: 8
A52: 115 | B52: 8 | C52: 8 | D52: 7 | E52: 9 | F52: 7
A53: 113 | B53: 8 | C53: 9 | D53: 8 | E53: 8 | F53: 8
A54: 114 | B54: 5 | C54: 9 | D54: 4 | E54: 6 | F54: 5
A55: 110 | B55: 6 | C55: 9 | D55: 3 | E55: 8 | F55: 7
A56: 102 | B56: 6 | C56: 9 | D56: 5 | E56: 4 | F56: 6
A57: 119 | B57: 1 | C57: 8 | D57: 7 | E57: 6 | F57: 1
A58: 117 | B58: 9 | C58: 9 | D58: 7 | E58: 9 | F58: 7
A59: 118 | B59: 7 | C59: 7 | D59: 5 | E59: 9 | F59: 9
A60: 121 | B60: 6 | C60: 2 | D60: 2 | E60: 6 | F60: 8
A61: 116 | B61: 3 | C61: 8 | D61: 2 | E61: 9 | F61: 9
A62: 60 | B62: 1 | C62: 7 | D62: 3 | E62: 9 | F62: 7
A63: 52 | B63: 6 | C63: 7 | D63: 6 | E63: 9 | F63: 9
A64: 53 | B64: 4 | C64: 7 | D64: 3 | E64: 6 | F64: 8
A65: 57 | B65: 5 | C65: 7 | D65: 7 | E65: 6 | F65: 8
A66: 59 | B66: 6 | C66: 8 | D66: 5 | E66: 5 | F66: 7
A67: 49 | B67: 9 | C67: 4 | D67: 3 | E67: 9 | F67: 8
A68: 58 | B68: 8 | C68: 4 | D68: 5 | E68: 9 | F68: 9
A69: 61 | B69: 3 | C69: 9 | D69: 8 | E69: 3 | F69: 2
A70: 64 | B70: 7 | C70: 3 | D70: 5 | E70: 8 | F70: 7
A71: 66 | B71: 6 | C71: 4 | D71: 6 | E71: 9 | F71: 1
A72: 56 | B72: 5 | C72: 5 | D72: 5 | E72: 9 | F72: 9
A73: 68 | B73: 9 | C73: 1 | D73: 1 | E73: 9 | F73: 9
A74: 65 | B74: 6 | C74: 6 | D74: 5 | E74: 9 | F74: 6
A75: 69 | B75: 9 | C75: 9 | D75: 9 | E75: 5 | F75: 9
A76: 63 | B76: 9 | C76: 5 | D76: 5 | E76: 9 | F76: 9
A77: 70 | B77: 7 | C77: 9 | D77: 9 | E77: 7 | F77: 7
A78: 67 | B78: 8 | C78: 7 | D78: 7 | E78: 9 | F78: 9
A79: 74 | B79: 1 | C79: 9 | D79: 5 | E79: 9 | F79: 8
A80: 62 | B80: 9 | C80: 9 | D80: 9 | E80: 6 | F80: 7
A81: 71 | B81: 9 | C81: 7 | D81: 9 | E81: 9 | F81: 9
A82: 75 | B82: 1 | C82: 9 | D82: 9 | E82: 3 | F82: 3
A83: 810 | B83: 8 | C83: 2 | D83: 6 | E83: 5 | F83: 8
A84: 79 | B84: 6 | C84: 9 | D84: 4 | E84: 9 | F84: 7
A85: 42 | B85: 9 | C85: 8 | D85: 7 | E85: 9 | F85: 9
A86: 39 | B86: 3 | C86: 7 | D86: 6 | E86: 8 | F86: 7
A87: 40 | B87: 6 | C87: 7 | D87: 7 | E87: 8 | F87: 8
A88: 38 | B88: 8 | C88: 7 | D88: 9 | E88: 7 | F88: 7
A89: 36 | B89: 4 | C89: 9 | D89: 9 | E89: 4 | F89: 6
A90: 28 | B90: 9 | C90: 7 | D90: 6 | E90: 9 | F90: 9
A91: 33 | B91: 2 | C91: 5 | D91: 4 | E91: 8 | F91: 6
A92: 27 | B92: 9 | C92: 9 | D92: 9 | E92: 9 | F92: 8
A93: 34 | B93: 4 | C93: 3 | D93: 7 | E93: 9 | F93: 8
A94: 23 | B94: 9 | C94: 7 | D94: 7 | E94: 9 | F94: 9
A95: 24 | B95: 9 | C95: 4 | D95: 9 | E95: 9 | F95: 9
A96: 32 | B96: 5 | C96: 3 | D96: 3 | E96: 6 | F96: 9
A97: 30 | B97: 5 | C97: 9 | D97: 6 | E97: 8 | F97: 7
A98: 21 | B98: 1 | C98: 7 | D98: 1 | E98: 5 | F98: 5
A99: 25 | B99: 1 | C99: 8 | D99: 7 | E99: 4 | F99: 4
A100: 17 | B100: 1 | C100: 1 | D100: 5 | E100: 1 | F100: 9
A101: 20 | B101: 8 | C101: 9 | D101: 9 | E101: 9 | F101: 9
A102: 22 | B102: 2 | C102: 5 | D102: 9 | E102: 2 | F102: 9
A103: 15 | B103: 6 | C103: 3 | D103: 7 | E103: 8 | F103: 9
A104: 6 | B104: 1 | C104: 9 | D104: 9 | E104: 1 | F104: 5
A105: 11 | B105: 5 | C105: 2 | D105: 7 | E105: 2 | F105: 8
A106: 9 | B106: 2 | C106: 9 | D106: 7 | E106: 8 | F106: 6
A107: 3 | B107: 3 | C107: 1 | D107: 5 | E107: 8 | F107: 8
A108: 19 | B108: 1 | C108: 1 | D108: 9 | E108: 5 | F108: 9
A109: 16 | B109: 5 | C109: 7 | D109: 2 | E109: 8 | F109: 6
A110: 18 | B110: 5 | C110: 6 | D110: 6 | E110: 9 | F110: 9
A111: 13 | B111: 9 | C111: 9 | D111: 8 | E111: 9 | F111: 9
A112: 12 | B112: 8 | C112: 7 | D112: 8 | E112: 7 | F112: 7
A113: 14 | B113: 2 | C113: 5 | D113: 7 | E113: 8 | F113: 3
A114: 10 | B114: 4 | C114: 6 | D114: 9 | E114: 7 | F114: 6
A115: 8 | B115: 6 | C115: 3 | D115: 6 | E115: 8 | F115: 4
A116: 5 | B116: 5 | C116: 4 | D116: 4 | E116: 7 | F116: 6
A117: 4 | B117: 7 | C117: 2 | D117: 6 | E117: 9 | F117: 9
A118: 1 | B118: 8 | C118: 3 | D118: 7 | E118: 3 | F118: 6
A119: 7 | B119: 5 | C119: 2 | D119: 6 | E119: 9 | F119: 6
A120: 2 | B120: 9 | C120: 3 | D120: 4 | E120: 5 | F120: 7

Sheet Liking1
B1: XLSTAT 2022.1.2.12345 - Analyse de données de préférences - Début : 31/03/2022 à 10:12:13 / Fin : 31/03/2022 à 10:12:24 / Microsoft Excel 16.014931
B2: Données de préférences : Classeur = LIK_tuto_FR.xlsm / Feuille = Liking / Plage = Liking!$C$18:$DQ$23 / 5 lignes et 119 colonnes
B3: Libellés des produits : Classeur = LIK_tuto_FR.xlsm / Feuille = Liking / Plage = Liking!$B$18:$B$23 / 5 lignes et 1 colonne
B4: Groupes de sujets : Classeur = LIK_tuto_FR.xlsm / Feuille = Liking / Plage = Liking!$C$670:$C$789 / 119 lignes et 1 colonne
B5: Centrer les sujets : Oui
B6: Réduire les sujets : Non
B7: Nombre de produits : 5
B8: Nombre de sujets : 119
B9: Intervalle de confiance (%) : 95
B10: Nombre de valeurs manquantes au format horizontal : 0
B15: Groupe 3 :
B17: Résultats avant de centrer les sujets :
B19: Moyennes des produits avant de centrer :
B21: Produit | C21: Valeur
B22: 106 | C22: 4.266666667
B23: 992 | C23: 8.066666667
B24: 366 | C24: 4.266666667
B25: 257 | C25: 7.866666667
B26: 548 | C26: 6.3
B49: Box plots des données de préférences par produit avant de centrer :
B97: Moyennes des sujets avant de centrer :
B99: Sujet | C99: Valeur
B100: 43 | C100: 6.2
B101: 41 | C101: 6.4
B102: 44 | C102: 6.8
B103: 31 | C103: 7.6
B104: 73 | C104: 6
B105: 86 | C105: 7
B106: 90 | C106: 5.8
B107: 92 | C107: 6.8
B108: 99 | C108: 6.2
B109: 87 | C109: 6.6
B110: 84 | C110: 5.8
B111: 101 | C111: 6.8
B112: 95 | C112: 7
B113: 103 | C113: 6.6
B114: 98 | C114: 5
B115: 106 | C115: 7.2
B116: 105 | C116: 4.8
B117: 114 | C117: 5.8
B118: 110 | C118: 6.6
B119: 119 | C119: 4.6
B120: 116 | C120: 6.2
B121: 60 | C121: 5.4
B122: 74 | C122: 6.4
B123: 79 | C123: 7
B124: 39 | C124: 6.2
B125: 30 | C125: 7
B126: 21 | C126: 3.8
B127: 9 | C127: 6.4
B128: 16 | C128: 5.6
B129: 14 | C129: 5
B152: Résultats après centrage des sujets :
B154: Moyennes des produits :
B156: Produit | C156: Valeur
B157: 106 | C157: -1.886666667
B158: 992 | C158: 1.913333333
B159: 366 | C159: -1.886666667
B160: 257 | C160: 1.713333333
B161: 548 | C161: 0.1466666667
B184: Box plots des données de préférences par produit :
B232: ANOVA :
B234: Analyse de la variance Produit :
B236: Source | C236: DDL | D236: Somme des carrés | E236: Moyenne des carrés | F236: F | G236: Pr > F
B237: Modèle | C237: 4 | D237: 412.1066667 | E237: 103.0266667 | F237: 38.08085786 | G237: 9.364428189e-22
B238: Erreur | C238: 145 | D238: 392.2933333 | E238: 2.705471264
B239: Total corrigé | C239: 149 | D239: 804.4
B240: Calculé contre le modèle Y=Moyenne(Y)
B243: Graphiques des moyennes :
B265: Produit / Tukey (HSD) / Analyse des différences entre les modalités avec un intervalle de confiance à 95% (Produit) :
B267: Contraste | C267: Différence | D267: Différence standardisée | E267: Valeur critique | F267: Pr > Diff | G267: Significatif | H267: Borne inférieure (95%) | I267: Borne supérieure (95%) | J267: Borne inférieure (95%) | K267: Borne supérieure (95%)
B268: 992 vs 106 | C268: 3.8 | D268: 8.947624776 | E268: 2.762405867 | F268: 0 | G268: Oui | H268: 2.626823592 | I268: 4.973176408 | K268: |||||||||||||||||||||||||||||||||||||||||||||
B269: 992 vs 366 | C269: 3.8 | D269: 8.947624776 | E269: 2.762405867 | F269: 0 | G269: Oui | H269: 2.626823592 | I269: 4.973176408 | K269: |||||||||||||||||||||||||||||||||||||||||||||
B270: 992 vs 548 | C270: 1.766666667 | D270: 4.159860641 | E270: 2.762405867 | F270: 0.0005149253054 | G270: Oui | H270: 0.5934902588 | I270: 2.939843075 | K270: ||||||||||||||||||||||||||
B271: 992 vs 257 | C271: 0.2 | D271: 0.4709276198 | E271: 2.762405867 | F271: 0.9898331256 | G271: Non | H271: -0.9731764079 | I271: 1.373176408 | J271: ||||||||| | K271: ||||||||||||
B272: 257 vs 106 | C272: 3.6 | D272: 8.476697156 | E272: 2.762405867 | F272: 1.850741782e-13 | G272: Oui | H272: 2.426823592 | I272: 4.773176408 | K272: |||||||||||||||||||||||||||||||||||||||||||
B273: 257 vs 366 | C273: 3.6 | D273: 8.476697156 | E273: 2.762405867 | F273: 1.850741782e-13 | G273: Oui | H273: 2.426823592 | I273: 4.773176408 | K273: |||||||||||||||||||||||||||||||||||||||||||
B274: 257 vs 548 | C274: 1.566666667 | D274: 3.688933021 | E274: 2.762405867 | F274: 0.00289599576 | G274: Oui | H274: 0.3934902588 | I274: 2.739843075 | K274: |||||||||||||||||||||||||
B275: 548 vs 106 | C275: 2.033333333 | D275: 4.787764134 | E275: 2.762405867 | F275: 4.017752132e-05 | G275: Oui | H275: 0.8601569255 | I275: 3.206509741 | K275: |||||||||||||||||||||||||||||
B276: 548 vs 366 | C276: 2.033333333 | D276: 4.787764134 | E276: 2.762405867 | F276: 4.017752132e-05 | G276: Oui | H276: 0.8601569255 | I276: 3.206509741 | K276: |||||||||||||||||||||||||||||
B277: 366 vs 106 | C277: 0 | D277: 0 | E277: 2.762405867 | F277: 1 | G277: Non
B278: Valeur critique du d de Tukey : | E278: 3.906631841
B281: Modalité | C281: Moyennes estimées | D281: Erreur standard | E281: Borne inférieure (95%) | F281: Borne supérieure (95%) | G281: Groupes
B282: 992 | C282: 1.913333333 | D282: 0.3003038053 | E282: 1.319795006 | F282: 2.506871661 | G282: A
B283: 257 | C283: 1.713333333 | D283: 0.3003038053 | E283: 1.119795006 | F283: 2.306871661 | G283: A
B284: 548 | C284: 0.1466666667 | D284: 0.3003038053 | E284: -0.446871661 | F284: 0.7402049944 | H284: B
B285: 106 | C285: -1.886666667 | D285: 0.3003038053 | E285: -2.480204994 | F285: -1.293128339 | I285: C
B286: 366 | C286: -1.886666667 | D286: 0.3003038053 | E286: -2.480204994 | F286: -1.293128339 | I286: C
B289: Cartographie interne des préférences :
B291: Valeurs propres et pourcentages d'inertie :
C293: F1 | D293: F2 | E293: F3 | F293: F4
B294: Valeur propre | C294: 17.34650539 | D294: 7.051689317 | E294: 3.993570777 | F294: 1.608234521
B295: Inertie % | C295: 57.82168462 | D295: 23.50563106 | E295: 13.31190259 | F295: 5.360781737
B296: % cumulé | C296: 57.82168462 | D296: 81.32731567 | E296: 94.63921826 | F296: 100
B319: Corrélations entre les sujets et les facteurs :
B321: Sujet | C321: F1 | D321: F2 | E321: F3 | F321: F4
B322: 43 | C322: 0.9107526891 | D322: -0.2522773567 | E322: 0.3132522943 | F322: 0.09358779128
B323: 41 | C323: 0.9355069067 | D323: 0.2148020782 | E323: 0.09971107298 | F323: -0.262191908
B324: 44 | C324: 0.822574297 | D324: -0.2673644001 | E324: -0.1269841005 | F324: -0.4855541594
B325: 31 | C325: 0.3503969283 | D325: 0.8700662176 | E325: 0.2735828601 | F325: -0.2129769664
B326: 73 | C326: 0.8946180386 | D326: -0.4411662166 | E326: -0.07091309062 | F326: 0.001505944277
B327: 86 | C327: 0.8108550652 | D327: 0.390724176 | E327: 0.2893687876 | F327: 0.325752032
B328: 90 | C328: 0.5963288212 | D328: 0.4903166985 | E328: -0.6050575727 | F328: 0.1946453335
B329: 92 | C329: 0.8102176275 | D329: 0.5502589804 | E329: -0.2015471541 | F329: -0.01188255997
B330: 99 | C330: 0.6289269172 | D330: 0.7130686192 | E330: 0.2080559345 | F330: -0.2295578474
B331: 87 | C331: 0.698734332 | D331: -0.6036909405 | E331: 0.2771229894 | F331: -0.2655756586
B332: 84 | C332: 0.5466118887 | D332: -0.2179411127 | E332: 0.6393730055 | F332: 0.4948931948
B333: 101 | C333: 0.4991989914 | D333: -0.3800314752 | E333: 0.7785594193 | F333: -0.01488876772
B334: 95 | C334: 0.3736128551 | D334: 0.7520814335 | E334: 0.5372668278 | F334: 0.07830266679
B335: 103 | C335: 0.7386971702 | D335: 0.5381379474 | E335: 0.2607429026 | F335: 0.3110420855
B336: 98 | C336: 0.6563660597 | D336: 0.1457874412 | E336: -0.639583706 | F336: 0.3726423227
B337: 106 | C337: 0.6188558935 | D337: -0.7587792505 | E337: -0.1801325615 | F337: 0.09393451145
B338: 105 | C338: 0.8508298296 | D338: 0.08250718278 | E338: -0.5180040555 | F338: -0.03087012034
B339: 114 | C339: 0.8097674456 | D339: 0.1345026907 | E339: 0.5329361993 | F339: -0.2053404919
B340: 110 | C340: 0.8881969599 | D340: 0.4517849182 | E340: 0.0836301123 | F340: 0.001597648923
B341: 119 | C341: 0.4180283669 | D341: -0.7568431217 | E341: 0.4973680151 | F341: 0.07117465282
B342: 116 | C342: 0.8923622357 | D342: 0.17707296 | E342: -0.4109136631 | F342: -0.05903192892
B343: 60 | C343: 0.9038243736 | D343: -0.1856752197 | E343: -0.3789394028 | F343: 0.0709305536
B344: 74 | C344: 0.8792924757 | D344: -0.361487205 | E344: -0.2765535523 | F344: -0.1403206169
B345: 79 | C345: 0.9418019138 | D345: 0.291195469 | E345: 0.05159904245 | F345: 0.1598495946
B346: 39 | C346: 0.767675934 | D346: -0.5135766495 | E346: -0.3830281396 | F346: -0.01421723168
B347: 30 | C347: 0.9595213484 | D347: -0.2305816873 | E347: 0.09118551291 | F347: -0.1335517494
B348: 21 | C348: 0.9635311787 | D348: 0.05067235251 | E348: -0.04937072804 | F348: -0.2580746241
B349: 9 | C349: 0.7343784541 | D349: -0.6668706647 | E349: 0.03460508917 | F349: -0.1215495395
B350: 16 | C350: 0.8627081227 | D350: 0.4295317671 | E350: -0.09421824415 | F350: 0.2497200002
B351: 14 | C351: 0.3211496106 | D351: -0.8209990126 | E351: -0.003236645735 | F351: 0.4720307968
B374: Les sujets peuvent ne pas tous être affichés sur le graphique. Un sujet non affiché correspond à un sujet mal représenté sur les deux premiers axes.
B377: Coordonnées des produits :
B379: Produit | C379: F1 | D379: F2 | E379: F3 | F379: F4
B380: 106 | C380: -4.677040407 | D380: 3.82220313 | E380: 1.313621577 | F380: 0.6149281678
B381: 992 | C381: 5.054053462 | D381: -0.1211047403 | E381: 2.622922578 | F381: -1.13617581
B382: 366 | C382: -4.835005223 | D382: -4.286437056 | E382: 0.2938259233 | F382: -0.2011748814
B383: 257 | C383: 3.961081671 | D383: -0.7295073012 | E383: -1.036254962 | F383: 2.103440007
B384: 548 | C384: 0.4969104969 | D384: 1.314845968 | E384: -3.194115115 | F384: -1.381017483
B427: Groupe 1 :
B429: Résultats avant de centrer les sujets :
B431: Moyennes des produits avant de centrer :
B433: Produit | C433: Valeur
B434: 106 | C434: 6.672131148
B435: 992 | C435: 4.737704918
B436: 366 | C436: 5.475409836
B437: 257 | C437: 8.049180328
B438: 548 | C438: 7.557377049
B461: Box plots des données de préférences par produit avant de centrer :
B509: Moyennes des sujets avant de centrer :
B511: Sujet | C511: Valeur
B512: 26 | C512: 6.2
B513: 37 | C513: 6.6
B514: 45 | C514: 4.4
B515: 35 | C515: 6
B516: 46 | C516: 6.6
B517: 50 | C517: 6.4
B518: 29 | C518: 5.2
B519: 48 | C519: 6.6
B520: 51 | C520: 4.4
B521: 47 | C521: 6
B522: 55 | C522: 4.8
B523: 80 | C523: 4.8
B524: 81 | C524: 7
B525: 77 | C525: 6.4
B526: 88 | C526: 6.4
B527: 96 | C527: 6.6
B528: 100 | C528: 5.4
B529: 91 | C529: 4.4
B530: 104 | C530: 7
B531: 109 | C531: 8
B532: 107 | C532: 6.4
B533: 97 | C533: 6.4
B534: 112 | C534: 6.6
B535: 115 | C535: 7.8
B536: 113 | C536: 8.2
B537: 117 | C537: 8.2
B538: 118 | C538: 7.4
B539: 121 | C539: 4.8
B540: 52 | C540: 7.4
B541: 53 | C541: 5.6
B542: 49 | C542: 6.6
B543: 58 | C543: 7
B544: 64 | C544: 6
B545: 66 | C545: 5.2
B546: 56 | C546: 6.6
B547: 68 | C547: 5.8
B548: 65 | C548: 6.4
B549: 63 | C549: 7.4
B550: 67 | C550: 8
B551: 71 | C551: 8.6
B552: 810 | C552: 5.8
B553: 42 | C553: 8.4
B554: 40 | C554: 7.2
B555: 28 | C555: 8
B556: 33 | C556: 5
B557: 27 | C557: 8.8
B558: 34 | C558: 6.2
B559: 23 | C559: 8.2
B560: 24 | C560: 8
B561: 32 | C561: 5.2
B562: 20 | C562: 8.8
B563: 15 | C563: 6.6
B564: 3 | C564: 5
B565: 18 | C565: 7
... 341 more rows

Sheet XLSTAT_20220331_101135_1_HID15 (hidden)
A1: 1.125797881 | B1: 1.627656017 | C1: -1.069249218 | D1: 0.6649620606
A2: 1.978981041 | B2: 0.01786100986 | C2: 1.043766315 | D2: -1.465428815
A3: 1.754477688 | B3: -0.9156926444 | C3: 1.055722096 | D3: 1.438369738
A4: 1.978322221 | B4: 0.05409403719 | C4: -1.264123083 | D4: -0.5816073823
A5: 1.902865543 | B5: -0.5438636807 | C5: 0.2338838905 | D5: -0.05629560186
A6: 1.675630814 | B6: 1.053065217
A7: 1.808455887 | B7: -0.8038484202
A8: 1.771629834 | B8: -0.8820502872
A9: 1.135764499 | B9: 1.620717119
A10: 1.389169048 | B10: -1.409572393
A11: 1.932327387 | B11: -0.4275463079
A12: 1.088002767 | B12: -1.653159084
A13: 1.960855411 | B13: -0.2678265024
A14: 1.978897289 | B14: -0.02550484807
A15: 1.968990501 | B15: -0.1994025669
A16: 0.5586801393 | B16: 1.898568271
A17: 1.978556124 | B17: -0.04472851224
A18: 1.876173679 | B18: -0.6298073549
A19: 1.815379548 | B19: 0.7880876058
A20: 1.978448012 | B20: -0.04927920988
A21: 0.7232497382 | B21: 1.842171217
A22: -0.0127276426 | B22: 1.979020713

Sheet XLSTAT_20220331_101135_1_HID14 (hidden)
A1: -3.912545984 | B1: 1.546319336
A2: 3.819300155 | B2: -3.407744662
A3: 3.86304818 | B3: 3.344820812
A4: -4.625619181 | B4: -1.352484292
A5: 0.85581683 | B5: -0.1309111946

Sheet XLSTAT_20220331_101135_1_HID13 (hidden)
A1: 0.4757517963 | B1: 0.6878324137
A2: 0.7998386599 | B2: 0.007218829233
A3: 0.8132363166 | B3: -0.4244422819
A4: 0.8334383606 | B4: 0.02278903061
A5: 0.9517518198 | B5: -0.2720230286
A6: 0.8115087525 | B6: 0.5099999553
A7: 0.8074491795 | B7: -0.3589065966
A8: 0.8720083976 | B8: -0.4341512222
A9: 0.4718604515 | B9: 0.6733370448
A10: 0.5502620983 | B10: -0.558344043
A11: 0.7131773865 | B11: -0.1577974626
A12: 0.4338601234 | B12: -0.6592260847
A13: 0.7802795193 | B13: -0.1065756982
A14: 0.8571125547 | B14: -0.01104682169
A15: 0.8806103098 | B15: -0.08918070258
A16: 0.2605487434 | B16: 0.8854253844
A17: 0.976858533 | B17: -0.02208349226
A18: 0.8501415513 | B18: -0.2853815763
A19: 0.7752002511 | B19: 0.3365278135
A20: 0.9912177889 | B20: -0.02468926611
A21: 0.2799562879 | B21: 0.7130696193
A22: -0.005522424593 | B22: 0.8586816113

Sheet XLSTAT_20220331_101135_1_HID12 (hidden)
B1: 106 | C1: 992 | D1: 366 | E1: 257 | F1: 548
A2: 54 | B2: 0.2 | C2: -0.8 | D2: 1.2 | E2: -1.8 | F2: 1.2
A3: 78 | B3: -2.8 | C3: 2.2 | D3: 3.2 | E3: -0.8 | F3: -1.8
A4: 76 | B4: 0.8 | C4: 2.8 | D4: -1.2 | E4: -5.2 | F4: 2.8
A5: 83 | B5: -2.4 | C5: 1.6 | D5: 0.6 | E5: -0.4 | F5: 0.6
A6: 82 | B6: -0.2 | C6: 1.8 | D6: 0.8 | E6: -3.2 | F6: 0.8
A7: 89 | B7: -1.4 | C7: 1.6 | D7: 0.6 | E7: -1.4 | F7: 0.6
A8: 85 | B8: -1 | C8: 0 | D8: 2 | E8: -1 | F8: 0
A9: 93 | B9: -1 | C9: 1 | D9: 0 | E9: -1 | F9: 1
A10: 94 | B10: -1.6 | C10: 1.4 | D10: 0.4 | E10: -0.6 | F10: 0.4
A11: 108 | B11: 1 | C11: 0 | D11: 2 | E11: -2 | F11: -1
A12: 102 | B12: 0 | C12: 3 | D12: -1 | E12: -2 | F12: 0
A13: 57 | B13: -1.6 | C13: 0.4 | D13: 0.4 | E13: -0.6 | F13: 1.4
A14: 59 | B14: -0.2 | C14: 1.8 | D14: -1.2 | E14: -1.2 | F14: 0.8
A15: 61 | B15: -2 | C15: 4 | D15: 3 | E15: -2 | F15: -3
A16: 69 | B16: 0.8 | C16: 0.8 | D16: 0.8 | E16: -3.2 | F16: 0.8
A17: 70 | B17: -0.8 | C17: 1.2 | D17: 1.2 | E17: -0.8 | F17: -0.8
A18: 62 | B18: 1 | C18: 1 | D18: 1 | E18: -2 | F18: -1
A19: 75 | B19: -4 | C19: 4 | D19: 4 | E19: -2 | F19: -2
A20: 38 | B20: 0.4 | C20: -0.6 | D20: 1.4 | E20: -0.6 | F20: -0.6
A21: 36 | B21: -2.4 | C21: 2.6 | D21: 2.6 | E21: -2.4 | F21: -0.4
A22: 25 | B22: -3.8 | C22: 3.2 | D22: 2.2 | E22: -0.8 | F22: -0.8
A23: 17 | B23: -2.4 | C23: -2.4 | D23: 1.6 | E23: -2.4 | F23: 5.6
A24: 22 | B24: -3.4 | C24: -0.4 | D24: 3.6 | E24: -3.4 | F24: 3.6
A25: 6 | B25: -4 | C25: 4 | D25: 4 | E25: -4 | F25: 0
A26: 11 | B26: 0.2 | C26: -2.8 | D26: 2.2 | E26: -2.8 | F26: 3.2
A27: 19 | B27: -4 | C27: -4 | D27: 4 | E27: 0 | F27: 4
A28: 12 | B28: 0.6 | C28: -0.4 | D28: 0.6 | E28: -0.4 | F28: -0.4
A29: 10 | B29: -2.4 | C29: -0.4 | D29: 2.6 | E29: 0.6 | F29: -0.4

Sheet XLSTAT_20220331_101135_1_HID11 (hidden)
B1: 106 | C1: 992 | D1: 366 | E1: 257 | F1: 548
A2: 54 | B2: 7 | C2: 6 | D2: 8 | E2: 5 | F2: 8
A3: 78 | B3: 2 | C3: 7 | D3: 8 | E3: 4 | F3: 3
A4: 76 | B4: 7 | C4: 9 | D4: 5 | E4: 1 | F4: 9
A5: 83 | B5: 4 | C5: 8 | D5: 7 | E5: 6 | F5: 7
A6: 82 | B6: 6 | C6: 8 | D6: 7 | E6: 3 | F6: 7
A7: 89 | B7: 6 | C7: 9 | D7: 8 | E7: 6 | F7: 8
A8: 85 | B8: 6 | C8: 7 | D8: 9 | E8: 6 | F8: 7
A9: 93 | B9: 7 | C9: 9 | D9: 8 | E9: 7 | F9: 9
A10: 94 | B10: 5 | C10: 8 | D10: 7 | E10: 6 | F10: 7
A11: 108 | B11: 8 | C11: 7 | D11: 9 | E11: 5 | F11: 6
A12: 102 | B12: 6 | C12: 9 | D12: 5 | E12: 4 | F12: 6
A13: 57 | B13: 5 | C13: 7 | D13: 7 | E13: 6 | F13: 8
A14: 59 | B14: 6 | C14: 8 | D14: 5 | E14: 5 | F14: 7
A15: 61 | B15: 3 | C15: 9 | D15: 8 | E15: 3 | F15: 2
A16: 69 | B16: 9 | C16: 9 | D16: 9 | E16: 5 | F16: 9
A17: 70 | B17: 7 | C17: 9 | D17: 9 | E17: 7 | F17: 7
A18: 62 | B18: 9 | C18: 9 | D18: 9 | E18: 6 | F18: 7
A19: 75 | B19: 1 | C19: 9 | D19: 9 | E19: 3 | F19: 3
A20: 38 | B20: 8 | C20: 7 | D20: 9 | E20: 7 | F20: 7
A21: 36 | B21: 4 | C21: 9 | D21: 9 | E21: 4 | F21: 6
A22: 25 | B22: 1 | C22: 8 | D22: 7 | E22: 4 | F22: 4
A23: 17 | B23: 1 | C23: 1 | D23: 5 | E23: 1 | F23: 9
A24: 22 | B24: 2 | C24: 5 | D24: 9 | E24: 2 | F24: 9
A25: 6 | B25: 1 | C25: 9 | D25: 9 | E25: 1 | F25: 5
A26: 11 | B26: 5 | C26: 2 | D26: 7 | E26: 2 | F26: 8
A27: 19 | B27: 1 | C27: 1 | D27: 9 | E27: 5 | F27: 9
A28: 12 | B28: 8 | C28: 7 | D28: 8 | E28: 7 | F28: 7
A29: 10 | B29: 4 | C29: 6 | D29: 9 | E29: 7 | F29: 6

Sheet XLSTAT_20220331_101135_1_HID10 (hidden)
A1: 1.895605311 | B1: -0.4360849722 | C1: -0.1072909017 | D1: 1.68904213
A2: 1.769236932 | B2: -0.8082637418 | C2: -1.307038404 | D2: -1.191008613
A3: 1.823302549 | B3: -0.6775377574 | C3: -0.8484941966 | D3: 0.4094481648
A4: 1.821951391 | B4: 0.6811627737 | C4: 1.128985802 | D4: -0.1805871602
A5: 1.943704258 | B5: 0.07418458596 | C5: 1.1338377 | D5: -0.7268945211
A6: 1.895058301 | B6: -0.4384559656
A7: 1.897577676 | B7: -0.4274208216
A8: 1.807843155 | B8: -0.7177692688
A9: 1.421562929 | B9: -1.327647707
A10: 1.941476511 | B10: -0.1189897232
A11: -0.6210922886 | B11: 1.843294324
A12: 1.662138311 | B12: 1.010339463
A13: 1.69010574 | B13: 0.9628251058
A14: 1.072856739 | B14: -1.622488217
A15: 1.444364205 | B15: 1.302805296
A16: 1.885192399 | B16: 0.4791025103
A17: 1.893344838 | B17: -0.445796952
A18: 1.307785352 | B18: -1.439856614
A19: -1.437742244 | B19: -1.310109475
A20: 1.791266666 | B20: -0.7581908256
A21: 1.922577927 | B21: 0.2952688783
A22: 1.583062131 | B22: -1.130222936
A23: 0.887991671 | B23: -1.730595386
A24: 1.804313795 | B24: 0.7265957098
A25: 1.88167235 | B25: 0.4927461464
A26: 1.762134581 | B26: 0.8236329978
A27: 1.805350182 | B27: -0.7240167943
A28: 1.828628029 | B28: 0.663030261
A29: 1.828628029 | B29: 0.663030261
A30: 1.944329973 | B30: -0.05541256108
A31: 1.437742244 | B31: 1.310109475
A32: 1.297743882 | B32: 1.448913529
A33: 1.930365979 | B33: 0.2391166728
A34: 1.311345925 | B34: -1.436614584
A35: 1.898245314 | B35: 0.4244459048
A36: 1.254334736 | B36: -1.486651932
A37: 1.921997733 | B37: -0.2990222561
A38: 1.828628029 | B38: 0.663030261
A39: 1.437742244 | B39: 1.310109475
A40: 1.922779187 | B40: -0.2939554304
A41: 0.1233088525 | B41: -1.941206976
A42: 1.919176558 | B42: 0.3166242802
A43: 1.93361025 | B43: -0.2112841659
A44: 1.638512641 | B44: -1.048220359
A45: 1.942157068 | B45: -0.1073103934
A46: 1.856179317 | B46: 0.5814532999
A47: -0.1299001211 | B47: 1.940777049
A48: 1.867935308 | B48: 0.5425009505
A49: 1.145506897 | B49: 1.572038023

Sheet XLSTAT_20220331_101135_1_HID9 (hidden)
A1: -0.6154658923 | B1: 5.644659922
A2: -7.497723895 | B2: -3.980266962
A3: -4.867320802 | B3: 1.36834695
A4: 6.476339026 | B4: -0.6035095797
A5: 6.504171563 | B5: -2.429230331

Sheet XLSTAT_20220331_101135_1_HID8 (hidden)
A1: 0.8430123702 | B1: -0.1939354274
A2: 0.8438453372 | B2: -0.3855049471
A3: 0.8999161961 | B3: -0.3344081331
A4: 0.7136275323 | B4: 0.2667999331
A5: 0.9910971762 | B5: 0.03782681102
A6: 0.8802945052 | B6: -0.2036720333
A7: 0.9619621321 | B7: -0.2166776359
A8: 0.9144651436 | B8: -0.363070754
A9: 0.7197027624 | B9: -0.6721557677
A10: 0.9196437639 | B10: -0.05636336896
A11: -0.2856008933 | B11: 0.8476139783
A12: 0.8484264404 | B12: 0.515720448
A13: 0.8656427511 | B13: 0.4931422654
A14: 0.3909450202 | B14: -0.5912286937
A15: 0.5284734714 | B15: 0.4766789673
A16: 0.9066751671 | B16: 0.2304222894
A17: 0.9617470202 | B17: -0.2264478618
A18: 0.5762121497 | B18: -0.634402942
A19: -0.653519202 | B19: -0.5955043066
A20: 0.8315346322 | B20: -0.3519643062
A21: 0.9074838169 | B21: 0.1393710626
A22: 0.8081930717 | B22: -0.5770072626
A23: 0.4012135491 | B23: -0.7819198529
A24: 0.8143619295 | B24: 0.3279428921
A25: 0.956938886 | B25: 0.2505898269
A26: 0.9004788642 | B26: 0.4208895929
A27: 0.9237938264 | B27: -0.370477845
A28: 0.8799924992 | B28: 0.319070717
A29: 0.8799924992 | B29: 0.319070717
A30: 0.9879744594 | B30: -0.02815684366
A31: 0.653519202 | B31: 0.5955043066
A32: 0.5524893844 | B32: 0.616846941
A33: 0.7510066993 | B33: 0.09302807091
A34: 0.6334397191 | B34: -0.6939501784
A35: 0.815797971 | B35: 0.1824116754
A36: 0.5691162008 | B36: -0.6745230556
A37: 0.7724569463 | B37: -0.1201779871
A38: 0.8799924992 | B38: 0.319070717
A39: 0.653519202 | B39: 0.5955043066
A40: 0.8958175269 | B40: -0.1369530253
A41: 0.05364545086 | B41: -0.8445210649
A42: 0.8481370834 | B42: 0.1399250071
A43: 0.8873449409 | B43: -0.09695952726
A44: 0.8242011318 | B44: -0.527273568
A45: 0.9513612879 | B45: -0.05256575576
A46: 0.924343524 | B46: 0.289553163
A47: -0.05137307641 | B47: 0.7675411448
A48: 0.7770533235 | B48: 0.2256781403
A49: 0.4921931814 | B49: 0.6754620146

Sheet XLSTAT_20220331_101135_1_HID7 (hidden)
B1: 106 | C1: 992 | D1: 366 | E1: 257 | F1: 548
A2: 26 | B2: -1.2 | C2: -2.2 | D2: -0.2 | E2: 0.8 | F2: 2.8
A3: 37 | B3: -0.6 | C3: -0.6 | D3: -2.6 | E3: 1.4 | F3: 2.4
A4: 45 | B4: -2.4 | C4: -2.4 | D4: -1.4 | E4: 3.6 | F4: 2.6
A5: 35 | B5: 3 | C5: -2 | D5: -5 | E5: 3 | F5: 1
A6: 46 | B6: 1.4 | C6: 0.4 | D6: 1.4 | E6: 2.4 | F6: -5.6
A7: 50 | B7: -0.4 | C7: -3.4 | D7: -1.4 | E7: 2.6 | F7: 2.6
A8: 29 | B8: -2.2 | C8: -3.2 | D8: -0.2 | E8: 2.8 | F8: 2.8
A9: 48 | B9: -0.6 | C9: -1.6 | D9: -1.6 | E9: 1.4 | F9: 2.4
A10: 51 | B10: -3.4 | C10: -3.4 | D10: -2.4 | E10: 4.6 | F10: 4.6
A11: 47 | B11: -1 | C11: 0 | D11: -1 | E11: 1 | F11: 1
A12: 55 | B12: 0.2 | C12: -2.8 | D12: -2.8 | E12: 1.2 | F12: 4.2
A13: 80 | B13: 4.2 | C13: -0.8 | D13: 0.2 | E13: 0.2 | F13: -3.8
A14: 81 | B14: 2 | C14: -5 | D14: -1 | E14: 2 | F14: 2
A15: 77 | B15: 1.6 | C15: -1.4 | D15: -1.4 | E15: -1.4 | F15: 2.6
A16: 88 | B16: -0.4 | C16: -1.4 | D16: 0.6 | E16: 0.6 | F16: 0.6
A17: 96 | B17: 2.4 | C17: -5.6 | D17: -1.6 | E17: 2.4 | F17: 2.4
A18: 100 | B18: -0.4 | C18: -1.4 | D18: -0.4 | E18: 2.6 | F18: -0.4
A19: 91 | B19: 3.6 | C19: -2.4 | D19: -2.4 | E19: 4.6 | F19: -3.4
A20: 104 | B20: -1 | C20: 0 | D20: 0 | E20: 1 | F20: 0
A21: 109 | B21: 0 | C21: -2 | D21: 1 | E21: 1 | F21: 0
A22: 107 | B22: 0.6 | C22: -1.4 | D22: -1.4 | E22: 1.6 | F22: 0.6
A23: 97 | B23: -1.4 | C23: -2.4 | D23: -1.4 | E23: 2.6 | F23: 2.6
A24: 112 | B24: -0.6 | C24: 0.4 | D24: -1.6 | E24: 0.4 | F24: 1.4
A25: 115 | B25: 0.2 | C25: 0.2 | D25: -0.8 | E25: 1.2 | F25: -0.8
A26: 113 | B26: -0.2 | C26: 0.8 | D26: -0.2 | E26: -0.2 | F26: -0.2
A27: 117 | B27: 0.8 | C27: 0.8 | D27: -1.2 | E27: 0.8 | F27: -1.2
A28: 118 | B28: -0.4 | C28: -0.4 | D28: -2.4 | E28: 1.6 | F28: 1.6
A29: 121 | B29: 1.2 | C29: -2.8 | D29: -2.8 | E29: 1.2 | F29: 3.2
A30: 52 | B30: -1.4 | C30: -0.4 | D30: -1.4 | E30: 1.6 | F30: 1.6
A31: 53 | B31: -1.6 | C31: 1.4 | D31: -2.6 | E31: 0.4 | F31: 2.4
A32: 49 | B32: 2.4 | C32: -2.6 | D32: -3.6 | E32: 2.4 | F32: 1.4
A33: 58 | B33: 1 | C33: -3 | D33: -2 | E33: 2 | F33: 2
A34: 64 | B34: 1 | C34: -3 | D34: -1 | E34: 2 | F34: 1
A35: 66 | B35: 0.8 | C35: -1.2 | D35: 0.8 | E35: 3.8 | F35: -4.2
A36: 56 | B36: -1.6 | C36: -1.6 | D36: -1.6 | E36: 2.4 | F36: 2.4
A37: 68 | B37: 3.2 | C37: -4.8 | D37: -4.8 | E37: 3.2 | F37: 3.2
A38: 65 | B38: -0.4 | C38: -0.4 | D38: -1.4 | E38: 2.6 | F38: -0.4
A39: 63 | B39: 1.6 | C39: -2.4 | D39: -2.4 | E39: 1.6 | F39: 1.6
A40: 67 | B40: 0 | C40: -1 | D40: -1 | E40: 1 | F40: 1
A41: 71 | B41: 0.4 | C41: -1.6 | D41: 0.4 | E41: 0.4 | F41: 0.4
A42: 810 | B42: 2.2 | C42: -3.8 | D42: 0.2 | E42: -0.8 | F42: 2.2
A43: 42 | B43: 0.6 | C43: -0.4 | D43: -1.4 | E43: 0.6 | F43: 0.6
A44: 40 | B44: -1.2 | C44: -0.2 | D44: -0.2 | E44: 0.8 | F44: 0.8
A45: 28 | B45: 1 | C45: -1 | D45: -2 | E45: 1 | F45: 1
A46: 33 | B46: -3 | C46: 0 | D46: -1 | E46: 3 | F46: 1
A47: 27 | B47: 0.2 | C47: 0.2 | D47: 0.2 | E47: 0.2 | F47: -0.8
A48: 34 | B48: -2.2 | C48: -3.2 | D48: 0.8 | E48: 2.8 | F48: 1.8
A49: 23 | B49: 0.8 | C49: -1.2 | D49: -1.2 | E49: 0.8 | F49: 0.8
A50: 24 | B50: 1 | C50: -4 | D50: 1 | E50: 1 | F50: 1
A51: 32 | B51: -0.2 | C51: -2.2 | D51: -2.2 | E51: 0.8 | F51: 3.8
A52: 20 | B52: -0.8 | C52: 0.2 | D52: 0.2 | E52: 0.2 | F52: 0.2
A53: 15 | B53: -0.6 | C53: -3.6 | D53: 0.4 | E53: 1.4 | F53: 2.4
A54: 3 | B54: -2 | C54: -4 | D54: 0 | E54: 3 | F54: 3
A55: 18 | B55: -2 | C55: -1 | D55: -1 | E55: 2 | F55: 2
A56: 13 | B56: 0.2 | C56: 0.2 | D56: -0.8 | E56: 0.2 | F56: 0.2
A57: 8 | B57: 0.6 | C57: -2.4 | D57: 0.6 | E57: 2.6 | F57: -1.4
A58: 5 | B58: -0.2 | C58: -1.2 | D58: -1.2 | E58: 1.8 | F58: 0.8
A59: 4 | B59: 0.4 | C59: -4.6 | D59: -0.6 | E59: 2.4 | F59: 2.4
A60: 1 | B60: 2.6 | C60: -2.4 | D60: 1.6 | E60: -2.4 | F60: 0.6
A61: 7 | B61: -0.6 | C61: -3.6 | D61: 0.4 | E61: 3.4 | F61: 0.4
A62: 2 | B62: 3.4 | C62: -2.6 | D62: -1.6 | E62: -0.6 | F62: 1.4

Sheet XLSTAT_20220331_101135_1_HID6 (hidden)
B1: 106 | C1: 992 | D1: 366 | E1: 257 | F1: 548
A2: 26 | B2: 5 | C2: 4 | D2: 6 | E2: 7 | F2: 9
A3: 37 | B3: 6 | C3: 6 | D3: 4 | E3: 8 | F3: 9
A4: 45 | B4: 2 | C4: 2 | D4: 3 | E4: 8 | F4: 7
A5: 35 | B5: 9 | C5: 4 | D5: 1 | E5: 9 | F5: 7
A6: 46 | B6: 8 | C6: 7 | D6: 8 | E6: 9 | F6: 1
A7: 50 | B7: 6 | C7: 3 | D7: 5 | E7: 9 | F7: 9
A8: 29 | B8: 3 | C8: 2 | D8: 5 | E8: 8 | F8: 8
A9: 48 | B9: 6 | C9: 5 | D9: 5 | E9: 8 | F9: 9
A10: 51 | B10: 1 | C10: 1 | D10: 2 | E10: 9 | F10: 9
A11: 47 | B11: 5 | C11: 6 | D11: 5 | E11: 7 | F11: 7
A12: 55 | B12: 5 | C12: 2 | D12: 2 | E12: 6 | F12: 9
A13: 80 | B13: 9 | C13: 4 | D13: 5 | E13: 5 | F13: 1
A14: 81 | B14: 9 | C14: 2 | D14: 6 | E14: 9 | F14: 9
A15: 77 | B15: 8 | C15: 5 | D15: 5 | E15: 5 | F15: 9
A16: 88 | B16: 6 | C16: 5 | D16: 7 | E16: 7 | F16: 7
A17: 96 | B17: 9 | C17: 1 | D17: 5 | E17: 9 | F17: 9
A18: 100 | B18: 5 | C18: 4 | D18: 5 | E18: 8 | F18: 5
A19: 91 | B19: 8 | C19: 2 | D19: 2 | E19: 9 | F19: 1
A20: 104 | B20: 6 | C20: 7 | D20: 7 | E20: 8 | F20: 7
A21: 109 | B21: 8 | C21: 6 | D21: 9 | E21: 9 | F21: 8
A22: 107 | B22: 7 | C22: 5 | D22: 5 | E22: 8 | F22: 7
A23: 97 | B23: 5 | C23: 4 | D23: 5 | E23: 9 | F23: 9
A24: 112 | B24: 6 | C24: 7 | D24: 5 | E24: 7 | F24: 8
A25: 115 | B25: 8 | C25: 8 | D25: 7 | E25: 9 | F25: 7
A26: 113 | B26: 8 | C26: 9 | D26: 8 | E26: 8 | F26: 8
A27: 117 | B27: 9 | C27: 9 | D27: 7 | E27: 9 | F27: 7
A28: 118 | B28: 7 | C28: 7 | D28: 5 | E28: 9 | F28: 9
A29: 121 | B29: 6 | C29: 2 | D29: 2 | E29: 6 | F29: 8
A30: 52 | B30: 6 | C30: 7 | D30: 6 | E30: 9 | F30: 9
A31: 53 | B31: 4 | C31: 7 | D31: 3 | E31: 6 | F31: 8
A32: 49 | B32: 9 | C32: 4 | D32: 3 | E32: 9 | F32: 8
A33: 58 | B33: 8 | C33: 4 | D33: 5 | E33: 9 | F33: 9
A34: 64 | B34: 7 | C34: 3 | D34: 5 | E34: 8 | F34: 7
A35: 66 | B35: 6 | C35: 4 | D35: 6 | E35: 9 | F35: 1
A36: 56 | B36: 5 | C36: 5 | D36: 5 | E36: 9 | F36: 9
A37: 68 | B37: 9 | C37: 1 | D37: 1 | E37: 9 | F37: 9
A38: 65 | B38: 6 | C38: 6 | D38: 5 | E38: 9 | F38: 6
A39: 63 | B39: 9 | C39: 5 | D39: 5 | E39: 9 | F39: 9
A40: 67 | B40: 8 | C40: 7 | D40: 7 | E40: 9 | F40: 9
A41: 71 | B41: 9 | C41: 7 | D41: 9 | E41: 9 | F41: 9
A42: 810 | B42: 8 | C42: 2 | D42: 6 | E42: 5 | F42: 8
A43: 42 | B43: 9 | C43: 8 | D43: 7 | E43: 9 | F43: 9
A44: 40 | B44: 6 | C44: 7 | D44: 7 | E44: 8 | F44: 8
A45: 28 | B45: 9 | C45: 7 | D45: 6 | E45: 9 | F45: 9
A46: 33 | B46: 2 | C46: 5 | D46: 4 | E46: 8 | F46: 6
A47: 27 | B47: 9 | C47: 9 | D47: 9 | E47: 9 | F47: 8
A48: 34 | B48: 4 | C48: 3 | D48: 7 | E48: 9 | F48: 8
A49: 23 | B49: 9 | C49: 7 | D49: 7 | E49: 9 | F49: 9
A50: 24 | B50: 9 | C50: 4 | D50: 9 | E50: 9 | F50: 9
A51: 32 | B51: 5 | C51: 3 | D51: 3 | E51: 6 | F51: 9
A52: 20 | B52: 8 | C52: 9 | D52: 9 | E52: 9 | F52: 9
A53: 15 | B53: 6 | C53: 3 | D53: 7 | E53: 8 | F53: 9
A54: 3 | B54: 3 | C54: 1 | D54: 5 | E54: 8 | F54: 8
A55: 18 | B55: 5 | C55: 6 | D55: 6 | E55: 9 | F55: 9
A56: 13 | B56: 9 | C56: 9 | D56: 8 | E56: 9 | F56: 9
A57: 8 | B57: 6 | C57: 3 | D57: 6 | E57: 8 | F57: 4
A58: 5 | B58: 5 | C58: 4 | D58: 4 | E58: 7 | F58: 6
A59: 4 | B59: 7 | C59: 2 | D59: 6 | E59: 9 | F59: 9
A60: 1 | B60: 8 | C60: 3 | D60: 7 | E60: 3 | F60: 6
A61: 7 | B61: 5 | C61: 2 | D61: 6 | E61: 9 | F61: 6
A62: 2 | B62: 9 | C62: 3 | D62: 4 | E62: 5 | F62: 7

Sheet XLSTAT_20220331_101135_1_HID5 (hidden)
A1: 2.107729791 | B1: -0.583838518 | C1: -1.122962165 | D1: 1.439352541
A2: 2.131627788 | B2: 0.4894438252 | C2: 1.213483384 | D2: -0.04560522029
A3: 2.079982911 | B3: -0.6760646244 | C3: -1.160889679 | D3: -1.614172209
A4: 0.8170299594 | B4: 2.028756844 | C4: 0.9510597437 | D4: -0.274715433
A5: 1.961556677 | B5: -0.9673095113 | C5: 0.1193087164 | D5: 0.4951403209
A6: 1.970280966 | B6: 0.9494130825
A7: 1.68936666 | B7: 1.389040163
A8: 1.809283413 | B8: 1.228774112
A9: 1.446705531 | B9: 1.640254673
A10: 1.654965614 | B10: -1.429853525
A11: 0.9730376407 | B11: 1.958721531
A12: 1.767754874 | B12: 1.287802388
A13: 1.382323516 | B13: -1.694866951
A14: 2.176885348 | B14: 0.2110982374
A15: 2.157536761 | B15: 0.3583677032
A16: 1.949404224 | B16: 0.9915722158
A17: 1.05742835 | B17: -1.914481018
A18: 2.145269393 | B18: 0.4256894635
A19: 2.142357338 | B19: -0.4401105802
A20: 2.022825402 | B20: -0.8316066849
A21: 2.089499772 | B21: 0.6460518471
A22: 1.81781291 | B22: -1.21612027
A23: 2.126555885 | B23: -0.5110306769
A24: 2.184078565 | B24: 0.1148612535
A25: 1.619139077 | B25: -1.470299607
A26: 1.957850247 | B26: 0.9747895657
A27: 0.7967380949 | B27: -2.036811404

Sheet XLSTAT_20220331_101135_1_HID4 (hidden)
A1: -4.677040407 | B1: 3.82220313
A2: 5.054053462 | B2: -0.1211047403
A3: -4.835005223 | B3: -4.286437056
A4: 3.961081671 | B4: -0.7295073012
A5: 0.4969104969 | B5: 1.314845968

Sheet XLSTAT_20220331_101135_1_HID3 (hidden)
A1: 0.9107526891 | B1: -0.2522773567
A2: 0.9355069067 | B2: 0.2148020782
A3: 0.822574297 | B3: -0.2673644001
A4: 0.3503969283 | B4: 0.8700662176
A5: 0.8946180386 | B5: -0.4411662166
A6: 0.8108550652 | B6: 0.390724176
A7: 0.5963288212 | B7: 0.4903166985
A8: 0.8102176275 | B8: 0.5502589804
A9: 0.6289269172 | B9: 0.7130686192
A10: 0.698734332 | B10: -0.6036909405
A11: 0.3736128551 | B11: 0.7520814335
A12: 0.7386971702 | B12: 0.5381379474
A13: 0.6188558935 | B13: -0.7587792505
A14: 0.8508298296 | B14: 0.08250718278
A15: 0.8097674456 | B15: 0.1345026907
A16: 0.8881969599 | B16: 0.4517849182
A17: 0.4180283669 | B17: -0.7568431217
A18: 0.8923622357 | B18: 0.17707296
A19: 0.9038243736 | B19: -0.1856752197
A20: 0.8792924757 | B20: -0.361487205
A21: 0.9418019138 | B21: 0.291195469
A22: 0.767675934 | B22: -0.5135766495
A23: 0.9595213484 | B23: -0.2305816873
A24: 0.9635311787 | B24: 0.05067235251
A25: 0.7343784541 | B25: -0.6668706647
A26: 0.8627081227 | B26: 0.4295317671
A27: 0.3211496106 | B27: -0.8209990126

Sheet XLSTAT_20220331_101135_1_HID2 (hidden)
B2: Modalité | C2: Moyenne estimées | D2: Erreur standard | E2: Borne inférieure (95%) | F2: Borne supérieure (95%)
B3: 106 | C3: -1.886666667 | D3: 0.3003038053 | E3: -2.480204994 | F3: -1.293128339
B4: 257 | C4: 1.713333333 | D4: 0.3003038053 | E4: 1.119795006 | F4: 2.306871661
B5: 366 | C5: -1.886666667 | D5: 0.3003038053 | E5: -2.480204994 | F5: -1.293128339
B6: 548 | C6: 0.1466666667 | D6: 0.3003038053 | E6: -0.446871661 | F6: 0.7402049944
B7: 992 | C7: 1.913333333 | D7: 0.3003038053 | E7: 1.319795006 | F7: 2.506871661
B10: 1 | C10: =-3.1415926536+(B10-1)*0.0125915537 -> -3.141592654 | D10: =1*COS(C10)+0 -> -1 | E10: =1*SIN(C10)+0+0*COS(C10) -> 1.020682388e-11 | F10: Modalité | G10: Moyenne estimées | H10: Erreur standard | I10: Borne inférieure (95%) | J10: Borne supérieure (95%)
B11: 2 | C11: -3.1290011 | D11: -0.9999207274 | E11: -0.01259122097 | F11: 106 | G11: 0.1737704918 | H11: 0.2040721339 | I11: -0.2278236749 | J11: 0.5753646585
B12: 3 | C12: -3.116409546 | D12: -0.9996829223 | E12: -0.02518044567 | F12: 257 | G12: 1.550819672 | H12: 0.2040721339 | I12: 1.149225505 | J12: 1.952413839
B13: 4 | C13: -3.103817993 | D13: -0.9992866223 | E13: -0.03776567813 | F13: 366 | G13: -1.02295082 | H13: 0.2040721339 | I13: -1.424544986 | J13: -0.621356653
B14: 5 | C14: -3.091226439 | D14: -0.9987318903 | E14: -0.05034492303 | F14: 548 | G14: 1.059016393 | H14: 0.2040721339 | I14: 0.6574222267 | J14: 1.46061056
B15: 6 | C15: -3.078634885 | D15: -0.9980188142 | E15: -0.06291618598 | F15: 992 | G15: -1.760655738 | H15: 0.2040721339 | I15: -2.162249904 | J15: -1.359061571
B16: 7 | C16: -3.066043331 | D16: -0.9971475071 | E16: -0.07547747389
B17: 8 | C17: -3.053451778 | D17: -0.9961181071 | E17: -0.0880267952
B18: 9 | C18: -3.040860224 | D18: -0.9949307774 | E18: -0.1005621603 | F18: Modalité | G18: Moyenne estimées | H18: Erreur standard | I18: Borne inférieure (95%) | J18: Borne supérieure (95%)
B19: 10 | C19: -3.02826867 | D19: -0.9935857064 | E19: -0.1130815818 | F19: 106 | G19: -1.3 | H19: 0.3220071219 | I19: -1.936830998 | J19: -0.6631690018
B20: 11 | C20: -3.015677117 | D20: -0.9920831071 | E20: -0.1255830747 | F20: 257 | G20: -1.692857143 | H20: 0.3220071219 | I20: -2.329688141 | J20: -1.056026145
B21: 12 | C21: -3.003085563 | D21: -0.9904232179 | E21: -0.138064657 | F21: 366 | G21: 1.521428571 | H21: 0.3220071219 | I21: 0.8845975733 | J21: 2.15825957
B22: 13 | C22: -2.990494009 | D22: -0.9886063019 | E22: -0.1505243499 | F22: 548 | G22: 0.5214285714 | H22: 0.3220071219 | I22: -0.1154024267 | J22: 1.15825957
B23: 14 | C23: -2.977902456 | D23: -0.9866326472 | E23: -0.1629601778 | F23: 992 | G23: 0.95 | H23: 0.3220071219 | I23: 0.3131690018 | J23: 1.586830998
B24: 15 | C24: -2.965310902 | D24: -0.9845025667 | E24: -0.1753701692
B25: 16 | C25: -2.952719348 | D25: -0.9822163981 | E25: -0.1877523566
B26: 17 | C26: -2.940127794 | D26: -0.9797745038 | E26: -0.2001047767 | F26: Modalité | G26: Moyenne estimées | H26: Erreur standard | I26: Borne inférieure (95%) | J26: Borne supérieure (95%)
B27: 18 | C27: -2.927536241 | D27: -0.9771772711 | E27: -0.2124254711 | F27: 1 | G27: 0.1737704918 | H27: 0.2196317063 | I27: -0.2612377767 | J27: 0.6087787603
B28: 19 | C28: -2.914944687 | D28: -0.9744251117 | E28: -0.2247124866 | F28: 2 | G28: -1.3 | H28: 0.3241760584 | I28: -1.942071531 | J28: -0.6579284694
B29: 20 | C29: -2.902353133 | D29: -0.971518462 | E29: -0.2369638749 | F29: 3 | G29: -1.886666667 | H29: 0.3131838263 | I29: -2.506966697 | J29: -1.266366637
B30: 21 | C30: -2.88976158 | D30: -0.9684577827 | E30: -0.2491776938
B31: 22 | C31: -2.877170026 | D31: -0.9652435592 | E31: -0.2613520068
B32: 23 | C32: -2.864578472 | D32: -0.961876301 | E32: -0.2734848837 | F32: Modalité | G32: Moyenne estimées | H32: Erreur standard | I32: Borne inférieure (95%) | J32: Borne supérieure (95%)
B33: 24 | C33: -2.851986919 | D33: -0.958356542 | E33: -0.285574401 | F33: 1 | G33: -1.760655738 | H33: 0.2062101977 | I33: -2.169081017 | J33: -1.352230458
B34: 25 | C34: -2.839395365 | D34: -0.9546848402 | E34: -0.2976186417 | F34: 2 | G34: 0.95 | H34: 0.3043659324 | I34: 0.34716492 | J34: 1.55283508
B35: 26 | C35: -2.826803811 | D35: -0.9508617778 | E35: -0.3096156965 | F35: 3 | G35: 1.913333333 | H35: 0.2940454264 | I35: 1.330939316 | J35: 2.495727351
B36: 27 | C36: -2.814212257 | D36: -0.9468879609 | E36: -0.3215636633
B37: 28 | C37: -2.801620704 | D37: -0.9427640195 | E37: -0.3334606476
B38: 29 | C38: -2.78902915 | D38: -0.9384906075 | E38: -0.3453047635 | F38: Modalité | G38: Moyenne estimées | H38: Erreur standard | I38: Borne inférieure (95%) | J38: Borne supérieure (95%)
B39: 30 | C39: -2.776437596 | D39: -0.9340684023 | E39: -0.3570941329 | F39: 1 | G39: -1.02295082 | H39: 0.2021121086 | I39: -1.423259317 | J39: -0.6226423219
B40: 31 | C40: -2.763846043 | D40: -0.9294981052 | E40: -0.3688268868 | F40: 2 | G40: 1.521428571 | H40: 0.2983171594 | I40: 0.9305738486 | J40: 2.112283294
B41: 32 | C41: -2.751254489 | D41: -0.9247804407 | E41: -0.380501165 | F41: 3 | G41: -1.886666667 | H41: 0.2882017564 | I41: -2.457486559 | J41: -1.315846774
B42: 33 | C42: -2.738662935 | D42: -0.9199161567 | E42: -0.3921151165
B43: 34 | C43: -2.726071382 | D43: -0.9149060245 | E43: -0.4036669002
B44: 35 | C44: -2.713479828 | D44: -0.9097508384 | E44: -0.4151546844 | F44: Modalité | G44: Moyenne estimées | H44: Erreur standard | I44: Borne inférieure (95%) | J44: Borne supérieure (95%)
B45: 36 | C45: -2.700888274 | D45: -0.9044514158 | E45: -0.4265766479 | F45: 1 | G45: 1.550819672 | H45: 0.1681482701 | I45: 1.217780836 | J45: 1.883858508
B46: 37 | C46: -2.68829672 | D46: -0.8990085968 | E46: -0.4379309797 | F46: 2 | G46: -1.692857143 | H46: 0.2481865863 | I46: -2.184421949 | J46: -1.201292337
B47: 38 | C47: -2.675705167 | D47: -0.8934232443 | E47: -0.4492158797 | F47: 3 | G47: 1.713333333 | H47: 0.2397710217 | I47: 1.238436613 | J47: 2.188230054
B48: 39 | C48: -2.663113613 | D48: -0.8876962439 | E48: -0.4604295587
B49: 40 | C49: -2.650522059 | D49: -0.8818285037 | E49: -0.4715702388
B50: 41 | C50: -2.637930506 | D50: -0.8758209538 | E50: -0.4826361538 | F50: Modalité | G50: Moyenne estimées | H50: Erreur standard | I50: Borne inférieure (95%) | J50: Borne supérieure (95%)
B51: 42 | C51: -2.625338952 | D51: -0.8696745467 | E51: -0.4936255491 | F51: 1 | G51: 1.059016393 | H51: 0.2421781899 | I51: 0.5793519733 | J51: 1.538680814
B52: 43 | C52: -2.612747398 | D52: -0.863390257 | E52: -0.5045366826 | F52: 2 | G52: 0.5214285714 | H52: 0.3574546332 | I52: -0.1865553698 | J52: 1.229412513
B53: 44 | C53: -2.600155845 | D53: -0.856969081 | E53: -0.5153678242 | F53: 3 | G53: 0.1466666667 | H53: 0.345333984 | I53: -0.5373108015 | J53: 0.8306441349
B54: 45 | C54: -2.587564291 | D54: -0.8504120367 | E54: -0.5261172567
B55: 46 | C55: -2.574972737 | D55: -0.8437201637 | E55: -0.5367832759
B56: 47 | C56: -2.562381183 | D56: -0.836894523 | E56: -0.5473641908
B57: 48 | C57: -2.54978963 | D57: -0.8299361968 | E57: -0.5578583237
B58: 49 | C58: -2.537198076 | D58: -0.8228462882 | E58: -0.5682640109
B59: 50 | C59: -2.524606522 | D59: -0.8156259213 | E59: -0.5785796025
B60: 51 | C60: -2.512014969 | D60: -0.8082762409 | E60: -0.5888034633
B61: 52 | C61: -2.499423415 | D61: -0.8007984123 | E61: -0.5989339721
B62: 53 | C62: -2.486831861 | D62: -0.7931936209 | E62: -0.6089695228
B63: 54 | C63: -2.474240308 | D63: -0.7854630726 | E63: -0.6189085244
B64: 55 | C64: -2.461648754 | D64: -0.7776079929 | E64: -0.628749401
B65: 56 | C65: -2.4490572 | D65: -0.7696296273 | E65: -0.6384905925
B66: 57 | C66: -2.436465646 | D66: -0.7615292407 | E66: -0.6481305545
B67: 58 | C67: -2.423874093 | D67: -0.7533081173 | E67: -0.6576677584
B68: 59 | C68: -2.411282539 | D68: -0.7449675605 | E68: -0.6671006924
B69: 60 | C69: -2.398690985 | D69: -0.7365088928 | E69: -0.6764278608
B70: 61 | C70: -2.386099432 | D70: -0.7279334552 | E70: -0.6856477848
B71: 62 | C71: -2.373507878 | D71: -0.7192426073 | E71: -0.6947590028
B72: 63 | C72: -2.360916324 | D72: -0.7104377269 | E72: -0.70376007
B73: 64 | C73: -2.348324771 | D73: -0.7015202101 | E73: -0.7126495596
B74: 65 | C74: =-3.1415926536+(B74-1)*0.0125915537 -> -2.335733217 | D74: =1*COS(C74)+0 -> -0.6924914707 | E74: =1*SIN(C74)+0+0*COS(C74) -> -0.721426062
B75: 66 | C75: -2.323141663 | D75: -0.6833529402 | E75: -0.7300881858
B76: 67 | C76: -2.310550109 | D76: -0.6741060674 | E76: -0.7386345578
B77: 68 | C77: -2.297958556 | D77: -0.6647523183 | E77: -0.7470638228
B78: 69 | C78: -2.285367002 | D78: -0.655293176 | E78: -0.7553746444
B79: 70 | C79: -2.272775448 | D79: -0.6457301402 | E79: -0.7635657051
B80: 71 | C80: -2.260183895 | D80: -0.636064727 | E80: -0.7716357062
B81: 72 | C81: -2.247592341 | D81: -0.6262984688 | E81: -0.7795833682
B82: 73 | C82: -2.235000787 | D82: -0.6164329141 | E82: -0.787407431
B83: 74 | C83: -2.222409234 | D83: -0.6064696269 | E83: -0.7951066543
B84: 75 | C84: -2.20981768 | D84: -0.5964101869 | E84: -0.8026798172
B85: 76 | C85: -2.197226126 | D85: -0.586256189 | E85: -0.8101257192
B86: 77 | C86: -2.184634572 | D86: -0.576009243 | E86: -0.8174431797
B87: 78 | C87: -2.172043019 | D87: -0.5656709736 | E87: -0.8246310385
B88: 79 | C88: -2.159451465 | D88: -0.5552430197 | E88: -0.8316881561
B89: 80 | C89: -2.146859911 | D89: -0.5447270348 | E89: -0.8386134136
B90: 81 | C90: -2.134268358 | D90: -0.5341246861 | E90: -0.8454057131
B91: 82 | C91: -2.121676804 | D91: -0.5234376546 | E91: -0.8520639775
B92: 83 | C92: -2.10908525 | D92: -0.5126676345 | E92: -0.8585871514
B93: 84 | C93: -2.096493697 | D93: -0.5018163335 | E93: -0.8649742005
B94: 85 | C94: -2.083902143 | D94: -0.4908854719 | E94: -0.8712241121
B95: 86 | C95: -2.071310589 | D95: -0.4798767828 | E95: -0.8773358954
B96: 87 | C96: -2.058719035 | D96: -0.4687920116 | E96: -0.8833085813
B97: 88 | C97: -2.046127482 | D97: -0.4576329157 | E97: -0.889141223
B98: 89 | C98: -2.033535928 | D98: -0.4464012644 | E98: -0.8948328957
B99: 90 | C99: -2.020944374 | D99: -0.4350988383 | E99: -0.9003826969
B100: 91 | C100: -2.008352821 | D100: -0.4237274294 | E100: -0.9057897469
B101: 92 | C101: -1.995761267 | D101: -0.4122888406 | E101: -0.9110531883
B102: 93 | C102: -1.983169713 | D102: -0.4007848854 | E102: -0.9161721867
B103: 94 | C103: -1.97057816 | D103: -0.3892173877 | E103: -0.9211459304
B104: 95 | C104: -1.957986606 | D104: -0.3775881814 | E104: -0.925973631
B105: 96 | C105: -1.945395052 | D105: -0.3658991104 | E105: -0.9306545229
B106: 97 | C106: -1.932803498 | D106: -0.3541520279 | E106: -0.9351878641
B107: 98 | C107: -1.920211945 | D107: -0.3423487963 | E107: -0.9395729358
B108: 99 | C108: -1.907620391 | D108: -0.330491287 | E108: -0.9438090428
B109: 100 | C109: -1.895028837 | D109: -0.3185813799 | E109: -0.9478955134
B110: 101 | C110: -1.882437284 | D110: -0.3066209633 | E110: -0.9518316999
B111: 102 | C111: -1.86984573 | D111: -0.2946119334 | E111: -0.955616978
B112: 103 | C112: -1.857254176 | D112: -0.2825561942 | E112: -0.9592507478
B113: 104 | C113: -1.844662623 | D113: -0.2704556571 | E113: -0.962732433
B114: 105 | C114: -1.832071069 | D114: -0.2583122406 | E114: -0.9660614817
B115: 106 | C115: -1.819479515 | D115: -0.2461278699 | E115: -0.969237366
B116: 107 | C116: -1.806887961 | D116: -0.2339044769 | E116: -0.9722595825
B117: 108 | C117: -1.794296408 | D117: -0.2216439994 | E117: -0.9751276519
B118: 109 | C118: -1.781704854 | D118: -0.2093483814 | E118: -0.9778411196
B119: 110 | C119: -1.7691133 | D119: -0.1970195722 | E119: -0.9803995554
B120: 111 | C120: -1.756521747 | D120: -0.1846595265 | E120: -0.9828025536
B121: 112 | C121: -1.743930193 | D121: -0.1722702039 | E121: -0.9850497332
B122: 113 | C122: -1.731338639 | D122: -0.1598535688 | E122: -0.987140738
B123: 114 | C123: -1.718747085 | D123: -0.1474115896 | E123: -0.9890752364
B124: 115 | C124: -1.706155532 | D124: -0.134946239 | E124: -0.9908529218
B125: 116 | C125: -1.693563978 | D125: -0.1224594934 | E125: -0.9924735122
B126: 117 | C126: -1.680972424 | D126: -0.1099533324 | E126: -0.9939367508
B127: 118 | C127: -1.668380871 | D127: -0.09742973887 | E127: -0.9952424056
B128: 119 | C128: -1.655789317 | D128: -0.08489069831 | E128: -0.9963902696
B129: 120 | C129: -1.643197763 | D129: -0.07233819875 | E129: -0.9973801607
B130: 121 | C130: -1.63060621 | D130: -0.05977423031 | E130: -0.9982119221
B131: 122 | C131: -1.618014656 | D131: -0.04720078496 | E131: -0.9988854218
B132: 123 | C132: -1.605423102 | D132: -0.03461985616 | E132: -0.9994005531
B133: 124 | C133: -1.592831548 | D133: -0.02203343854 | E133: -0.9997572343
B134: 125 | C134: -1.580239995 | D134: -0.009443527637 | E134: -0.9999554089
B135: 126 | C135: -1.567648441 | D135: 0.003147880496 | E135: -0.9999950454
B136: 127 | C136: -1.555056887 | D136: 0.01573878955 | E136: -0.9998761376
B137: 128 | C137: -1.542465334 | D137: 0.02832720329 | E137: -0.9995987043
B138: 129 | C138: =-3.1415926536+(B138-1)*0.0125915537 -> -1.52987378 | D138: =1*COS(C138)+0 -> 0.04091112589 | E138: =1*SIN(C138)+0+0*COS(C138) -> -0.9991627894
B139: 130 | C139: -1.517282226 | D139: 0.05348856224 | E139: -0.9985684622
B140: 131 | C140: -1.504690673 | D140: 0.06605751823 | E140: -0.9978158168
B141: 132 | C141: -1.492099119 | D141: 0.07861600112 | E141: -0.9969049726
B142: 133 | C142: -1.479507565 | D142: 0.09116201984 | E142: -0.9958360739
B143: 134 | C143: -1.466916011 | D143: 0.1036935853 | E143: -0.9946092903
B144: 135 | C144: -1.454324458 | D144: 0.1162087106 | E144: -0.9932248162
B145: 136 | C145: -1.441732904 | D145: 0.1287054115 | E145: -0.9916828712
B146: 137 | C146: -1.42914135 | D146: 0.1411817069 | E146: -0.9899836997
B147: 138 | C147: -1.416549797 | D147: 0.1536356186 | E147: -0.9881275711
B148: 139 | C148: -1.403958243 | D148: 0.1660651721 | E148: -0.9861147796
B149: 140 | C149: -1.391366689 | D149: 0.1784683968 | E149: -0.9839456445
B150: 141 | C150: -1.378775136 | D150: 0.1908433262 | E150: -0.9816205096
B151: 142 | C151: -1.366183582 | D151: 0.2031879983 | E151: -0.9791397435
B152: 143 | C152: -1.353592028 | D152: 0.2155004559 | E152: -0.9765037396
B153: 144 | C153: -1.341000474 | D153: 0.227778747 | E153: -0.9737129158
B154: 145 | C154: -1.328408921 | D154: 0.2400209249 | E154: -0.9707677145
B155: 146 | C155: -1.315817367 | D155: 0.2522250486 | E155: -0.9676686028
B156: 147 | C156: -1.303225813 | D156: 0.2643891833 | E156: -0.9644160719
B157: 148 | C157: -1.29063426 | D157: 0.2765114004 | E157: -0.9610106375
B158: 149 | C158: -1.278042706 | D158: 0.2885897779 | E158: -0.9574528396
B159: 150 | C159: -1.265451152 | D159: 0.300622401 | E159: -0.9537432422
B160: 151 | C160: -1.252859599 | D160: 0.3126073618 | E160: -0.9498824334
B161: 152 | C161: -1.240268045 | D161: 0.3245427602 | E161: -0.9458710255
B162: 153 | C162: -1.227676491 | D162: 0.336426704 | E162: -0.9417096542
B163: 154 | C163: -1.215084937 | D163: 0.3482573089 | E163: -0.9373989795
B164: 155 | C164: -1.202493384 | D164: 0.3600326993 | E164: -0.9329396848
B165: 156 | C165: -1.18990183 | D165: 0.3717510084 | E165: -0.928332477
B166: 157 | C166: -1.177310276 | D166: 0.3834103781 | E166: -0.9235780866
B167: 158 | C167: -1.164718723 | D167: 0.3950089599 | E167: -0.9186772674
B168: 159 | C168: -1.152127169 | D168: 0.406544915 | E168: -0.9136307964
B169: 160 | C169: -1.139535615 | D169: 0.4180164144 | E169: -0.9084394736
B170: 161 | C170: -1.126944062 | D170: 0.4294216393 | E170: -0.9031041223
B171: 162 | C171: -1.114352508 | D171: 0.4407587815 | E171: -0.8976255881
B172: 163 | C172: -1.101760954 | D172: 0.4520260436 | E172: -0.8920047398
B173: 164 | C173: -1.0891694 | D173: 0.4632216391 | E173: -0.8862424685
B174: 165 | C174: -1.076577847 | D174: 0.4743437931 | E174: -0.8803396878
B175: 166 | C175: -1.063986293 | D175: 0.4853907422 | E175: -0.8742973335
B176: 167 | C176: -1.051394739 | D176: 0.496360735 | E176: -0.8681163636
B177: 168 | C177: -1.038803186 | D177: 0.5072520322 | E177: -0.8617977581
B178: 169 | C178: -1.026211632 | D178: 0.518062907 | E178: -0.8553425188
B179: 170 | C179: -1.013620078 | D179: 0.5287916455 | E179: -0.848751669
B180: 171 | C180: -1.001028525 | D180: 0.5394365466 | E180: -0.8420262538
B181: 172 | C181: -0.9884369709 | D181: 0.5499959227 | E181: -0.8351673395
B182: 173 | C182: -0.9758454172 | D182: 0.5604680997 | E182: -0.8281760134
B183: 174 | C183: -0.9632538635 | D183: 0.5708514171 | E183: -0.8210533841
B184: 175 | C184: -0.9506623098 | D184: 0.5811442289 | E184: -0.8138005808
B185: 176 | C185: -0.9380707561 | D185: 0.591344903 | E185: -0.8064187533
B186: 177 | C186: -0.9254792024 | D186: 0.6014518223 | E186: -0.7989090721
B187: 178 | C187: -0.9128876487 | D187: 0.6114633843 | E187: -0.7912727277
B188: 179 | C188: -0.900296095 | D188: 0.6213780018 | E188: -0.7835109309
B189: 180 | C189: -0.8877045413 | D189: 0.6311941029 | E189: -0.7756249122
B190: 181 | C190: -0.8751129876 | D190: 0.6409101312 | E190: -0.767615922
B191: 182 | C191: -0.8625214339 | D191: 0.6505245463 | E191: -0.7594852301
B192: 183 | C192: -0.8499298802 | D192: 0.6600358239 | E192: -0.7512341254
B193: 184 | C193: -0.8373383265 | D193: 0.669442456 | E193: -0.7428639162
B194: 185 | C194: -0.8247467728 | D194: 0.6787429513 | E194: -0.7343759296
B195: 186 | C195: -0.8121552191 | D195: 0.6879358353 | E195: -0.7257715113
B196: 187 | C196: -0.7995636654 | D196: 0.6970196503 | E196: -0.7170520254
B197: 188 | C197: -0.7869721117 | D197: 0.7059929563 | E197: -0.7082188544
B198: 189 | C198: -0.774380558 | D198: 0.7148543305 | E198: -0.6992733987
B199: 190 | C199: -0.7617890043 | D199: 0.723602368 | E199: -0.6902170767
B200: 191 | C200: -0.7491974506 | D200: 0.732235682 | E200: -0.6810513241
B201: 192 | C201: -0.7366058969 | D201: 0.7407529035 | E201: -0.6717775941
B202: 193 | C202: =-3.1415926536+(B202-1)*0.0125915537 -> -0.7240143432 | D202: =1*COS(C202)+0 -> 0.7491526822 | E202: =1*SIN(C202)+0+0*COS(C202) -> -0.6623973571
B203: 194 | C203: -0.7114227895 | D203: 0.7574336865 | E203: -0.6529121002
... 306 more rows

Sheet XLSTAT_20220331_101135_1_HID1 (hidden)
B1: 106 | C1: 992 | D1: 366 | E1: 257 | F1: 548
A2: 43 | B2: -2.2 | C2: 2.8 | D2: -1.2 | E2: 1.8 | F2: -1.2
A3: 41 | B3: -1.4 | C3: 2.6 | D3: -2.4 | E3: 0.6 | F3: 0.6
A4: 44 | B4: -2.8 | C4: 2.2 | D4: -0.8 | E4: 0.2 | F4: 1.2
A5: 31 | B5: 1.4 | C5: 1.4 | D5: -2.6 | E5: -0.6 | F5: 0.4
A6: 73 | B6: -5 | C6: 3 | D6: -1 | E6: 3 | F6: 0
A7: 86 | B7: 0 | C7: 2 | D7: -3 | E7: 2 | F7: -1
A8: 90 | B8: -0.8 | C8: -0.8 | D8: -4.8 | E8: 3.2 | F8: 3.2
A9: 92 | B9: -0.8 | C9: 2.2 | D9: -5.8 | E9: 2.2 | F9: 2.2
A10: 99 | B10: 0.8 | C10: 2.8 | D10: -4.2 | E10: -0.2 | F10: 0.8
A11: 87 | B11: -2.6 | C11: 2.4 | D11: 0.4 | E11: 0.4 | F11: -0.6
A12: 84 | B12: -0.8 | C12: 3.2 | D12: -0.8 | E12: 3.2 | F12: -4.8
A13: 101 | B13: -0.8 | C13: 2.2 | D13: 0.2 | E13: 0.2 | F13: -1.8
A14: 95 | B14: 2 | C14: 2 | D14: -3 | E14: 0 | F14: -1
A15: 103 | B15: 0.4 | C15: 1.4 | D15: -2.6 | E15: 1.4 | F15: -0.6
A16: 98 | B16: -2 | C16: -1 | D16: -3 | E16: 4 | F16: 2
A17: 106 | B17: -3.2 | C17: 0.8 | D17: 0.8 | E17: 1.8 | F17: -0.2
A18: 105 | B18: -3.8 | C18: 1.2 | D18: -3.8 | E18: 3.2 | F18: 3.2
A19: 114 | B19: -0.8 | C19: 3.2 | D19: -1.8 | E19: 0.2 | F19: -0.8
A20: 110 | B20: -0.6 | C20: 2.4 | D20: -3.6 | E20: 1.4 | F20: 0.4
A21: 119 | B21: -3.6 | C21: 3.4 | D21: 2.4 | E21: 1.4 | F21: -3.6
A22: 116 | B22: -3.2 | C22: 1.8 | D22: -4.2 | E22: 2.8 | F22: 2.8
A23: 60 | B23: -4.4 | C23: 1.6 | D23: -2.4 | E23: 3.6 | F23: 1.6
A24: 74 | B24: -5.4 | C24: 2.6 | D24: -1.4 | E24: 2.6 | F24: 1.6
A25: 79 | B25: -1 | C25: 2 | D25: -3 | E25: 2 | F25: 0
A26: 39 | B26: -3.2 | C26: 0.8 | D26: -0.2 | E26: 1.8 | F26: 0.8
A27: 30 | B27: -2 | C27: 2 | D27: -1 | E27: 1 | F27: 0
A28: 21 | B28: -2.8 | C28: 3.2 | D28: -2.8 | E28: 1.2 | F28: 1.2
A29: 9 | B29: -4.4 | C29: 2.6 | D29: 0.6 | E29: 1.6 | F29: -0.4
A30: 16 | B30: -0.6 | C30: 1.4 | D30: -3.6 | E30: 2.4 | F30: 0.4
A31: 14 | B31: -3 | C31: 0 | D31: 2 | E31: 3 | F31: -2

Sheet XLSTAT_20220331_101135_1_HID (hidden)
B1: 106 | C1: 992 | D1: 366 | E1: 257 | F1: 548
A2: 43 | B2: 4 | C2: 9 | D2: 5 | E2: 8 | F2: 5
A3: 41 | B3: 5 | C3: 9 | D3: 4 | E3: 7 | F3: 7
A4: 44 | B4: 4 | C4: 9 | D4: 6 | E4: 7 | F4: 8
A5: 31 | B5: 9 | C5: 9 | D5: 5 | E5: 7 | F5: 8
A6: 73 | B6: 1 | C6: 9 | D6: 5 | E6: 9 | F6: 6
A7: 86 | B7: 7 | C7: 9 | D7: 4 | E7: 9 | F7: 6
A8: 90 | B8: 5 | C8: 5 | D8: 1 | E8: 9 | F8: 9
A9: 92 | B9: 6 | C9: 9 | D9: 1 | E9: 9 | F9: 9
A10: 99 | B10: 7 | C10: 9 | D10: 2 | E10: 6 | F10: 7
A11: 87 | B11: 4 | C11: 9 | D11: 7 | E11: 7 | F11: 6
A12: 84 | B12: 5 | C12: 9 | D12: 5 | E12: 9 | F12: 1
A13: 101 | B13: 6 | C13: 9 | D13: 7 | E13: 7 | F13: 5
A14: 95 | B14: 9 | C14: 9 | D14: 4 | E14: 7 | F14: 6
A15: 103 | B15: 7 | C15: 8 | D15: 4 | E15: 8 | F15: 6
A16: 98 | B16: 3 | C16: 4 | D16: 2 | E16: 9 | F16: 7
A17: 106 | B17: 4 | C17: 8 | D17: 8 | E17: 9 | F17: 7
A18: 105 | B18: 1 | C18: 6 | D18: 1 | E18: 8 | F18: 8
A19: 114 | B19: 5 | C19: 9 | D19: 4 | E19: 6 | F19: 5
A20: 110 | B20: 6 | C20: 9 | D20: 3 | E20: 8 | F20: 7
A21: 119 | B21: 1 | C21: 8 | D21: 7 | E21: 6 | F21: 1
A22: 116 | B22: 3 | C22: 8 | D22: 2 | E22: 9 | F22: 9
A23: 60 | B23: 1 | C23: 7 | D23: 3 | E23: 9 | F23: 7
A24: 74 | B24: 1 | C24: 9 | D24: 5 | E24: 9 | F24: 8
A25: 79 | B25: 6 | C25: 9 | D25: 4 | E25: 9 | F25: 7
A26: 39 | B26: 3 | C26: 7 | D26: 6 | E26: 8 | F26: 7
A27: 30 | B27: 5 | C27: 9 | D27: 6 | E27: 8 | F27: 7
A28: 21 | B28: 1 | C28: 7 | D28: 1 | E28: 5 | F28: 5
A29: 9 | B29: 2 | C29: 9 | D29: 7 | E29: 8 | F29: 6
A30: 16 | B30: 5 | C30: 7 | D30: 2 | E30: 8 | F30: 6
A31: 14 | B31: 2 | C31: 5 | D31: 7 | E31: 8 | F31: 3

Sheet XLSTAT_20220318_104846_1_HID15 (hidden)
A1: 1.125797881 | B1: 1.627656017 | C1: -1.069249218 | D1: 0.6649620606
A2: 1.978981041 | B2: 0.01786100986 | C2: 1.043766315 | D2: -1.465428815
A3: 1.754477688 | B3: -0.9156926444 | C3: 1.055722096 | D3: 1.438369738
A4: 1.978322221 | B4: 0.05409403719 | C4: -1.264123083 | D4: -0.5816073823
A5: 1.902865543 | B5: -0.5438636807 | C5: 0.2338838905 | D5: -0.05629560186
A6: 1.675630814 | B6: 1.053065217
A7: 1.808455887 | B7: -0.8038484202
A8: 1.771629834 | B8: -0.8820502872
A9: 1.135764499 | B9: 1.620717119
A10: 1.389169048 | B10: -1.409572393
A11: 1.932327387 | B11: -0.4275463079
A12: 1.088002767 | B12: -1.653159084
A13: 1.960855411 | B13: -0.2678265024
A14: 1.978897289 | B14: -0.02550484807
A15: 1.968990501 | B15: -0.1994025669
A16: 0.5586801393 | B16: 1.898568271
A17: 1.978556124 | B17: -0.04472851224
A18: 1.876173679 | B18: -0.6298073549
A19: 1.815379548 | B19: 0.7880876058
A20: 1.978448012 | B20: -0.04927920988
A21: 0.7232497382 | B21: 1.842171217
A22: -0.0127276426 | B22: 1.979020713

Sheet XLSTAT_20220318_104846_1_HID14 (hidden)
A1: -3.912545984 | B1: 1.546319336
A2: 3.819300155 | B2: -3.407744662
A3: 3.86304818 | B3: 3.344820812
A4: -4.625619181 | B4: -1.352484292
A5: 0.85581683 | B5: -0.1309111946

Sheet XLSTAT_20220318_104846_1_HID13 (hidden)
A1: 0.4757517963 | B1: 0.6878324137
A2: 0.7998386599 | B2: 0.007218829233
A3: 0.8132363166 | B3: -0.4244422819
A4: 0.8334383606 | B4: 0.02278903061
A5: 0.9517518198 | B5: -0.2720230286
A6: 0.8115087525 | B6: 0.5099999553
A7: 0.8074491795 | B7: -0.3589065966
A8: 0.8720083976 | B8: -0.4341512222
A9: 0.4718604515 | B9: 0.6733370448
A10: 0.5502620983 | B10: -0.558344043
A11: 0.7131773865 | B11: -0.1577974626
A12: 0.4338601234 | B12: -0.6592260847
A13: 0.7802795193 | B13: -0.1065756982
A14: 0.8571125547 | B14: -0.01104682169
A15: 0.8806103098 | B15: -0.08918070258
A16: 0.2605487434 | B16: 0.8854253844
A17: 0.976858533 | B17: -0.02208349226
A18: 0.8501415513 | B18: -0.2853815763
A19: 0.7752002511 | B19: 0.3365278135
A20: 0.9912177889 | B20: -0.02468926611
A21: 0.2799562879 | B21: 0.7130696193
A22: -0.005522424593 | B22: 0.8586816113

Sheet XLSTAT_20220318_104846_1_HID12 (hidden)
B1: 106 | C1: 992 | D1: 366 | E1: 257 | F1: 548
A2: 54 | B2: 0.2 | C2: -0.8 | D2: 1.2 | E2: -1.8 | F2: 1.2
A3: 78 | B3: -2.8 | C3: 2.2 | D3: 3.2 | E3: -0.8 | F3: -1.8
A4: 76 | B4: 0.8 | C4: 2.8 | D4: -1.2 | E4: -5.2 | F4: 2.8
A5: 83 | B5: -2.4 | C5: 1.6 | D5: 0.6 | E5: -0.4 | F5: 0.6
A6: 82 | B6: -0.2 | C6: 1.8 | D6: 0.8 | E6: -3.2 | F6: 0.8
A7: 89 | B7: -1.4 | C7: 1.6 | D7: 0.6 | E7: -1.4 | F7: 0.6
A8: 85 | B8: -1 | C8: 0 | D8: 2 | E8: -1 | F8: 0
A9: 93 | B9: -1 | C9: 1 | D9: 0 | E9: -1 | F9: 1
A10: 94 | B10: -1.6 | C10: 1.4 | D10: 0.4 | E10: -0.6 | F10: 0.4
A11: 108 | B11: 1 | C11: 0 | D11: 2 | E11: -2 | F11: -1
A12: 102 | B12: 0 | C12: 3 | D12: -1 | E12: -2 | F12: 0
A13: 57 | B13: -1.6 | C13: 0.4 | D13: 0.4 | E13: -0.6 | F13: 1.4
A14: 59 | B14: -0.2 | C14: 1.8 | D14: -1.2 | E14: -1.2 | F14: 0.8
A15: 61 | B15: -2 | C15: 4 | D15: 3 | E15: -2 | F15: -3
A16: 69 | B16: 0.8 | C16: 0.8 | D16: 0.8 | E16: -3.2 | F16: 0.8
A17: 70 | B17: -0.8 | C17: 1.2 | D17: 1.2 | E17: -0.8 | F17: -0.8
A18: 62 | B18: 1 | C18: 1 | D18: 1 | E18: -2 | F18: -1
A19: 75 | B19: -4 | C19: 4 | D19: 4 | E19: -2 | F19: -2
A20: 38 | B20: 0.4 | C20: -0.6 | D20: 1.4 | E20: -0.6 | F20: -0.6
A21: 36 | B21: -2.4 | C21: 2.6 | D21: 2.6 | E21: -2.4 | F21: -0.4
A22: 25 | B22: -3.8 | C22: 3.2 | D22: 2.2 | E22: -0.8 | F22: -0.8
A23: 17 | B23: -2.4 | C23: -2.4 | D23: 1.6 | E23: -2.4 | F23: 5.6
A24: 22 | B24: -3.4 | C24: -0.4 | D24: 3.6 | E24: -3.4 | F24: 3.6
A25: 6 | B25: -4 | C25: 4 | D25: 4 | E25: -4 | F25: 0
A26: 11 | B26: 0.2 | C26: -2.8 | D26: 2.2 | E26: -2.8 | F26: 3.2
A27: 19 | B27: -4 | C27: -4 | D27: 4 | E27: 0 | F27: 4
A28: 12 | B28: 0.6 | C28: -0.4 | D28: 0.6 | E28: -0.4 | F28: -0.4
A29: 10 | B29: -2.4 | C29: -0.4 | D29: 2.6 | E29: 0.6 | F29: -0.4

Sheet XLSTAT_20220318_104846_1_HID11 (hidden)
B1: 106 | C1: 992 | D1: 366 | E1: 257 | F1: 548
A2: 54 | B2: 7 | C2: 6 | D2: 8 | E2: 5 | F2: 8
A3: 78 | B3: 2 | C3: 7 | D3: 8 | E3: 4 | F3: 3
A4: 76 | B4: 7 | C4: 9 | D4: 5 | E4: 1 | F4: 9
A5: 83 | B5: 4 | C5: 8 | D5: 7 | E5: 6 | F5: 7
A6: 82 | B6: 6 | C6: 8 | D6: 7 | E6: 3 | F6: 7
A7: 89 | B7: 6 | C7: 9 | D7: 8 | E7: 6 | F7: 8
A8: 85 | B8: 6 | C8: 7 | D8: 9 | E8: 6 | F8: 7
A9: 93 | B9: 7 | C9: 9 | D9: 8 | E9: 7 | F9: 9
A10: 94 | B10: 5 | C10: 8 | D10: 7 | E10: 6 | F10: 7
A11: 108 | B11: 8 | C11: 7 | D11: 9 | E11: 5 | F11: 6
A12: 102 | B12: 6 | C12: 9 | D12: 5 | E12: 4 | F12: 6
A13: 57 | B13: 5 | C13: 7 | D13: 7 | E13: 6 | F13: 8
A14: 59 | B14: 6 | C14: 8 | D14: 5 | E14: 5 | F14: 7
A15: 61 | B15: 3 | C15: 9 | D15: 8 | E15: 3 | F15: 2
A16: 69 | B16: 9 | C16: 9 | D16: 9 | E16: 5 | F16: 9
A17: 70 | B17: 7 | C17: 9 | D17: 9 | E17: 7 | F17: 7
A18: 62 | B18: 9 | C18: 9 | D18: 9 | E18: 6 | F18: 7
A19: 75 | B19: 1 | C19: 9 | D19: 9 | E19: 3 | F19: 3
A20: 38 | B20: 8 | C20: 7 | D20: 9 | E20: 7 | F20: 7
A21: 36 | B21: 4 | C21: 9 | D21: 9 | E21: 4 | F21: 6
A22: 25 | B22: 1 | C22: 8 | D22: 7 | E22: 4 | F22: 4
A23: 17 | B23: 1 | C23: 1 | D23: 5 | E23: 1 | F23: 9
A24: 22 | B24: 2 | C24: 5 | D24: 9 | E24: 2 | F24: 9
A25: 6 | B25: 1 | C25: 9 | D25: 9 | E25: 1 | F25: 5
A26: 11 | B26: 5 | C26: 2 | D26: 7 | E26: 2 | F26: 8
A27: 19 | B27: 1 | C27: 1 | D27: 9 | E27: 5 | F27: 9
A28: 12 | B28: 8 | C28: 7 | D28: 8 | E28: 7 | F28: 7
A29: 10 | B29: 4 | C29: 6 | D29: 9 | E29: 7 | F29: 6

Sheet XLSTAT_20220318_104846_1_HID10 (hidden)
A1: 1.895605311 | B1: -0.4360849722 | C1: -0.1072909017 | D1: 1.68904213
A2: 1.769236932 | B2: -0.8082637418 | C2: -1.307038404 | D2: -1.191008613
A3: 1.823302549 | B3: -0.6775377574 | C3: -0.8484941966 | D3: 0.4094481648
A4: 1.821951391 | B4: 0.6811627737 | C4: 1.128985802 | D4: -0.1805871602
A5: 1.943704258 | B5: 0.07418458596 | C5: 1.1338377 | D5: -0.7268945211
A6: 1.895058301 | B6: -0.4384559656
A7: 1.897577676 | B7: -0.4274208216
A8: 1.807843155 | B8: -0.7177692688
A9: 1.421562929 | B9: -1.327647707
A10: 1.941476511 | B10: -0.1189897232
A11: -0.6210922886 | B11: 1.843294324
A12: 1.662138311 | B12: 1.010339463
A13: 1.69010574 | B13: 0.9628251058
A14: 1.072856739 | B14: -1.622488217
A15: 1.444364205 | B15: 1.302805296
A16: 1.885192399 | B16: 0.4791025103
A17: 1.893344838 | B17: -0.445796952
A18: 1.307785352 | B18: -1.439856614
A19: -1.437742244 | B19: -1.310109475
A20: 1.791266666 | B20: -0.7581908256
A21: 1.922577927 | B21: 0.2952688783
A22: 1.583062131 | B22: -1.130222936
A23: 0.887991671 | B23: -1.730595386
A24: 1.804313795 | B24: 0.7265957098
A25: 1.88167235 | B25: 0.4927461464
A26: 1.762134581 | B26: 0.8236329978
A27: 1.805350182 | B27: -0.7240167943
A28: 1.828628029 | B28: 0.663030261
A29: 1.828628029 | B29: 0.663030261
A30: 1.944329973 | B30: -0.05541256108
A31: 1.437742244 | B31: 1.310109475
A32: 1.297743882 | B32: 1.448913529
A33: 1.930365979 | B33: 0.2391166728
A34: 1.311345925 | B34: -1.436614584
A35: 1.898245314 | B35: 0.4244459048
A36: 1.254334736 | B36: -1.486651932
A37: 1.921997733 | B37: -0.2990222561
A38: 1.828628029 | B38: 0.663030261
A39: 1.437742244 | B39: 1.310109475
A40: 1.922779187 | B40: -0.2939554304
A41: 0.1233088525 | B41: -1.941206976
A42: 1.919176558 | B42: 0.3166242802
A43: 1.93361025 | B43: -0.2112841659
A44: 1.638512641 | B44: -1.048220359
A45: 1.942157068 | B45: -0.1073103934
A46: 1.856179317 | B46: 0.5814532999
A47: -0.1299001211 | B47: 1.940777049
A48: 1.867935308 | B48: 0.5425009505
A49: 1.145506897 | B49: 1.572038023

Sheet XLSTAT_20220318_104846_1_HID9 (hidden)
A1: -0.6154658923 | B1: 5.644659922
A2: -7.497723895 | B2: -3.980266962
A3: -4.867320802 | B3: 1.36834695
A4: 6.476339026 | B4: -0.6035095797
A5: 6.504171563 | B5: -2.429230331

Sheet XLSTAT_20220318_104846_1_HID8 (hidden)
A1: 0.8430123702 | B1: -0.1939354274
A2: 0.8438453372 | B2: -0.3855049471
A3: 0.8999161961 | B3: -0.3344081331
A4: 0.7136275323 | B4: 0.2667999331
A5: 0.9910971762 | B5: 0.03782681102
A6: 0.8802945052 | B6: -0.2036720333
A7: 0.9619621321 | B7: -0.2166776359
A8: 0.9144651436 | B8: -0.363070754
A9: 0.7197027624 | B9: -0.6721557677
A10: 0.9196437639 | B10: -0.05636336896
A11: -0.2856008933 | B11: 0.8476139783
A12: 0.8484264404 | B12: 0.515720448
A13: 0.8656427511 | B13: 0.4931422654
A14: 0.3909450202 | B14: -0.5912286937
A15: 0.5284734714 | B15: 0.4766789673
A16: 0.9066751671 | B16: 0.2304222894
A17: 0.9617470202 | B17: -0.2264478618
A18: 0.5762121497 | B18: -0.634402942
A19: -0.653519202 | B19: -0.5955043066
A20: 0.8315346322 | B20: -0.3519643062
A21: 0.9074838169 | B21: 0.1393710626
A22: 0.8081930717 | B22: -0.5770072626
A23: 0.4012135491 | B23: -0.7819198529
A24: 0.8143619295 | B24: 0.3279428921
A25: 0.956938886 | B25: 0.2505898269
A26: 0.9004788642 | B26: 0.4208895929
A27: 0.9237938264 | B27: -0.370477845
A28: 0.8799924992 | B28: 0.319070717
A29: 0.8799924992 | B29: 0.319070717
A30: 0.9879744594 | B30: -0.02815684366
A31: 0.653519202 | B31: 0.5955043066
A32: 0.5524893844 | B32: 0.616846941
A33: 0.7510066993 | B33: 0.09302807091
A34: 0.6334397191 | B34: -0.6939501784
A35: 0.815797971 | B35: 0.1824116754
A36: 0.5691162008 | B36: -0.6745230556
A37: 0.7724569463 | B37: -0.1201779871
A38: 0.8799924992 | B38: 0.319070717
A39: 0.653519202 | B39: 0.5955043066
A40: 0.8958175269 | B40: -0.1369530253
A41: 0.05364545086 | B41: -0.8445210649
A42: 0.8481370834 | B42: 0.1399250071
A43: 0.8873449409 | B43: -0.09695952726
A44: 0.8242011318 | B44: -0.527273568
A45: 0.9513612879 | B45: -0.05256575576
A46: 0.924343524 | B46: 0.289553163
A47: -0.05137307641 | B47: 0.7675411448
A48: 0.7770533235 | B48: 0.2256781403
A49: 0.4921931814 | B49: 0.6754620146

Sheet XLSTAT_20220318_104846_1_HID7 (hidden)
B1: 106 | C1: 992 | D1: 366 | E1: 257 | F1: 548
A2: 26 | B2: -1.2 | C2: -2.2 | D2: -0.2 | E2: 0.8 | F2: 2.8
A3: 37 | B3: -0.6 | C3: -0.6 | D3: -2.6 | E3: 1.4 | F3: 2.4
A4: 45 | B4: -2.4 | C4: -2.4 | D4: -1.4 | E4: 3.6 | F4: 2.6
A5: 35 | B5: 3 | C5: -2 | D5: -5 | E5: 3 | F5: 1
A6: 46 | B6: 1.4 | C6: 0.4 | D6: 1.4 | E6: 2.4 | F6: -5.6
A7: 50 | B7: -0.4 | C7: -3.4 | D7: -1.4 | E7: 2.6 | F7: 2.6
A8: 29 | B8: -2.2 | C8: -3.2 | D8: -0.2 | E8: 2.8 | F8: 2.8
A9: 48 | B9: -0.6 | C9: -1.6 | D9: -1.6 | E9: 1.4 | F9: 2.4
A10: 51 | B10: -3.4 | C10: -3.4 | D10: -2.4 | E10: 4.6 | F10: 4.6
A11: 47 | B11: -1 | C11: 0 | D11: -1 | E11: 1 | F11: 1
A12: 55 | B12: 0.2 | C12: -2.8 | D12: -2.8 | E12: 1.2 | F12: 4.2
A13: 80 | B13: 4.2 | C13: -0.8 | D13: 0.2 | E13: 0.2 | F13: -3.8
A14: 81 | B14: 2 | C14: -5 | D14: -1 | E14: 2 | F14: 2
A15: 77 | B15: 1.6 | C15: -1.4 | D15: -1.4 | E15: -1.4 | F15: 2.6
A16: 88 | B16: -0.4 | C16: -1.4 | D16: 0.6 | E16: 0.6 | F16: 0.6
A17: 96 | B17: 2.4 | C17: -5.6 | D17: -1.6 | E17: 2.4 | F17: 2.4
A18: 100 | B18: -0.4 | C18: -1.4 | D18: -0.4 | E18: 2.6 | F18: -0.4
A19: 91 | B19: 3.6 | C19: -2.4 | D19: -2.4 | E19: 4.6 | F19: -3.4
A20: 104 | B20: -1 | C20: 0 | D20: 0 | E20: 1 | F20: 0
A21: 109 | B21: 0 | C21: -2 | D21: 1 | E21: 1 | F21: 0
A22: 107 | B22: 0.6 | C22: -1.4 | D22: -1.4 | E22: 1.6 | F22: 0.6
A23: 97 | B23: -1.4 | C23: -2.4 | D23: -1.4 | E23: 2.6 | F23: 2.6
A24: 112 | B24: -0.6 | C24: 0.4 | D24: -1.6 | E24: 0.4 | F24: 1.4
A25: 115 | B25: 0.2 | C25: 0.2 | D25: -0.8 | E25: 1.2 | F25: -0.8
A26: 113 | B26: -0.2 | C26: 0.8 | D26: -0.2 | E26: -0.2 | F26: -0.2
A27: 117 | B27: 0.8 | C27: 0.8 | D27: -1.2 | E27: 0.8 | F27: -1.2
A28: 118 | B28: -0.4 | C28: -0.4 | D28: -2.4 | E28: 1.6 | F28: 1.6
A29: 121 | B29: 1.2 | C29: -2.8 | D29: -2.8 | E29: 1.2 | F29: 3.2
A30: 52 | B30: -1.4 | C30: -0.4 | D30: -1.4 | E30: 1.6 | F30: 1.6
A31: 53 | B31: -1.6 | C31: 1.4 | D31: -2.6 | E31: 0.4 | F31: 2.4
A32: 49 | B32: 2.4 | C32: -2.6 | D32: -3.6 | E32: 2.4 | F32: 1.4
A33: 58 | B33: 1 | C33: -3 | D33: -2 | E33: 2 | F33: 2
A34: 64 | B34: 1 | C34: -3 | D34: -1 | E34: 2 | F34: 1
A35: 66 | B35: 0.8 | C35: -1.2 | D35: 0.8 | E35: 3.8 | F35: -4.2
A36: 56 | B36: -1.6 | C36: -1.6 | D36: -1.6 | E36: 2.4 | F36: 2.4
A37: 68 | B37: 3.2 | C37: -4.8 | D37: -4.8 | E37: 3.2 | F37: 3.2
A38: 65 | B38: -0.4 | C38: -0.4 | D38: -1.4 | E38: 2.6 | F38: -0.4
A39: 63 | B39: 1.6 | C39: -2.4 | D39: -2.4 | E39: 1.6 | F39: 1.6
A40: 67 | B40: 0 | C40: -1 | D40: -1 | E40: 1 | F40: 1
A41: 71 | B41: 0.4 | C41: -1.6 | D41: 0.4 | E41: 0.4 | F41: 0.4
A42: 810 | B42: 2.2 | C42: -3.8 | D42: 0.2 | E42: -0.8 | F42: 2.2
A43: 42 | B43: 0.6 | C43: -0.4 | D43: -1.4 | E43: 0.6 | F43: 0.6
A44: 40 | B44: -1.2 | C44: -0.2 | D44: -0.2 | E44: 0.8 | F44: 0.8
A45: 28 | B45: 1 | C45: -1 | D45: -2 | E45: 1 | F45: 1
A46: 33 | B46: -3 | C46: 0 | D46: -1 | E46: 3 | F46: 1
A47: 27 | B47: 0.2 | C47: 0.2 | D47: 0.2 | E47: 0.2 | F47: -0.8
A48: 34 | B48: -2.2 | C48: -3.2 | D48: 0.8 | E48: 2.8 | F48: 1.8
A49: 23 | B49: 0.8 | C49: -1.2 | D49: -1.2 | E49: 0.8 | F49: 0.8
A50: 24 | B50: 1 | C50: -4 | D50: 1 | E50: 1 | F50: 1
A51: 32 | B51: -0.2 | C51: -2.2 | D51: -2.2 | E51: 0.8 | F51: 3.8
A52: 20 | B52: -0.8 | C52: 0.2 | D52: 0.2 | E52: 0.2 | F52: 0.2
A53: 15 | B53: -0.6 | C53: -3.6 | D53: 0.4 | E53: 1.4 | F53: 2.4
A54: 3 | B54: -2 | C54: -4 | D54: 0 | E54: 3 | F54: 3
A55: 18 | B55: -2 | C55: -1 | D55: -1 | E55: 2 | F55: 2
A56: 13 | B56: 0.2 | C56: 0.2 | D56: -0.8 | E56: 0.2 | F56: 0.2
A57: 8 | B57: 0.6 | C57: -2.4 | D57: 0.6 | E57: 2.6 | F57: -1.4
A58: 5 | B58: -0.2 | C58: -1.2 | D58: -1.2 | E58: 1.8 | F58: 0.8
A59: 4 | B59: 0.4 | C59: -4.6 | D59: -0.6 | E59: 2.4 | F59: 2.4
A60: 1 | B60: 2.6 | C60: -2.4 | D60: 1.6 | E60: -2.4 | F60: 0.6
A61: 7 | B61: -0.6 | C61: -3.6 | D61: 0.4 | E61: 3.4 | F61: 0.4
A62: 2 | B62: 3.4 | C62: -2.6 | D62: -1.6 | E62: -0.6 | F62: 1.4

Sheet XLSTAT_20220318_104846_1_HID6 (hidden)
B1: 106 | C1: 992 | D1: 366 | E1: 257 | F1: 548
A2: 26 | B2: 5 | C2: 4 | D2: 6 | E2: 7 | F2: 9
A3: 37 | B3: 6 | C3: 6 | D3: 4 | E3: 8 | F3: 9
A4: 45 | B4: 2 | C4: 2 | D4: 3 | E4: 8 | F4: 7
A5: 35 | B5: 9 | C5: 4 | D5: 1 | E5: 9 | F5: 7
A6: 46 | B6: 8 | C6: 7 | D6: 8 | E6: 9 | F6: 1
A7: 50 | B7: 6 | C7: 3 | D7: 5 | E7: 9 | F7: 9
A8: 29 | B8: 3 | C8: 2 | D8: 5 | E8: 8 | F8: 8
A9: 48 | B9: 6 | C9: 5 | D9: 5 | E9: 8 | F9: 9
A10: 51 | B10: 1 | C10: 1 | D10: 2 | E10: 9 | F10: 9
A11: 47 | B11: 5 | C11: 6 | D11: 5 | E11: 7 | F11: 7
A12: 55 | B12: 5 | C12: 2 | D12: 2 | E12: 6 | F12: 9
A13: 80 | B13: 9 | C13: 4 | D13: 5 | E13: 5 | F13: 1
A14: 81 | B14: 9 | C14: 2 | D14: 6 | E14: 9 | F14: 9
A15: 77 | B15: 8 | C15: 5 | D15: 5 | E15: 5 | F15: 9
A16: 88 | B16: 6 | C16: 5 | D16: 7 | E16: 7 | F16: 7
A17: 96 | B17: 9 | C17: 1 | D17: 5 | E17: 9 | F17: 9
A18: 100 | B18: 5 | C18: 4 | D18: 5 | E18: 8 | F18: 5
A19: 91 | B19: 8 | C19: 2 | D19: 2 | E19: 9 | F19: 1
A20: 104 | B20: 6 | C20: 7 | D20: 7 | E20: 8 | F20: 7
A21: 109 | B21: 8 | C21: 6 | D21: 9 | E21: 9 | F21: 8
A22: 107 | B22: 7 | C22: 5 | D22: 5 | E22: 8 | F22: 7
A23: 97 | B23: 5 | C23: 4 | D23: 5 | E23: 9 | F23: 9
A24: 112 | B24: 6 | C24: 7 | D24: 5 | E24: 7 | F24: 8
A25: 115 | B25: 8 | C25: 8 | D25: 7 | E25: 9 | F25: 7
A26: 113 | B26: 8 | C26: 9 | D26: 8 | E26: 8 | F26: 8
A27: 117 | B27: 9 | C27: 9 | D27: 7 | E27: 9 | F27: 7
A28: 118 | B28: 7 | C28: 7 | D28: 5 | E28: 9 | F28: 9
A29: 121 | B29: 6 | C29: 2 | D29: 2 | E29: 6 | F29: 8
A30: 52 | B30: 6 | C30: 7 | D30: 6 | E30: 9 | F30: 9
A31: 53 | B31: 4 | C31: 7 | D31: 3 | E31: 6 | F31: 8
A32: 49 | B32: 9 | C32: 4 | D32: 3 | E32: 9 | F32: 8
A33: 58 | B33: 8 | C33: 4 | D33: 5 | E33: 9 | F33: 9
A34: 64 | B34: 7 | C34: 3 | D34: 5 | E34: 8 | F34: 7
A35: 66 | B35: 6 | C35: 4 | D35: 6 | E35: 9 | F35: 1
A36: 56 | B36: 5 | C36: 5 | D36: 5 | E36: 9 | F36: 9
A37: 68 | B37: 9 | C37: 1 | D37: 1 | E37: 9 | F37: 9
A38: 65 | B38: 6 | C38: 6 | D38: 5 | E38: 9 | F38: 6
A39: 63 | B39: 9 | C39: 5 | D39: 5 | E39: 9 | F39: 9
A40: 67 | B40: 8 | C40: 7 | D40: 7 | E40: 9 | F40: 9
A41: 71 | B41: 9 | C41: 7 | D41: 9 | E41: 9 | F41: 9
A42: 810 | B42: 8 | C42: 2 | D42: 6 | E42: 5 | F42: 8
A43: 42 | B43: 9 | C43: 8 | D43: 7 | E43: 9 | F43: 9
A44: 40 | B44: 6 | C44: 7 | D44: 7 | E44: 8 | F44: 8
A45: 28 | B45: 9 | C45: 7 | D45: 6 | E45: 9 | F45: 9
A46: 33 | B46: 2 | C46: 5 | D46: 4 | E46: 8 | F46: 6
A47: 27 | B47: 9 | C47: 9 | D47: 9 | E47: 9 | F47: 8
A48: 34 | B48: 4 | C48: 3 | D48: 7 | E48: 9 | F48: 8
A49: 23 | B49: 9 | C49: 7 | D49: 7 | E49: 9 | F49: 9
A50: 24 | B50: 9 | C50: 4 | D50: 9 | E50: 9 | F50: 9
A51: 32 | B51: 5 | C51: 3 | D51: 3 | E51: 6 | F51: 9
A52: 20 | B52: 8 | C52: 9 | D52: 9 | E52: 9 | F52: 9
A53: 15 | B53: 6 | C53: 3 | D53: 7 | E53: 8 | F53: 9
A54: 3 | B54: 3 | C54: 1 | D54: 5 | E54: 8 | F54: 8
A55: 18 | B55: 5 | C55: 6 | D55: 6 | E55: 9 | F55: 9
A56: 13 | B56: 9 | C56: 9 | D56: 8 | E56: 9 | F56: 9
A57: 8 | B57: 6 | C57: 3 | D57: 6 | E57: 8 | F57: 4
A58: 5 | B58: 5 | C58: 4 | D58: 4 | E58: 7 | F58: 6
A59: 4 | B59: 7 | C59: 2 | D59: 6 | E59: 9 | F59: 9
A60: 1 | B60: 8 | C60: 3 | D60: 7 | E60: 3 | F60: 6
A61: 7 | B61: 5 | C61: 2 | D61: 6 | E61: 9 | F61: 6
A62: 2 | B62: 9 | C62: 3 | D62: 4 | E62: 5 | F62: 7

Sheet XLSTAT_20220318_104846_1_HID5 (hidden)
A1: 2.107729791 | B1: -0.583838518 | C1: -1.122962165 | D1: 1.439352541
A2: 2.131627788 | B2: 0.4894438252 | C2: 1.213483384 | D2: -0.04560522029
A3: 2.079982911 | B3: -0.6760646244 | C3: -1.160889679 | D3: -1.614172209
A4: 0.8170299594 | B4: 2.028756844 | C4: 0.9510597437 | D4: -0.274715433
A5: 1.961556677 | B5: -0.9673095113 | C5: 0.1193087164 | D5: 0.4951403209
A6: 1.970280966 | B6: 0.9494130825
A7: 1.68936666 | B7: 1.389040163
A8: 1.809283413 | B8: 1.228774112
A9: 1.446705531 | B9: 1.640254673
A10: 1.654965614 | B10: -1.429853525
A11: 0.9730376407 | B11: 1.958721531
A12: 1.767754874 | B12: 1.287802388
A13: 1.382323516 | B13: -1.694866951
A14: 2.176885348 | B14: 0.2110982374
A15: 2.157536761 | B15: 0.3583677032
A16: 1.949404224 | B16: 0.9915722158
A17: 1.05742835 | B17: -1.914481018
A18: 2.145269393 | B18: 0.4256894635
A19: 2.142357338 | B19: -0.4401105802
A20: 2.022825402 | B20: -0.8316066849
A21: 2.089499772 | B21: 0.6460518471
A22: 1.81781291 | B22: -1.21612027
A23: 2.126555885 | B23: -0.5110306769
A24: 2.184078565 | B24: 0.1148612535
A25: 1.619139077 | B25: -1.470299607
A26: 1.957850247 | B26: 0.9747895657
A27: 0.7967380949 | B27: -2.036811404

Sheet XLSTAT_20220318_104846_1_HID4 (hidden)
A1: -4.677040407 | B1: 3.82220313
A2: 5.054053462 | B2: -0.1211047403
A3: -4.835005223 | B3: -4.286437056
A4: 3.961081671 | B4: -0.7295073012
A5: 0.4969104969 | B5: 1.314845968

Sheet XLSTAT_20220318_104846_1_HID3 (hidden)
A1: 0.9107526891 | B1: -0.2522773567
A2: 0.9355069067 | B2: 0.2148020782
A3: 0.822574297 | B3: -0.2673644001
A4: 0.3503969283 | B4: 0.8700662176
A5: 0.8946180386 | B5: -0.4411662166
A6: 0.8108550652 | B6: 0.390724176
A7: 0.5963288212 | B7: 0.4903166985
A8: 0.8102176275 | B8: 0.5502589804
A9: 0.6289269172 | B9: 0.7130686192
A10: 0.698734332 | B10: -0.6036909405
A11: 0.3736128551 | B11: 0.7520814335
A12: 0.7386971702 | B12: 0.5381379474
A13: 0.6188558935 | B13: -0.7587792505
A14: 0.8508298296 | B14: 0.08250718278
A15: 0.8097674456 | B15: 0.1345026907
A16: 0.8881969599 | B16: 0.4517849182
A17: 0.4180283669 | B17: -0.7568431217
A18: 0.8923622357 | B18: 0.17707296
A19: 0.9038243736 | B19: -0.1856752197
A20: 0.8792924757 | B20: -0.361487205
A21: 0.9418019138 | B21: 0.291195469
A22: 0.767675934 | B22: -0.5135766495
A23: 0.9595213484 | B23: -0.2305816873
A24: 0.9635311787 | B24: 0.05067235251
A25: 0.7343784541 | B25: -0.6668706647
A26: 0.8627081227 | B26: 0.4295317671
A27: 0.3211496106 | B27: -0.8209990126

Sheet XLSTAT_20220318_104846_1_HID2 (hidden)
B2: Modalité | C2: Moyenne estimées | D2: Erreur standard | E2: Borne inférieure (95%) | F2: Borne supérieure (95%)
B3: 106 | C3: -1.886666667 | D3: 0.3003038053 | E3: -2.480204994 | F3: -1.293128339
B4: 257 | C4: 1.713333333 | D4: 0.3003038053 | E4: 1.119795006 | F4: 2.306871661
B5: 366 | C5: -1.886666667 | D5: 0.3003038053 | E5: -2.480204994 | F5: -1.293128339
B6: 548 | C6: 0.1466666667 | D6: 0.3003038053 | E6: -0.446871661 | F6: 0.7402049944
B7: 992 | C7: 1.913333333 | D7: 0.3003038053 | E7: 1.319795006 | F7: 2.506871661
B10: 1 | C10: =-3.1415926536+(B10-1)*0.0125915537 -> -3.141592654 | D10: =1*COS(C10)+0 -> -1 | E10: =1*SIN(C10)+0+0*COS(C10) -> 1.020682388e-11 | F10: Modalité | G10: Moyenne estimées | H10: Erreur standard | I10: Borne inférieure (95%) | J10: Borne supérieure (95%)
B11: 2 | C11: -3.1290011 | D11: -0.9999207274 | E11: -0.01259122097 | F11: 106 | G11: 0.1737704918 | H11: 0.2040721339 | I11: -0.2278236749 | J11: 0.5753646585
B12: 3 | C12: -3.116409546 | D12: -0.9996829223 | E12: -0.02518044567 | F12: 257 | G12: 1.550819672 | H12: 0.2040721339 | I12: 1.149225505 | J12: 1.952413839
B13: 4 | C13: -3.103817993 | D13: -0.9992866223 | E13: -0.03776567813 | F13: 366 | G13: -1.02295082 | H13: 0.2040721339 | I13: -1.424544986 | J13: -0.621356653
B14: 5 | C14: -3.091226439 | D14: -0.9987318903 | E14: -0.05034492303 | F14: 548 | G14: 1.059016393 | H14: 0.2040721339 | I14: 0.6574222267 | J14: 1.46061056
B15: 6 | C15: -3.078634885 | D15: -0.9980188142 | E15: -0.06291618598 | F15: 992 | G15: -1.760655738 | H15: 0.2040721339 | I15: -2.162249904 | J15: -1.359061571
B16: 7 | C16: -3.066043331 | D16: -0.9971475071 | E16: -0.07547747389
B17: 8 | C17: -3.053451778 | D17: -0.9961181071 | E17: -0.0880267952
B18: 9 | C18: -3.040860224 | D18: -0.9949307774 | E18: -0.1005621603 | F18: Modalité | G18: Moyenne estimées | H18: Erreur standard | I18: Borne inférieure (95%) | J18: Borne supérieure (95%)
B19: 10 | C19: -3.02826867 | D19: -0.9935857064 | E19: -0.1130815818 | F19: 106 | G19: -1.3 | H19: 0.3220071219 | I19: -1.936830998 | J19: -0.6631690018
B20: 11 | C20: -3.015677117 | D20: -0.9920831071 | E20: -0.1255830747 | F20: 257 | G20: -1.692857143 | H20: 0.3220071219 | I20: -2.329688141 | J20: -1.056026145
B21: 12 | C21: -3.003085563 | D21: -0.9904232179 | E21: -0.138064657 | F21: 366 | G21: 1.521428571 | H21: 0.3220071219 | I21: 0.8845975733 | J21: 2.15825957
B22: 13 | C22: -2.990494009 | D22: -0.9886063019 | E22: -0.1505243499 | F22: 548 | G22: 0.5214285714 | H22: 0.3220071219 | I22: -0.1154024267 | J22: 1.15825957
B23: 14 | C23: -2.977902456 | D23: -0.9866326472 | E23: -0.1629601778 | F23: 992 | G23: 0.95 | H23: 0.3220071219 | I23: 0.3131690018 | J23: 1.586830998
B24: 15 | C24: -2.965310902 | D24: -0.9845025667 | E24: -0.1753701692
B25: 16 | C25: -2.952719348 | D25: -0.9822163981 | E25: -0.1877523566
B26: 17 | C26: -2.940127794 | D26: -0.9797745038 | E26: -0.2001047767 | F26: Modalité | G26: Moyenne estimées | H26: Erreur standard | I26: Borne inférieure (95%) | J26: Borne supérieure (95%)
B27: 18 | C27: -2.927536241 | D27: -0.9771772711 | E27: -0.2124254711 | F27: 1 | G27: 0.1737704918 | H27: 0.2196317063 | I27: -0.2612377767 | J27: 0.6087787603
B28: 19 | C28: -2.914944687 | D28: -0.9744251117 | E28: -0.2247124866 | F28: 2 | G28: -1.3 | H28: 0.3241760584 | I28: -1.942071531 | J28: -0.6579284694
B29: 20 | C29: -2.902353133 | D29: -0.971518462 | E29: -0.2369638749 | F29: 3 | G29: -1.886666667 | H29: 0.3131838263 | I29: -2.506966697 | J29: -1.266366637
B30: 21 | C30: -2.88976158 | D30: -0.9684577827 | E30: -0.2491776938
B31: 22 | C31: -2.877170026 | D31: -0.9652435592 | E31: -0.2613520068
B32: 23 | C32: -2.864578472 | D32: -0.961876301 | E32: -0.2734848837 | F32: Modalité | G32: Moyenne estimées | H32: Erreur standard | I32: Borne inférieure (95%) | J32: Borne supérieure (95%)
B33: 24 | C33: -2.851986919 | D33: -0.958356542 | E33: -0.285574401 | F33: 1 | G33: -1.760655738 | H33: 0.2062101977 | I33: -2.169081017 | J33: -1.352230458
B34: 25 | C34: -2.839395365 | D34: -0.9546848402 | E34: -0.2976186417 | F34: 2 | G34: 0.95 | H34: 0.3043659324 | I34: 0.34716492 | J34: 1.55283508
B35: 26 | C35: -2.826803811 | D35: -0.9508617778 | E35: -0.3096156965 | F35: 3 | G35: 1.913333333 | H35: 0.2940454264 | I35: 1.330939316 | J35: 2.495727351
B36: 27 | C36: -2.814212257 | D36: -0.9468879609 | E36: -0.3215636633
B37: 28 | C37: -2.801620704 | D37: -0.9427640195 | E37: -0.3334606476
B38: 29 | C38: -2.78902915 | D38: -0.9384906075 | E38: -0.3453047635 | F38: Modalité | G38: Moyenne estimées | H38: Erreur standard | I38: Borne inférieure (95%) | J38: Borne supérieure (95%)
B39: 30 | C39: -2.776437596 | D39: -0.9340684023 | E39: -0.3570941329 | F39: 1 | G39: -1.02295082 | H39: 0.2021121086 | I39: -1.423259317 | J39: -0.6226423219
B40: 31 | C40: -2.763846043 | D40: -0.9294981052 | E40: -0.3688268868 | F40: 2 | G40: 1.521428571 | H40: 0.2983171594 | I40: 0.9305738486 | J40: 2.112283294
B41: 32 | C41: -2.751254489 | D41: -0.9247804407 | E41: -0.380501165 | F41: 3 | G41: -1.886666667 | H41: 0.2882017564 | I41: -2.457486559 | J41: -1.315846774
B42: 33 | C42: -2.738662935 | D42: -0.9199161567 | E42: -0.3921151165
B43: 34 | C43: -2.726071382 | D43: -0.9149060245 | E43: -0.4036669002
B44: 35 | C44: -2.713479828 | D44: -0.9097508384 | E44: -0.4151546844 | F44: Modalité | G44: Moyenne estimées | H44: Erreur standard | I44: Borne inférieure (95%) | J44: Borne supérieure (95%)
B45: 36 | C45: -2.700888274 | D45: -0.9044514158 | E45: -0.4265766479 | F45: 1 | G45: 1.550819672 | H45: 0.1681482701 | I45: 1.217780836 | J45: 1.883858508
B46: 37 | C46: -2.68829672 | D46: -0.8990085968 | E46: -0.4379309797 | F46: 2 | G46: -1.692857143 | H46: 0.2481865863 | I46: -2.184421949 | J46: -1.201292337
B47: 38 | C47: -2.675705167 | D47: -0.8934232443 | E47: -0.4492158797 | F47: 3 | G47: 1.713333333 | H47: 0.2397710217 | I47: 1.238436613 | J47: 2.188230054
B48: 39 | C48: -2.663113613 | D48: -0.8876962439 | E48: -0.4604295587
B49: 40 | C49: -2.650522059 | D49: -0.8818285037 | E49: -0.4715702388
B50: 41 | C50: -2.637930506 | D50: -0.8758209538 | E50: -0.4826361538 | F50: Modalité | G50: Moyenne estimées | H50: Erreur standard | I50: Borne inférieure (95%) | J50: Borne supérieure (95%)
B51: 42 | C51: -2.625338952 | D51: -0.8696745467 | E51: -0.4936255491 | F51: 1 | G51: 1.059016393 | H51: 0.2421781899 | I51: 0.5793519733 | J51: 1.538680814
B52: 43 | C52: -2.612747398 | D52: -0.863390257 | E52: -0.5045366826 | F52: 2 | G52: 0.5214285714 | H52: 0.3574546332 | I52: -0.1865553698 | J52: 1.229412513
B53: 44 | C53: -2.600155845 | D53: -0.856969081 | E53: -0.5153678242 | F53: 3 | G53: 0.1466666667 | H53: 0.345333984 | I53: -0.5373108015 | J53: 0.8306441349
B54: 45 | C54: -2.587564291 | D54: -0.8504120367 | E54: -0.5261172567
B55: 46 | C55: -2.574972737 | D55: -0.8437201637 | E55: -0.5367832759
B56: 47 | C56: -2.562381183 | D56: -0.836894523 | E56: -0.5473641908
B57: 48 | C57: -2.54978963 | D57: -0.8299361968 | E57: -0.5578583237
B58: 49 | C58: -2.537198076 | D58: -0.8228462882 | E58: -0.5682640109
B59: 50 | C59: -2.524606522 | D59: -0.8156259213 | E59: -0.5785796025
B60: 51 | C60: -2.512014969 | D60: -0.8082762409 | E60: -0.5888034633
B61: 52 | C61: -2.499423415 | D61: -0.8007984123 | E61: -0.5989339721
B62: 53 | C62: -2.486831861 | D62: -0.7931936209 | E62: -0.6089695228
B63: 54 | C63: -2.474240308 | D63: -0.7854630726 | E63: -0.6189085244
B64: 55 | C64: -2.461648754 | D64: -0.7776079929 | E64: -0.628749401
B65: 56 | C65: -2.4490572 | D65: -0.7696296273 | E65: -0.6384905925
B66: 57 | C66: -2.436465646 | D66: -0.7615292407 | E66: -0.6481305545
B67: 58 | C67: -2.423874093 | D67: -0.7533081173 | E67: -0.6576677584
B68: 59 | C68: -2.411282539 | D68: -0.7449675605 | E68: -0.6671006924
B69: 60 | C69: -2.398690985 | D69: -0.7365088928 | E69: -0.6764278608
B70: 61 | C70: -2.386099432 | D70: -0.7279334552 | E70: -0.6856477848
B71: 62 | C71: -2.373507878 | D71: -0.7192426073 | E71: -0.6947590028
B72: 63 | C72: -2.360916324 | D72: -0.7104377269 | E72: -0.70376007
B73: 64 | C73: -2.348324771 | D73: -0.7015202101 | E73: -0.7126495596
B74: 65 | C74: =-3.1415926536+(B74-1)*0.0125915537 -> -2.335733217 | D74: =1*COS(C74)+0 -> -0.6924914707 | E74: =1*SIN(C74)+0+0*COS(C74) -> -0.721426062
B75: 66 | C75: -2.323141663 | D75: -0.6833529402 | E75: -0.7300881858
B76: 67 | C76: -2.310550109 | D76: -0.6741060674 | E76: -0.7386345578
B77: 68 | C77: -2.297958556 | D77: -0.6647523183 | E77: -0.7470638228
B78: 69 | C78: -2.285367002 | D78: -0.655293176 | E78: -0.7553746444
B79: 70 | C79: -2.272775448 | D79: -0.6457301402 | E79: -0.7635657051
B80: 71 | C80: -2.260183895 | D80: -0.636064727 | E80: -0.7716357062
B81: 72 | C81: -2.247592341 | D81: -0.6262984688 | E81: -0.7795833682
B82: 73 | C82: -2.235000787 | D82: -0.6164329141 | E82: -0.787407431
B83: 74 | C83: -2.222409234 | D83: -0.6064696269 | E83: -0.7951066543
B84: 75 | C84: -2.20981768 | D84: -0.5964101869 | E84: -0.8026798172
B85: 76 | C85: -2.197226126 | D85: -0.586256189 | E85: -0.8101257192
B86: 77 | C86: -2.184634572 | D86: -0.576009243 | E86: -0.8174431797
B87: 78 | C87: -2.172043019 | D87: -0.5656709736 | E87: -0.8246310385
B88: 79 | C88: -2.159451465 | D88: -0.5552430197 | E88: -0.8316881561
B89: 80 | C89: -2.146859911 | D89: -0.5447270348 | E89: -0.8386134136
B90: 81 | C90: -2.134268358 | D90: -0.5341246861 | E90: -0.8454057131
B91: 82 | C91: -2.121676804 | D91: -0.5234376546 | E91: -0.8520639775
B92: 83 | C92: -2.10908525 | D92: -0.5126676345 | E92: -0.8585871514
B93: 84 | C93: -2.096493697 | D93: -0.5018163335 | E93: -0.8649742005
B94: 85 | C94: -2.083902143 | D94: -0.4908854719 | E94: -0.8712241121
B95: 86 | C95: -2.071310589 | D95: -0.4798767828 | E95: -0.8773358954
B96: 87 | C96: -2.058719035 | D96: -0.4687920116 | E96: -0.8833085813
B97: 88 | C97: -2.046127482 | D97: -0.4576329157 | E97: -0.889141223
B98: 89 | C98: -2.033535928 | D98: -0.4464012644 | E98: -0.8948328957
B99: 90 | C99: -2.020944374 | D99: -0.4350988383 | E99: -0.9003826969
B100: 91 | C100: -2.008352821 | D100: -0.4237274294 | E100: -0.9057897469
B101: 92 | C101: -1.995761267 | D101: -0.4122888406 | E101: -0.9110531883
B102: 93 | C102: -1.983169713 | D102: -0.4007848854 | E102: -0.9161721867
B103: 94 | C103: -1.97057816 | D103: -0.3892173877 | E103: -0.9211459304
B104: 95 | C104: -1.957986606 | D104: -0.3775881814 | E104: -0.925973631
B105: 96 | C105: -1.945395052 | D105: -0.3658991104 | E105: -0.9306545229
B106: 97 | C106: -1.932803498 | D106: -0.3541520279 | E106: -0.9351878641
B107: 98 | C107: -1.920211945 | D107: -0.3423487963 | E107: -0.9395729358
B108: 99 | C108: -1.907620391 | D108: -0.330491287 | E108: -0.9438090428
B109: 100 | C109: -1.895028837 | D109: -0.3185813799 | E109: -0.9478955134
B110: 101 | C110: -1.882437284 | D110: -0.3066209633 | E110: -0.9518316999
B111: 102 | C111: -1.86984573 | D111: -0.2946119334 | E111: -0.955616978
B112: 103 | C112: -1.857254176 | D112: -0.2825561942 | E112: -0.9592507478
B113: 104 | C113: -1.844662623 | D113: -0.2704556571 | E113: -0.962732433
B114: 105 | C114: -1.832071069 | D114: -0.2583122406 | E114: -0.9660614817
B115: 106 | C115: -1.819479515 | D115: -0.2461278699 | E115: -0.969237366
B116: 107 | C116: -1.806887961 | D116: -0.2339044769 | E116: -0.9722595825
B117: 108 | C117: -1.794296408 | D117: -0.2216439994 | E117: -0.9751276519
B118: 109 | C118: -1.781704854 | D118: -0.2093483814 | E118: -0.9778411196
B119: 110 | C119: -1.7691133 | D119: -0.1970195722 | E119: -0.9803995554
B120: 111 | C120: -1.756521747 | D120: -0.1846595265 | E120: -0.9828025536
B121: 112 | C121: -1.743930193 | D121: -0.1722702039 | E121: -0.9850497332
B122: 113 | C122: -1.731338639 | D122: -0.1598535688 | E122: -0.987140738
B123: 114 | C123: -1.718747085 | D123: -0.1474115896 | E123: -0.9890752364
B124: 115 | C124: -1.706155532 | D124: -0.134946239 | E124: -0.9908529218
B125: 116 | C125: -1.693563978 | D125: -0.1224594934 | E125: -0.9924735122
B126: 117 | C126: -1.680972424 | D126: -0.1099533324 | E126: -0.9939367508
B127: 118 | C127: -1.668380871 | D127: -0.09742973887 | E127: -0.9952424056
B128: 119 | C128: -1.655789317 | D128: -0.08489069831 | E128: -0.9963902696
B129: 120 | C129: -1.643197763 | D129: -0.07233819875 | E129: -0.9973801607
B130: 121 | C130: -1.63060621 | D130: -0.05977423031 | E130: -0.9982119221
B131: 122 | C131: -1.618014656 | D131: -0.04720078496 | E131: -0.9988854218
B132: 123 | C132: -1.605423102 | D132: -0.03461985616 | E132: -0.9994005531
B133: 124 | C133: -1.592831548 | D133: -0.02203343854 | E133: -0.9997572343
B134: 125 | C134: -1.580239995 | D134: -0.009443527637 | E134: -0.9999554089
B135: 126 | C135: -1.567648441 | D135: 0.003147880496 | E135: -0.9999950454
B136: 127 | C136: -1.555056887 | D136: 0.01573878955 | E136: -0.9998761376
B137: 128 | C137: -1.542465334 | D137: 0.02832720329 | E137: -0.9995987043
B138: 129 | C138: =-3.1415926536+(B138-1)*0.0125915537 -> -1.52987378 | D138: =1*COS(C138)+0 -> 0.04091112589 | E138: =1*SIN(C138)+0+0*COS(C138) -> -0.9991627894
B139: 130 | C139: -1.517282226 | D139: 0.05348856224 | E139: -0.9985684622
B140: 131 | C140: -1.504690673 | D140: 0.06605751823 | E140: -0.9978158168
B141: 132 | C141: -1.492099119 | D141: 0.07861600112 | E141: -0.9969049726
B142: 133 | C142: -1.479507565 | D142: 0.09116201984 | E142: -0.9958360739
B143: 134 | C143: -1.466916011 | D143: 0.1036935853 | E143: -0.9946092903
B144: 135 | C144: -1.454324458 | D144: 0.1162087106 | E144: -0.9932248162
B145: 136 | C145: -1.441732904 | D145: 0.1287054115 | E145: -0.9916828712
B146: 137 | C146: -1.42914135 | D146: 0.1411817069 | E146: -0.9899836997
B147: 138 | C147: -1.416549797 | D147: 0.1536356186 | E147: -0.9881275711
B148: 139 | C148: -1.403958243 | D148: 0.1660651721 | E148: -0.9861147796
B149: 140 | C149: -1.391366689 | D149: 0.1784683968 | E149: -0.9839456445
B150: 141 | C150: -1.378775136 | D150: 0.1908433262 | E150: -0.9816205096
B151: 142 | C151: -1.366183582 | D151: 0.2031879983 | E151: -0.9791397435
B152: 143 | C152: -1.353592028 | D152: 0.2155004559 | E152: -0.9765037396
B153: 144 | C153: -1.341000474 | D153: 0.227778747 | E153: -0.9737129158
B154: 145 | C154: -1.328408921 | D154: 0.2400209249 | E154: -0.9707677145
B155: 146 | C155: -1.315817367 | D155: 0.2522250486 | E155: -0.9676686028
B156: 147 | C156: -1.303225813 | D156: 0.2643891833 | E156: -0.9644160719
B157: 148 | C157: -1.29063426 | D157: 0.2765114004 | E157: -0.9610106375
B158: 149 | C158: -1.278042706 | D158: 0.2885897779 | E158: -0.9574528396
B159: 150 | C159: -1.265451152 | D159: 0.300622401 | E159: -0.9537432422
B160: 151 | C160: -1.252859599 | D160: 0.3126073618 | E160: -0.9498824334
B161: 152 | C161: -1.240268045 | D161: 0.3245427602 | E161: -0.9458710255
B162: 153 | C162: -1.227676491 | D162: 0.336426704 | E162: -0.9417096542
B163: 154 | C163: -1.215084937 | D163: 0.3482573089 | E163: -0.9373989795
B164: 155 | C164: -1.202493384 | D164: 0.3600326993 | E164: -0.9329396848
B165: 156 | C165: -1.18990183 | D165: 0.3717510084 | E165: -0.928332477
B166: 157 | C166: -1.177310276 | D166: 0.3834103781 | E166: -0.9235780866
B167: 158 | C167: -1.164718723 | D167: 0.3950089599 | E167: -0.9186772674
B168: 159 | C168: -1.152127169 | D168: 0.406544915 | E168: -0.9136307964
B169: 160 | C169: -1.139535615 | D169: 0.4180164144 | E169: -0.9084394736
B170: 161 | C170: -1.126944062 | D170: 0.4294216393 | E170: -0.9031041223
B171: 162 | C171: -1.114352508 | D171: 0.4407587815 | E171: -0.8976255881
B172: 163 | C172: -1.101760954 | D172: 0.4520260436 | E172: -0.8920047398
B173: 164 | C173: -1.0891694 | D173: 0.4632216391 | E173: -0.8862424685
B174: 165 | C174: -1.076577847 | D174: 0.4743437931 | E174: -0.8803396878
B175: 166 | C175: -1.063986293 | D175: 0.4853907422 | E175: -0.8742973335
B176: 167 | C176: -1.051394739 | D176: 0.496360735 | E176: -0.8681163636
B177: 168 | C177: -1.038803186 | D177: 0.5072520322 | E177: -0.8617977581
B178: 169 | C178: -1.026211632 | D178: 0.518062907 | E178: -0.8553425188
B179: 170 | C179: -1.013620078 | D179: 0.5287916455 | E179: -0.848751669
B180: 171 | C180: -1.001028525 | D180: 0.5394365466 | E180: -0.8420262538
B181: 172 | C181: -0.9884369709 | D181: 0.5499959227 | E181: -0.8351673395
B182: 173 | C182: -0.9758454172 | D182: 0.5604680997 | E182: -0.8281760134
B183: 174 | C183: -0.9632538635 | D183: 0.5708514171 | E183: -0.8210533841
B184: 175 | C184: -0.9506623098 | D184: 0.5811442289 | E184: -0.8138005808
B185: 176 | C185: -0.9380707561 | D185: 0.591344903 | E185: -0.8064187533
B186: 177 | C186: -0.9254792024 | D186: 0.6014518223 | E186: -0.7989090721
B187: 178 | C187: -0.9128876487 | D187: 0.6114633843 | E187: -0.7912727277
B188: 179 | C188: -0.900296095 | D188: 0.6213780018 | E188: -0.7835109309
B189: 180 | C189: -0.8877045413 | D189: 0.6311941029 | E189: -0.7756249122
B190: 181 | C190: -0.8751129876 | D190: 0.6409101312 | E190: -0.767615922
B191: 182 | C191: -0.8625214339 | D191: 0.6505245463 | E191: -0.7594852301
B192: 183 | C192: -0.8499298802 | D192: 0.6600358239 | E192: -0.7512341254
B193: 184 | C193: -0.8373383265 | D193: 0.669442456 | E193: -0.7428639162
B194: 185 | C194: -0.8247467728 | D194: 0.6787429513 | E194: -0.7343759296
B195: 186 | C195: -0.8121552191 | D195: 0.6879358353 | E195: -0.7257715113
B196: 187 | C196: -0.7995636654 | D196: 0.6970196503 | E196: -0.7170520254
B197: 188 | C197: -0.7869721117 | D197: 0.7059929563 | E197: -0.7082188544
B198: 189 | C198: -0.774380558 | D198: 0.7148543305 | E198: -0.6992733987
B199: 190 | C199: -0.7617890043 | D199: 0.723602368 | E199: -0.6902170767
B200: 191 | C200: -0.7491974506 | D200: 0.732235682 | E200: -0.6810513241
B201: 192 | C201: -0.7366058969 | D201: 0.7407529035 | E201: -0.6717775941
B202: 193 | C202: =-3.1415926536+(B202-1)*0.0125915537 -> -0.7240143432 | D202: =1*COS(C202)+0 -> 0.7491526822 | E202: =1*SIN(C202)+0+0*COS(C202) -> -0.6623973571
B203: 194 | C203: -0.7114227895 | D203: 0.7574336865 | E203: -0.6529121002
... 306 more rows

Sheet XLSTAT_20220318_104846_1_HID1 (hidden)
B1: 106 | C1: 992 | D1: 366 | E1: 257 | F1: 548
A2: 43 | B2: -2.2 | C2: 2.8 | D2: -1.2 | E2: 1.8 | F2: -1.2
A3: 41 | B3: -1.4 | C3: 2.6 | D3: -2.4 | E3: 0.6 | F3: 0.6
A4: 44 | B4: -2.8 | C4: 2.2 | D4: -0.8 | E4: 0.2 | F4: 1.2
A5: 31 | B5: 1.4 | C5: 1.4 | D5: -2.6 | E5: -0.6 | F5: 0.4
A6: 73 | B6: -5 | C6: 3 | D6: -1 | E6: 3 | F6: 0
A7: 86 | B7: 0 | C7: 2 | D7: -3 | E7: 2 | F7: -1
A8: 90 | B8: -0.8 | C8: -0.8 | D8: -4.8 | E8: 3.2 | F8: 3.2
A9: 92 | B9: -0.8 | C9: 2.2 | D9: -5.8 | E9: 2.2 | F9: 2.2
A10: 99 | B10: 0.8 | C10: 2.8 | D10: -4.2 | E10: -0.2 | F10: 0.8
A11: 87 | B11: -2.6 | C11: 2.4 | D11: 0.4 | E11: 0.4 | F11: -0.6
A12: 84 | B12: -0.8 | C12: 3.2 | D12: -0.8 | E12: 3.2 | F12: -4.8
A13: 101 | B13: -0.8 | C13: 2.2 | D13: 0.2 | E13: 0.2 | F13: -1.8
A14: 95 | B14: 2 | C14: 2 | D14: -3 | E14: 0 | F14: -1
A15: 103 | B15: 0.4 | C15: 1.4 | D15: -2.6 | E15: 1.4 | F15: -0.6
A16: 98 | B16: -2 | C16: -1 | D16: -3 | E16: 4 | F16: 2
A17: 106 | B17: -3.2 | C17: 0.8 | D17: 0.8 | E17: 1.8 | F17: -0.2
A18: 105 | B18: -3.8 | C18: 1.2 | D18: -3.8 | E18: 3.2 | F18: 3.2
A19: 114 | B19: -0.8 | C19: 3.2 | D19: -1.8 | E19: 0.2 | F19: -0.8
A20: 110 | B20: -0.6 | C20: 2.4 | D20: -3.6 | E20: 1.4 | F20: 0.4
A21: 119 | B21: -3.6 | C21: 3.4 | D21: 2.4 | E21: 1.4 | F21: -3.6
A22: 116 | B22: -3.2 | C22: 1.8 | D22: -4.2 | E22: 2.8 | F22: 2.8
A23: 60 | B23: -4.4 | C23: 1.6 | D23: -2.4 | E23: 3.6 | F23: 1.6
A24: 74 | B24: -5.4 | C24: 2.6 | D24: -1.4 | E24: 2.6 | F24: 1.6
A25: 79 | B25: -1 | C25: 2 | D25: -3 | E25: 2 | F25: 0
A26: 39 | B26: -3.2 | C26: 0.8 | D26: -0.2 | E26: 1.8 | F26: 0.8
A27: 30 | B27: -2 | C27: 2 | D27: -1 | E27: 1 | F27: 0
A28: 21 | B28: -2.8 | C28: 3.2 | D28: -2.8 | E28: 1.2 | F28: 1.2
A29: 9 | B29: -4.4 | C29: 2.6 | D29: 0.6 | E29: 1.6 | F29: -0.4
A30: 16 | B30: -0.6 | C30: 1.4 | D30: -3.6 | E30: 2.4 | F30: 0.4
A31: 14 | B31: -3 | C31: 0 | D31: 2 | E31: 3 | F31: -2

Sheet XLSTAT_20220318_104846_1_HID (hidden)
B1: 106 | C1: 992 | D1: 366 | E1: 257 | F1: 548
A2: 43 | B2: 4 | C2: 9 | D2: 5 | E2: 8 | F2: 5
A3: 41 | B3: 5 | C3: 9 | D3: 4 | E3: 7 | F3: 7
A4: 44 | B4: 4 | C4: 9 | D4: 6 | E4: 7 | F4: 8
A5: 31 | B5: 9 | C5: 9 | D5: 5 | E5: 7 | F5: 8
A6: 73 | B6: 1 | C6: 9 | D6: 5 | E6: 9 | F6: 6
A7: 86 | B7: 7 | C7: 9 | D7: 4 | E7: 9 | F7: 6
A8: 90 | B8: 5 | C8: 5 | D8: 1 | E8: 9 | F8: 9
A9: 92 | B9: 6 | C9: 9 | D9: 1 | E9: 9 | F9: 9
A10: 99 | B10: 7 | C10: 9 | D10: 2 | E10: 6 | F10: 7
A11: 87 | B11: 4 | C11: 9 | D11: 7 | E11: 7 | F11: 6
A12: 84 | B12: 5 | C12: 9 | D12: 5 | E12: 9 | F12: 1
A13: 101 | B13: 6 | C13: 9 | D13: 7 | E13: 7 | F13: 5
A14: 95 | B14: 9 | C14: 9 | D14: 4 | E14: 7 | F14: 6
A15: 103 | B15: 7 | C15: 8 | D15: 4 | E15: 8 | F15: 6
A16: 98 | B16: 3 | C16: 4 | D16: 2 | E16: 9 | F16: 7
A17: 106 | B17: 4 | C17: 8 | D17: 8 | E17: 9 | F17: 7
A18: 105 | B18: 1 | C18: 6 | D18: 1 | E18: 8 | F18: 8
A19: 114 | B19: 5 | C19: 9 | D19: 4 | E19: 6 | F19: 5
A20: 110 | B20: 6 | C20: 9 | D20: 3 | E20: 8 | F20: 7
A21: 119 | B21: 1 | C21: 8 | D21: 7 | E21: 6 | F21: 1
A22: 116 | B22: 3 | C22: 8 | D22: 2 | E22: 9 | F22: 9
A23: 60 | B23: 1 | C23: 7 | D23: 3 | E23: 9 | F23: 7
A24: 74 | B24: 1 | C24: 9 | D24: 5 | E24: 9 | F24: 8
A25: 79 | B25: 6 | C25: 9 | D25: 4 | E25: 9 | F25: 7
A26: 39 | B26: 3 | C26: 7 | D26: 6 | E26: 8 | F26: 7
A27: 30 | B27: 5 | C27: 9 | D27: 6 | E27: 8 | F27: 7
A28: 21 | B28: 1 | C28: 7 | D28: 1 | E28: 5 | F28: 5
A29: 9 | B29: 2 | C29: 9 | D29: 7 | E29: 8 | F29: 6
A30: 16 | B30: 5 | C30: 7 | D30: 2 | E30: 8 | F30: 6
A31: 14 | B31: 2 | C31: 5 | D31: 7 | E31: 8 | F31: 3
